Workbook

Sheet Unique Data Times
H4: SUMPRODUCT | J4: SUMPRODUCT | L4: SUMPRODUCT | N4: SUMIF | P4: SUMIF | R4: SUMPRODUCT | T4: SUMPRODUCT
A5: Year | B5: Period | C5: Sales Person | D5: Product | E5: Customer | F5: Forecast/Actual | H5: Within Workbook | J5: Across Workbook | L5: Within Worksheet | N5: Select Cells | P5: All Cells | R5: Laptop Batter | T5: Powered
A6: 2014 | B6: 8 | C6: B. Paisley | D6: DFG001 | E6: CA01 | F6: Actual | H6: =SUMPRODUCT(('List Unsorted Data - Non Unique'!$A$2:$A$100000=$A6)*('List Unsorted Data - Non Unique'!$B$2:$B$100000=$B6)*('List Unsorted Data - Non Unique'!$C$2:$C$100000=$C6)*('List Unsorted Data - Non Unique'!$D$2:$D$100000=$D6)*('List Unsorted Data - Non Unique'!$E$2:$E$100000=$E6)*('List Unsorted Data - Non Unique'!$F$2:$F$100000=$F6)*('List Unsorted Data - Non Unique'!$H$2:$H$100000)) -> 172 | J6: =SUMPRODUCT(('[1]List Unsorted Data - Non Unique'!$A$2:$A$100000=$A6)*('[1]List Unsorted Data - Non Unique'!$B$2:$B$100000=$B6)*('[1]List Unsorted Data - Non Unique'!$C$2:$C$100000=$C6)*('[1]List Unsorted Data - Non Unique'!$D$2:$D$100000=$D6)*('[1]List Unsorted Data - Non Unique'!$E$2:$E$100000=$E6)*('[1]List Unsorted Data - Non Unique'!$F$2:$F$100000=$F6)*('[1]List Unsorted Data - Non Unique'!$H$2:$H$100000)) -> 172 | L6: =SUMPRODUCT(($A$151:$A$100149=$A6)*($B$151:$B$100149=$B6)*($C$151:$C$100149=$C6)*($D$151:$D$100149=$D6)*($E$151:$E$100149=$E6)*($F$151:$F$100149=$F6)*($H$151:$H$100149)) -> 172 | N6: =SUMIF('List Unsorted Data - Non Unique'!$G$2:$G$100000,A6&"-"&B6&"-"&C6&"-"&D6&"-"&E6&"-"&F6,'List Unsorted Data - Non Unique'!$H$2:$H$100000) -> 172 | P6: =SUMIF('List Unsorted Data - Non Unique'!G:G,A6&"-"&B6&"-"&C6&"-"&D6&"-"&E6&"-"&F6,'List Unsorted Data - Non Unique'!H:H) -> 172 | R6: =SUMPRODUCT(('List Unsorted Data - Non Unique'!$A$2:$A$100000=$A6)*('List Unsorted Data - Non Unique'!$B$2:$B$100000=$B6)*('List Unsorted Data - Non Unique'!$C$2:$C$100000=$C6)*('List Unsorted Data - Non Unique'!$D$2:$D$100000=$D6)*('List Unsorted Data - Non Unique'!$E$2:$E$100000=$E6)*('List Unsorted Data - Non Unique'!$F$2:$F$100000=$F6)*('List Unsorted Data - Non Unique'!$H$2:$H$100000)) -> 172 | T6: =SUMPRODUCT(('List Unsorted Data - Non Unique'!$A$2:$A$100000=$A6)*('List Unsorted Data - Non Unique'!$B$2:$B$100000=$B6)*('List Unsorted Data - Non Unique'!$C$2:$C$100000=$C6)*('List Unsorted Data - Non Unique'!$D$2:$D$100000=$D6)*('List Unsorted Data - Non Unique'!$E$2:$E$100000=$E6)*('List Unsorted Data - Non Unique'!$F$2:$F$100000=$F6)*('List Unsorted Data - Non Unique'!$H$2:$H$100000)) -> 172
A7: 2015 | B7: 6 | C7: J. Lennon | D7: POT002 | E7: NC01 | F7: Actual | H7: =SUMPRODUCT(('List Unsorted Data - Non Unique'!$A$2:$A$100000=$A7)*('List Unsorted Data - Non Unique'!$B$2:$B$100000=$B7)*('List Unsorted Data - Non Unique'!$C$2:$C$100000=$C7)*('List Unsorted Data - Non Unique'!$D$2:$D$100000=$D7)*('List Unsorted Data - Non Unique'!$E$2:$E$100000=$E7)*('List Unsorted Data - Non Unique'!$F$2:$F$100000=$F7)*('List Unsorted Data - Non Unique'!$H$2:$H$100000)) -> 438 | J7: =SUMPRODUCT(('[1]List Unsorted Data - Non Unique'!$A$2:$A$100000=$A7)*('[1]List Unsorted Data - Non Unique'!$B$2:$B$100000=$B7)*('[1]List Unsorted Data - Non Unique'!$C$2:$C$100000=$C7)*('[1]List Unsorted Data - Non Unique'!$D$2:$D$100000=$D7)*('[1]List Unsorted Data - Non Unique'!$E$2:$E$100000=$E7)*('[1]List Unsorted Data - Non Unique'!$F$2:$F$100000=$F7)*('[1]List Unsorted Data - Non Unique'!$H$2:$H$100000)) -> 438 | L7: =SUMPRODUCT(($A$151:$A$100149=$A7)*($B$151:$B$100149=$B7)*($C$151:$C$100149=$C7)*($D$151:$D$100149=$D7)*($E$151:$E$100149=$E7)*($F$151:$F$100149=$F7)*($H$151:$H$100149)) -> 438 | N7: =SUMIF('List Unsorted Data - Non Unique'!$G$2:$G$100000,A7&"-"&B7&"-"&C7&"-"&D7&"-"&E7&"-"&F7,'List Unsorted Data - Non Unique'!$H$2:$H$100000) -> 438 | P7: =SUMIF('List Unsorted Data - Non Unique'!G:G,A7&"-"&B7&"-"&C7&"-"&D7&"-"&E7&"-"&F7,'List Unsorted Data - Non Unique'!H:H) -> 438 | R7: =SUMPRODUCT(('List Unsorted Data - Non Unique'!$A$2:$A$100000=$A7)*('List Unsorted Data - Non Unique'!$B$2:$B$100000=$B7)*('List Unsorted Data - Non Unique'!$C$2:$C$100000=$C7)*('List Unsorted Data - Non Unique'!$D$2:$D$100000=$D7)*('List Unsorted Data - Non Unique'!$E$2:$E$100000=$E7)*('List Unsorted Data - Non Unique'!$F$2:$F$100000=$F7)*('List Unsorted Data - Non Unique'!$H$2:$H$100000)) -> 438 | T7: =SUMPRODUCT(('List Unsorted Data - Non Unique'!$A$2:$A$100000=$A7)*('List Unsorted Data - Non Unique'!$B$2:$B$100000=$B7)*('List Unsorted Data - Non Unique'!$C$2:$C$100000=$C7)*('List Unsorted Data - Non Unique'!$D$2:$D$100000=$D7)*('List Unsorted Data - Non Unique'!$E$2:$E$100000=$E7)*('List Unsorted Data - Non Unique'!$F$2:$F$100000=$F7)*('List Unsorted Data - Non Unique'!$H$2:$H$100000)) -> 438
A8: 2014 | B8: 10 | C8: P. Buck | D8: ASL002 | E8: MN01 | F8: Forecast | H8: =SUMPRODUCT(('List Unsorted Data - Non Unique'!$A$2:$A$100000=$A8)*('List Unsorted Data - Non Unique'!$B$2:$B$100000=$B8)*('List Unsorted Data - Non Unique'!$C$2:$C$100000=$C8)*('List Unsorted Data - Non Unique'!$D$2:$D$100000=$D8)*('List Unsorted Data - Non Unique'!$E$2:$E$100000=$E8)*('List Unsorted Data - Non Unique'!$F$2:$F$100000=$F8)*('List Unsorted Data - Non Unique'!$H$2:$H$100000)) -> 160 | J8: =SUMPRODUCT(('[1]List Unsorted Data - Non Unique'!$A$2:$A$100000=$A8)*('[1]List Unsorted Data - Non Unique'!$B$2:$B$100000=$B8)*('[1]List Unsorted Data - Non Unique'!$C$2:$C$100000=$C8)*('[1]List Unsorted Data - Non Unique'!$D$2:$D$100000=$D8)*('[1]List Unsorted Data - Non Unique'!$E$2:$E$100000=$E8)*('[1]List Unsorted Data - Non Unique'!$F$2:$F$100000=$F8)*('[1]List Unsorted Data - Non Unique'!$H$2:$H$100000)) -> 160 | L8: 160 | N8: =SUMIF('List Unsorted Data - Non Unique'!$G$2:$G$100000,A8&"-"&B8&"-"&C8&"-"&D8&"-"&E8&"-"&F8,'List Unsorted Data - Non Unique'!$H$2:$H$100000) -> 160 | P8: =SUMIF('List Unsorted Data - Non Unique'!G:G,A8&"-"&B8&"-"&C8&"-"&D8&"-"&E8&"-"&F8,'List Unsorted Data - Non Unique'!H:H) -> 160 | R8: =SUMPRODUCT(('List Unsorted Data - Non Unique'!$A$2:$A$100000=$A8)*('List Unsorted Data - Non Unique'!$B$2:$B$100000=$B8)*('List Unsorted Data - Non Unique'!$C$2:$C$100000=$C8)*('List Unsorted Data - Non Unique'!$D$2:$D$100000=$D8)*('List Unsorted Data - Non Unique'!$E$2:$E$100000=$E8)*('List Unsorted Data - Non Unique'!$F$2:$F$100000=$F8)*('List Unsorted Data - Non Unique'!$H$2:$H$100000)) -> 160 | T8: =SUMPRODUCT(('List Unsorted Data - Non Unique'!$A$2:$A$100000=$A8)*('List Unsorted Data - Non Unique'!$B$2:$B$100000=$B8)*('List Unsorted Data - Non Unique'!$C$2:$C$100000=$C8)*('List Unsorted Data - Non Unique'!$D$2:$D$100000=$D8)*('List Unsorted Data - Non Unique'!$E$2:$E$100000=$E8)*('List Unsorted Data - Non Unique'!$F$2:$F$100000=$F8)*('List Unsorted Data - Non Unique'!$H$2:$H$100000)) -> 160
A9: 2014 | B9: 10 | C9: C. Underwood | D9: PRD002 | E9: VA01 | F9: Actual | H9: =SUMPRODUCT(('List Unsorted Data - Non Unique'!$A$2:$A$100000=$A9)*('List Unsorted Data - Non Unique'!$B$2:$B$100000=$B9)*('List Unsorted Data - Non Unique'!$C$2:$C$100000=$C9)*('List Unsorted Data - Non Unique'!$D$2:$D$100000=$D9)*('List Unsorted Data - Non Unique'!$E$2:$E$100000=$E9)*('List Unsorted Data - Non Unique'!$F$2:$F$100000=$F9)*('List Unsorted Data - Non Unique'!$H$2:$H$100000)) -> 158 | J9: =SUMPRODUCT(('[1]List Unsorted Data - Non Unique'!$A$2:$A$100000=$A9)*('[1]List Unsorted Data - Non Unique'!$B$2:$B$100000=$B9)*('[1]List Unsorted Data - Non Unique'!$C$2:$C$100000=$C9)*('[1]List Unsorted Data - Non Unique'!$D$2:$D$100000=$D9)*('[1]List Unsorted Data - Non Unique'!$E$2:$E$100000=$E9)*('[1]List Unsorted Data - Non Unique'!$F$2:$F$100000=$F9)*('[1]List Unsorted Data - Non Unique'!$H$2:$H$100000)) -> 158 | L9: 158 | N9: =SUMIF('List Unsorted Data - Non Unique'!$G$2:$G$100000,A9&"-"&B9&"-"&C9&"-"&D9&"-"&E9&"-"&F9,'List Unsorted Data - Non Unique'!$H$2:$H$100000) -> 158 | P9: =SUMIF('List Unsorted Data - Non Unique'!G:G,A9&"-"&B9&"-"&C9&"-"&D9&"-"&E9&"-"&F9,'List Unsorted Data - Non Unique'!H:H) -> 158 | R9: =SUMPRODUCT(('List Unsorted Data - Non Unique'!$A$2:$A$100000=$A9)*('List Unsorted Data - Non Unique'!$B$2:$B$100000=$B9)*('List Unsorted Data - Non Unique'!$C$2:$C$100000=$C9)*('List Unsorted Data - Non Unique'!$D$2:$D$100000=$D9)*('List Unsorted Data - Non Unique'!$E$2:$E$100000=$E9)*('List Unsorted Data - Non Unique'!$F$2:$F$100000=$F9)*('List Unsorted Data - Non Unique'!$H$2:$H$100000)) -> 158 | T9: =SUMPRODUCT(('List Unsorted Data - Non Unique'!$A$2:$A$100000=$A9)*('List Unsorted Data - Non Unique'!$B$2:$B$100000=$B9)*('List Unsorted Data - Non Unique'!$C$2:$C$100000=$C9)*('List Unsorted Data - Non Unique'!$D$2:$D$100000=$D9)*('List Unsorted Data - Non Unique'!$E$2:$E$100000=$E9)*('List Unsorted Data - Non Unique'!$F$2:$F$100000=$F9)*('List Unsorted Data - Non Unique'!$H$2:$H$100000)) -> 158
A10: 2016 | B10: 6 | C10: M.Mills | D10: DFG001 | E10: PA01 | F10: Forecast | H10: =SUMPRODUCT(('List Unsorted Data - Non Unique'!$A$2:$A$100000=$A10)*('List Unsorted Data - Non Unique'!$B$2:$B$100000=$B10)*('List Unsorted Data - Non Unique'!$C$2:$C$100000=$C10)*('List Unsorted Data - Non Unique'!$D$2:$D$100000=$D10)*('List Unsorted Data - Non Unique'!$E$2:$E$100000=$E10)*('List Unsorted Data - Non Unique'!$F$2:$F$100000=$F10)*('List Unsorted Data - Non Unique'!$H$2:$H$100000)) -> 58 | J10: =SUMPRODUCT(('[1]List Unsorted Data - Non Unique'!$A$2:$A$100000=$A10)*('[1]List Unsorted Data - Non Unique'!$B$2:$B$100000=$B10)*('[1]List Unsorted Data - Non Unique'!$C$2:$C$100000=$C10)*('[1]List Unsorted Data - Non Unique'!$D$2:$D$100000=$D10)*('[1]List Unsorted Data - Non Unique'!$E$2:$E$100000=$E10)*('[1]List Unsorted Data - Non Unique'!$F$2:$F$100000=$F10)*('[1]List Unsorted Data - Non Unique'!$H$2:$H$100000)) -> 58 | L10: 58 | N10: =SUMIF('List Unsorted Data - Non Unique'!$G$2:$G$100000,A10&"-"&B10&"-"&C10&"-"&D10&"-"&E10&"-"&F10,'List Unsorted Data - Non Unique'!$H$2:$H$100000) -> 58 | P10: =SUMIF('List Unsorted Data - Non Unique'!G:G,A10&"-"&B10&"-"&C10&"-"&D10&"-"&E10&"-"&F10,'List Unsorted Data - Non Unique'!H:H) -> 58 | R10: =SUMPRODUCT(('List Unsorted Data - Non Unique'!$A$2:$A$100000=$A10)*('List Unsorted Data - Non Unique'!$B$2:$B$100000=$B10)*('List Unsorted Data - Non Unique'!$C$2:$C$100000=$C10)*('List Unsorted Data - Non Unique'!$D$2:$D$100000=$D10)*('List Unsorted Data - Non Unique'!$E$2:$E$100000=$E10)*('List Unsorted Data - Non Unique'!$F$2:$F$100000=$F10)*('List Unsorted Data - Non Unique'!$H$2:$H$100000)) -> 58 | T10: =SUMPRODUCT(('List Unsorted Data - Non Unique'!$A$2:$A$100000=$A10)*('List Unsorted Data - Non Unique'!$B$2:$B$100000=$B10)*('List Unsorted Data - Non Unique'!$C$2:$C$100000=$C10)*('List Unsorted Data - Non Unique'!$D$2:$D$100000=$D10)*('List Unsorted Data - Non Unique'!$E$2:$E$100000=$E10)*('List Unsorted Data - Non Unique'!$F$2:$F$100000=$F10)*('List Unsorted Data - Non Unique'!$H$2:$H$100000)) -> 58
A11: 2016 | B11: 2 | C11: B. Paisley | D11: JKL001 | E11: AK01 | F11: Actual | H11: =SUMPRODUCT(('List Unsorted Data - Non Unique'!$A$2:$A$100000=$A11)*('List Unsorted Data - Non Unique'!$B$2:$B$100000=$B11)*('List Unsorted Data - Non Unique'!$C$2:$C$100000=$C11)*('List Unsorted Data - Non Unique'!$D$2:$D$100000=$D11)*('List Unsorted Data - Non Unique'!$E$2:$E$100000=$E11)*('List Unsorted Data - Non Unique'!$F$2:$F$100000=$F11)*('List Unsorted Data - Non Unique'!$H$2:$H$100000)) -> 35 | J11: =SUMPRODUCT(('[1]List Unsorted Data - Non Unique'!$A$2:$A$100000=$A11)*('[1]List Unsorted Data - Non Unique'!$B$2:$B$100000=$B11)*('[1]List Unsorted Data - Non Unique'!$C$2:$C$100000=$C11)*('[1]List Unsorted Data - Non Unique'!$D$2:$D$100000=$D11)*('[1]List Unsorted Data - Non Unique'!$E$2:$E$100000=$E11)*('[1]List Unsorted Data - Non Unique'!$F$2:$F$100000=$F11)*('[1]List Unsorted Data - Non Unique'!$H$2:$H$100000)) -> 35 | L11: 35 | N11: =SUMIF('List Unsorted Data - Non Unique'!$G$2:$G$100000,A11&"-"&B11&"-"&C11&"-"&D11&"-"&E11&"-"&F11,'List Unsorted Data - Non Unique'!$H$2:$H$100000) -> 35 | P11: =SUMIF('List Unsorted Data - Non Unique'!G:G,A11&"-"&B11&"-"&C11&"-"&D11&"-"&E11&"-"&F11,'List Unsorted Data - Non Unique'!H:H) -> 35 | R11: =SUMPRODUCT(('List Unsorted Data - Non Unique'!$A$2:$A$100000=$A11)*('List Unsorted Data - Non Unique'!$B$2:$B$100000=$B11)*('List Unsorted Data - Non Unique'!$C$2:$C$100000=$C11)*('List Unsorted Data - Non Unique'!$D$2:$D$100000=$D11)*('List Unsorted Data - Non Unique'!$E$2:$E$100000=$E11)*('List Unsorted Data - Non Unique'!$F$2:$F$100000=$F11)*('List Unsorted Data - Non Unique'!$H$2:$H$100000)) -> 35 | T11: =SUMPRODUCT(('List Unsorted Data - Non Unique'!$A$2:$A$100000=$A11)*('List Unsorted Data - Non Unique'!$B$2:$B$100000=$B11)*('List Unsorted Data - Non Unique'!$C$2:$C$100000=$C11)*('List Unsorted Data - Non Unique'!$D$2:$D$100000=$D11)*('List Unsorted Data - Non Unique'!$E$2:$E$100000=$E11)*('List Unsorted Data - Non Unique'!$F$2:$F$100000=$F11)*('List Unsorted Data - Non Unique'!$H$2:$H$100000)) -> 35
A12: 2016 | B12: 9 | C12: S. Crow | D12: ASL001 | E12: PA01 | F12: Forecast | H12: =SUMPRODUCT(('List Unsorted Data - Non Unique'!$A$2:$A$100000=$A12)*('List Unsorted Data - Non Unique'!$B$2:$B$100000=$B12)*('List Unsorted Data - Non Unique'!$C$2:$C$100000=$C12)*('List Unsorted Data - Non Unique'!$D$2:$D$100000=$D12)*('List Unsorted Data - Non Unique'!$E$2:$E$100000=$E12)*('List Unsorted Data - Non Unique'!$F$2:$F$100000=$F12)*('List Unsorted Data - Non Unique'!$H$2:$H$100000)) -> 137 | J12: =SUMPRODUCT(('[1]List Unsorted Data - Non Unique'!$A$2:$A$100000=$A12)*('[1]List Unsorted Data - Non Unique'!$B$2:$B$100000=$B12)*('[1]List Unsorted Data - Non Unique'!$C$2:$C$100000=$C12)*('[1]List Unsorted Data - Non Unique'!$D$2:$D$100000=$D12)*('[1]List Unsorted Data - Non Unique'!$E$2:$E$100000=$E12)*('[1]List Unsorted Data - Non Unique'!$F$2:$F$100000=$F12)*('[1]List Unsorted Data - Non Unique'!$H$2:$H$100000)) -> 137 | L12: 137 | N12: =SUMIF('List Unsorted Data - Non Unique'!$G$2:$G$100000,A12&"-"&B12&"-"&C12&"-"&D12&"-"&E12&"-"&F12,'List Unsorted Data - Non Unique'!$H$2:$H$100000) -> 137 | P12: =SUMIF('List Unsorted Data - Non Unique'!G:G,A12&"-"&B12&"-"&C12&"-"&D12&"-"&E12&"-"&F12,'List Unsorted Data - Non Unique'!H:H) -> 137 | R12: =SUMPRODUCT(('List Unsorted Data - Non Unique'!$A$2:$A$100000=$A12)*('List Unsorted Data - Non Unique'!$B$2:$B$100000=$B12)*('List Unsorted Data - Non Unique'!$C$2:$C$100000=$C12)*('List Unsorted Data - Non Unique'!$D$2:$D$100000=$D12)*('List Unsorted Data - Non Unique'!$E$2:$E$100000=$E12)*('List Unsorted Data - Non Unique'!$F$2:$F$100000=$F12)*('List Unsorted Data - Non Unique'!$H$2:$H$100000)) -> 137 | T12: =SUMPRODUCT(('List Unsorted Data - Non Unique'!$A$2:$A$100000=$A12)*('List Unsorted Data - Non Unique'!$B$2:$B$100000=$B12)*('List Unsorted Data - Non Unique'!$C$2:$C$100000=$C12)*('List Unsorted Data - Non Unique'!$D$2:$D$100000=$D12)*('List Unsorted Data - Non Unique'!$E$2:$E$100000=$E12)*('List Unsorted Data - Non Unique'!$F$2:$F$100000=$F12)*('List Unsorted Data - Non Unique'!$H$2:$H$100000)) -> 137
A13: 2015 | B13: 9 | C13: P. Buck | D13: ASL003 | E13: LA01 | F13: Forecast | H13: =SUMPRODUCT(('List Unsorted Data - Non Unique'!$A$2:$A$100000=$A13)*('List Unsorted Data - Non Unique'!$B$2:$B$100000=$B13)*('List Unsorted Data - Non Unique'!$C$2:$C$100000=$C13)*('List Unsorted Data - Non Unique'!$D$2:$D$100000=$D13)*('List Unsorted Data - Non Unique'!$E$2:$E$100000=$E13)*('List Unsorted Data - Non Unique'!$F$2:$F$100000=$F13)*('List Unsorted Data - Non Unique'!$H$2:$H$100000)) -> 459 | J13: =SUMPRODUCT(('[1]List Unsorted Data - Non Unique'!$A$2:$A$100000=$A13)*('[1]List Unsorted Data - Non Unique'!$B$2:$B$100000=$B13)*('[1]List Unsorted Data - Non Unique'!$C$2:$C$100000=$C13)*('[1]List Unsorted Data - Non Unique'!$D$2:$D$100000=$D13)*('[1]List Unsorted Data - Non Unique'!$E$2:$E$100000=$E13)*('[1]List Unsorted Data - Non Unique'!$F$2:$F$100000=$F13)*('[1]List Unsorted Data - Non Unique'!$H$2:$H$100000)) -> 459 | L13: 459 | N13: =SUMIF('List Unsorted Data - Non Unique'!$G$2:$G$100000,A13&"-"&B13&"-"&C13&"-"&D13&"-"&E13&"-"&F13,'List Unsorted Data - Non Unique'!$H$2:$H$100000) -> 459 | P13: =SUMIF('List Unsorted Data - Non Unique'!G:G,A13&"-"&B13&"-"&C13&"-"&D13&"-"&E13&"-"&F13,'List Unsorted Data - Non Unique'!H:H) -> 459 | R13: =SUMPRODUCT(('List Unsorted Data - Non Unique'!$A$2:$A$100000=$A13)*('List Unsorted Data - Non Unique'!$B$2:$B$100000=$B13)*('List Unsorted Data - Non Unique'!$C$2:$C$100000=$C13)*('List Unsorted Data - Non Unique'!$D$2:$D$100000=$D13)*('List Unsorted Data - Non Unique'!$E$2:$E$100000=$E13)*('List Unsorted Data - Non Unique'!$F$2:$F$100000=$F13)*('List Unsorted Data - Non Unique'!$H$2:$H$100000)) -> 459 | T13: =SUMPRODUCT(('List Unsorted Data - Non Unique'!$A$2:$A$100000=$A13)*('List Unsorted Data - Non Unique'!$B$2:$B$100000=$B13)*('List Unsorted Data - Non Unique'!$C$2:$C$100000=$C13)*('List Unsorted Data - Non Unique'!$D$2:$D$100000=$D13)*('List Unsorted Data - Non Unique'!$E$2:$E$100000=$E13)*('List Unsorted Data - Non Unique'!$F$2:$F$100000=$F13)*('List Unsorted Data - Non Unique'!$H$2:$H$100000)) -> 459
A14: 2015 | B14: 7 | C14: P. Buck | D14: ASL003 | E14: SD01 | F14: Actual | H14: =SUMPRODUCT(('List Unsorted Data - Non Unique'!$A$2:$A$100000=$A14)*('List Unsorted Data - Non Unique'!$B$2:$B$100000=$B14)*('List Unsorted Data - Non Unique'!$C$2:$C$100000=$C14)*('List Unsorted Data - Non Unique'!$D$2:$D$100000=$D14)*('List Unsorted Data - Non Unique'!$E$2:$E$100000=$E14)*('List Unsorted Data - Non Unique'!$F$2:$F$100000=$F14)*('List Unsorted Data - Non Unique'!$H$2:$H$100000)) -> 389 | J14: =SUMPRODUCT(('[1]List Unsorted Data - Non Unique'!$A$2:$A$100000=$A14)*('[1]List Unsorted Data - Non Unique'!$B$2:$B$100000=$B14)*('[1]List Unsorted Data - Non Unique'!$C$2:$C$100000=$C14)*('[1]List Unsorted Data - Non Unique'!$D$2:$D$100000=$D14)*('[1]List Unsorted Data - Non Unique'!$E$2:$E$100000=$E14)*('[1]List Unsorted Data - Non Unique'!$F$2:$F$100000=$F14)*('[1]List Unsorted Data - Non Unique'!$H$2:$H$100000)) -> 389 | L14: 389 | N14: =SUMIF('List Unsorted Data - Non Unique'!$G$2:$G$100000,A14&"-"&B14&"-"&C14&"-"&D14&"-"&E14&"-"&F14,'List Unsorted Data - Non Unique'!$H$2:$H$100000) -> 389 | P14: =SUMIF('List Unsorted Data - Non Unique'!G:G,A14&"-"&B14&"-"&C14&"-"&D14&"-"&E14&"-"&F14,'List Unsorted Data - Non Unique'!H:H) -> 389 | R14: =SUMPRODUCT(('List Unsorted Data - Non Unique'!$A$2:$A$100000=$A14)*('List Unsorted Data - Non Unique'!$B$2:$B$100000=$B14)*('List Unsorted Data - Non Unique'!$C$2:$C$100000=$C14)*('List Unsorted Data - Non Unique'!$D$2:$D$100000=$D14)*('List Unsorted Data - Non Unique'!$E$2:$E$100000=$E14)*('List Unsorted Data - Non Unique'!$F$2:$F$100000=$F14)*('List Unsorted Data - Non Unique'!$H$2:$H$100000)) -> 389 | T14: =SUMPRODUCT(('List Unsorted Data - Non Unique'!$A$2:$A$100000=$A14)*('List Unsorted Data - Non Unique'!$B$2:$B$100000=$B14)*('List Unsorted Data - Non Unique'!$C$2:$C$100000=$C14)*('List Unsorted Data - Non Unique'!$D$2:$D$100000=$D14)*('List Unsorted Data - Non Unique'!$E$2:$E$100000=$E14)*('List Unsorted Data - Non Unique'!$F$2:$F$100000=$F14)*('List Unsorted Data - Non Unique'!$H$2:$H$100000)) -> 389
A15: 2016 | B15: 10 | C15: P. Buck | D15: PRD002 | E15: MN01 | F15: Forecast | H15: =SUMPRODUCT(('List Unsorted Data - Non Unique'!$A$2:$A$100000=$A15)*('List Unsorted Data - Non Unique'!$B$2:$B$100000=$B15)*('List Unsorted Data - Non Unique'!$C$2:$C$100000=$C15)*('List Unsorted Data - Non Unique'!$D$2:$D$100000=$D15)*('List Unsorted Data - Non Unique'!$E$2:$E$100000=$E15)*('List Unsorted Data - Non Unique'!$F$2:$F$100000=$F15)*('List Unsorted Data - Non Unique'!$H$2:$H$100000)) -> 74 | J15: =SUMPRODUCT(('[1]List Unsorted Data - Non Unique'!$A$2:$A$100000=$A15)*('[1]List Unsorted Data - Non Unique'!$B$2:$B$100000=$B15)*('[1]List Unsorted Data - Non Unique'!$C$2:$C$100000=$C15)*('[1]List Unsorted Data - Non Unique'!$D$2:$D$100000=$D15)*('[1]List Unsorted Data - Non Unique'!$E$2:$E$100000=$E15)*('[1]List Unsorted Data - Non Unique'!$F$2:$F$100000=$F15)*('[1]List Unsorted Data - Non Unique'!$H$2:$H$100000)) -> 74 | L15: 74 | N15: =SUMIF('List Unsorted Data - Non Unique'!$G$2:$G$100000,A15&"-"&B15&"-"&C15&"-"&D15&"-"&E15&"-"&F15,'List Unsorted Data - Non Unique'!$H$2:$H$100000) -> 74 | P15: =SUMIF('List Unsorted Data - Non Unique'!G:G,A15&"-"&B15&"-"&C15&"-"&D15&"-"&E15&"-"&F15,'List Unsorted Data - Non Unique'!H:H) -> 74 | R15: =SUMPRODUCT(('List Unsorted Data - Non Unique'!$A$2:$A$100000=$A15)*('List Unsorted Data - Non Unique'!$B$2:$B$100000=$B15)*('List Unsorted Data - Non Unique'!$C$2:$C$100000=$C15)*('List Unsorted Data - Non Unique'!$D$2:$D$100000=$D15)*('List Unsorted Data - Non Unique'!$E$2:$E$100000=$E15)*('List Unsorted Data - Non Unique'!$F$2:$F$100000=$F15)*('List Unsorted Data - Non Unique'!$H$2:$H$100000)) -> 74 | T15: =SUMPRODUCT(('List Unsorted Data - Non Unique'!$A$2:$A$100000=$A15)*('List Unsorted Data - Non Unique'!$B$2:$B$100000=$B15)*('List Unsorted Data - Non Unique'!$C$2:$C$100000=$C15)*('List Unsorted Data - Non Unique'!$D$2:$D$100000=$D15)*('List Unsorted Data - Non Unique'!$E$2:$E$100000=$E15)*('List Unsorted Data - Non Unique'!$F$2:$F$100000=$F15)*('List Unsorted Data - Non Unique'!$H$2:$H$100000)) -> 74
A16: 2014 | B16: 6 | C16: B. Paisley | D16: DFG001 | E16: PA01 | F16: Actual | H16: =SUMPRODUCT(('List Unsorted Data - Non Unique'!$A$2:$A$100000=$A16)*('List Unsorted Data - Non Unique'!$B$2:$B$100000=$B16)*('List Unsorted Data - Non Unique'!$C$2:$C$100000=$C16)*('List Unsorted Data - Non Unique'!$D$2:$D$100000=$D16)*('List Unsorted Data - Non Unique'!$E$2:$E$100000=$E16)*('List Unsorted Data - Non Unique'!$F$2:$F$100000=$F16)*('List Unsorted Data - Non Unique'!$H$2:$H$100000)) -> 124 | J16: =SUMPRODUCT(('[1]List Unsorted Data - Non Unique'!$A$2:$A$100000=$A16)*('[1]List Unsorted Data - Non Unique'!$B$2:$B$100000=$B16)*('[1]List Unsorted Data - Non Unique'!$C$2:$C$100000=$C16)*('[1]List Unsorted Data - Non Unique'!$D$2:$D$100000=$D16)*('[1]List Unsorted Data - Non Unique'!$E$2:$E$100000=$E16)*('[1]List Unsorted Data - Non Unique'!$F$2:$F$100000=$F16)*('[1]List Unsorted Data - Non Unique'!$H$2:$H$100000)) -> 124 | L16: 124 | N16: =SUMIF('List Unsorted Data - Non Unique'!$G$2:$G$100000,A16&"-"&B16&"-"&C16&"-"&D16&"-"&E16&"-"&F16,'List Unsorted Data - Non Unique'!$H$2:$H$100000) -> 124 | P16: =SUMIF('List Unsorted Data - Non Unique'!G:G,A16&"-"&B16&"-"&C16&"-"&D16&"-"&E16&"-"&F16,'List Unsorted Data - Non Unique'!H:H) -> 124 | R16: =SUMPRODUCT(('List Unsorted Data - Non Unique'!$A$2:$A$100000=$A16)*('List Unsorted Data - Non Unique'!$B$2:$B$100000=$B16)*('List Unsorted Data - Non Unique'!$C$2:$C$100000=$C16)*('List Unsorted Data - Non Unique'!$D$2:$D$100000=$D16)*('List Unsorted Data - Non Unique'!$E$2:$E$100000=$E16)*('List Unsorted Data - Non Unique'!$F$2:$F$100000=$F16)*('List Unsorted Data - Non Unique'!$H$2:$H$100000)) -> 124 | T16: =SUMPRODUCT(('List Unsorted Data - Non Unique'!$A$2:$A$100000=$A16)*('List Unsorted Data - Non Unique'!$B$2:$B$100000=$B16)*('List Unsorted Data - Non Unique'!$C$2:$C$100000=$C16)*('List Unsorted Data - Non Unique'!$D$2:$D$100000=$D16)*('List Unsorted Data - Non Unique'!$E$2:$E$100000=$E16)*('List Unsorted Data - Non Unique'!$F$2:$F$100000=$F16)*('List Unsorted Data - Non Unique'!$H$2:$H$100000)) -> 124
A17: 2015 | B17: 3 | C17: J. Lennon | D17: DFG001 | E17: PA01 | F17: Actual | H17: =SUMPRODUCT(('List Unsorted Data - Non Unique'!$A$2:$A$100000=$A17)*('List Unsorted Data - Non Unique'!$B$2:$B$100000=$B17)*('List Unsorted Data - Non Unique'!$C$2:$C$100000=$C17)*('List Unsorted Data - Non Unique'!$D$2:$D$100000=$D17)*('List Unsorted Data - Non Unique'!$E$2:$E$100000=$E17)*('List Unsorted Data - Non Unique'!$F$2:$F$100000=$F17)*('List Unsorted Data - Non Unique'!$H$2:$H$100000)) -> 54 | J17: =SUMPRODUCT(('[1]List Unsorted Data - Non Unique'!$A$2:$A$100000=$A17)*('[1]List Unsorted Data - Non Unique'!$B$2:$B$100000=$B17)*('[1]List Unsorted Data - Non Unique'!$C$2:$C$100000=$C17)*('[1]List Unsorted Data - Non Unique'!$D$2:$D$100000=$D17)*('[1]List Unsorted Data - Non Unique'!$E$2:$E$100000=$E17)*('[1]List Unsorted Data - Non Unique'!$F$2:$F$100000=$F17)*('[1]List Unsorted Data - Non Unique'!$H$2:$H$100000)) -> 54 | L17: 54 | N17: =SUMIF('List Unsorted Data - Non Unique'!$G$2:$G$100000,A17&"-"&B17&"-"&C17&"-"&D17&"-"&E17&"-"&F17,'List Unsorted Data - Non Unique'!$H$2:$H$100000) -> 54 | P17: =SUMIF('List Unsorted Data - Non Unique'!G:G,A17&"-"&B17&"-"&C17&"-"&D17&"-"&E17&"-"&F17,'List Unsorted Data - Non Unique'!H:H) -> 54 | R17: =SUMPRODUCT(('List Unsorted Data - Non Unique'!$A$2:$A$100000=$A17)*('List Unsorted Data - Non Unique'!$B$2:$B$100000=$B17)*('List Unsorted Data - Non Unique'!$C$2:$C$100000=$C17)*('List Unsorted Data - Non Unique'!$D$2:$D$100000=$D17)*('List Unsorted Data - Non Unique'!$E$2:$E$100000=$E17)*('List Unsorted Data - Non Unique'!$F$2:$F$100000=$F17)*('List Unsorted Data - Non Unique'!$H$2:$H$100000)) -> 54 | T17: =SUMPRODUCT(('List Unsorted Data - Non Unique'!$A$2:$A$100000=$A17)*('List Unsorted Data - Non Unique'!$B$2:$B$100000=$B17)*('List Unsorted Data - Non Unique'!$C$2:$C$100000=$C17)*('List Unsorted Data - Non Unique'!$D$2:$D$100000=$D17)*('List Unsorted Data - Non Unique'!$E$2:$E$100000=$E17)*('List Unsorted Data - Non Unique'!$F$2:$F$100000=$F17)*('List Unsorted Data - Non Unique'!$H$2:$H$100000)) -> 54
A18: 2015 | B18: 9 | C18: M. Stipe | D18: PRD001 | E18: AK01 | F18: Forecast | H18: =SUMPRODUCT(('List Unsorted Data - Non Unique'!$A$2:$A$100000=$A18)*('List Unsorted Data - Non Unique'!$B$2:$B$100000=$B18)*('List Unsorted Data - Non Unique'!$C$2:$C$100000=$C18)*('List Unsorted Data - Non Unique'!$D$2:$D$100000=$D18)*('List Unsorted Data - Non Unique'!$E$2:$E$100000=$E18)*('List Unsorted Data - Non Unique'!$F$2:$F$100000=$F18)*('List Unsorted Data - Non Unique'!$H$2:$H$100000)) -> 99 | J18: =SUMPRODUCT(('[1]List Unsorted Data - Non Unique'!$A$2:$A$100000=$A18)*('[1]List Unsorted Data - Non Unique'!$B$2:$B$100000=$B18)*('[1]List Unsorted Data - Non Unique'!$C$2:$C$100000=$C18)*('[1]List Unsorted Data - Non Unique'!$D$2:$D$100000=$D18)*('[1]List Unsorted Data - Non Unique'!$E$2:$E$100000=$E18)*('[1]List Unsorted Data - Non Unique'!$F$2:$F$100000=$F18)*('[1]List Unsorted Data - Non Unique'!$H$2:$H$100000)) -> 99 | L18: 99 | N18: =SUMIF('List Unsorted Data - Non Unique'!$G$2:$G$100000,A18&"-"&B18&"-"&C18&"-"&D18&"-"&E18&"-"&F18,'List Unsorted Data - Non Unique'!$H$2:$H$100000) -> 99 | P18: =SUMIF('List Unsorted Data - Non Unique'!G:G,A18&"-"&B18&"-"&C18&"-"&D18&"-"&E18&"-"&F18,'List Unsorted Data - Non Unique'!H:H) -> 99 | R18: =SUMPRODUCT(('List Unsorted Data - Non Unique'!$A$2:$A$100000=$A18)*('List Unsorted Data - Non Unique'!$B$2:$B$100000=$B18)*('List Unsorted Data - Non Unique'!$C$2:$C$100000=$C18)*('List Unsorted Data - Non Unique'!$D$2:$D$100000=$D18)*('List Unsorted Data - Non Unique'!$E$2:$E$100000=$E18)*('List Unsorted Data - Non Unique'!$F$2:$F$100000=$F18)*('List Unsorted Data - Non Unique'!$H$2:$H$100000)) -> 99 | T18: =SUMPRODUCT(('List Unsorted Data - Non Unique'!$A$2:$A$100000=$A18)*('List Unsorted Data - Non Unique'!$B$2:$B$100000=$B18)*('List Unsorted Data - Non Unique'!$C$2:$C$100000=$C18)*('List Unsorted Data - Non Unique'!$D$2:$D$100000=$D18)*('List Unsorted Data - Non Unique'!$E$2:$E$100000=$E18)*('List Unsorted Data - Non Unique'!$F$2:$F$100000=$F18)*('List Unsorted Data - Non Unique'!$H$2:$H$100000)) -> 99
A19: 2015 | B19: 6 | C19: J. Lennon | D19: POT001 | E19: LA01 | F19: Forecast | H19: =SUMPRODUCT(('List Unsorted Data - Non Unique'!$A$2:$A$100000=$A19)*('List Unsorted Data - Non Unique'!$B$2:$B$100000=$B19)*('List Unsorted Data - Non Unique'!$C$2:$C$100000=$C19)*('List Unsorted Data - Non Unique'!$D$2:$D$100000=$D19)*('List Unsorted Data - Non Unique'!$E$2:$E$100000=$E19)*('List Unsorted Data - Non Unique'!$F$2:$F$100000=$F19)*('List Unsorted Data - Non Unique'!$H$2:$H$100000)) -> 316 | J19: =SUMPRODUCT(('[1]List Unsorted Data - Non Unique'!$A$2:$A$100000=$A19)*('[1]List Unsorted Data - Non Unique'!$B$2:$B$100000=$B19)*('[1]List Unsorted Data - Non Unique'!$C$2:$C$100000=$C19)*('[1]List Unsorted Data - Non Unique'!$D$2:$D$100000=$D19)*('[1]List Unsorted Data - Non Unique'!$E$2:$E$100000=$E19)*('[1]List Unsorted Data - Non Unique'!$F$2:$F$100000=$F19)*('[1]List Unsorted Data - Non Unique'!$H$2:$H$100000)) -> 316 | L19: 316 | N19: =SUMIF('List Unsorted Data - Non Unique'!$G$2:$G$100000,A19&"-"&B19&"-"&C19&"-"&D19&"-"&E19&"-"&F19,'List Unsorted Data - Non Unique'!$H$2:$H$100000) -> 316 | P19: =SUMIF('List Unsorted Data - Non Unique'!G:G,A19&"-"&B19&"-"&C19&"-"&D19&"-"&E19&"-"&F19,'List Unsorted Data - Non Unique'!H:H) -> 316 | R19: =SUMPRODUCT(('List Unsorted Data - Non Unique'!$A$2:$A$100000=$A19)*('List Unsorted Data - Non Unique'!$B$2:$B$100000=$B19)*('List Unsorted Data - Non Unique'!$C$2:$C$100000=$C19)*('List Unsorted Data - Non Unique'!$D$2:$D$100000=$D19)*('List Unsorted Data - Non Unique'!$E$2:$E$100000=$E19)*('List Unsorted Data - Non Unique'!$F$2:$F$100000=$F19)*('List Unsorted Data - Non Unique'!$H$2:$H$100000)) -> 316 | T19: =SUMPRODUCT(('List Unsorted Data - Non Unique'!$A$2:$A$100000=$A19)*('List Unsorted Data - Non Unique'!$B$2:$B$100000=$B19)*('List Unsorted Data - Non Unique'!$C$2:$C$100000=$C19)*('List Unsorted Data - Non Unique'!$D$2:$D$100000=$D19)*('List Unsorted Data - Non Unique'!$E$2:$E$100000=$E19)*('List Unsorted Data - Non Unique'!$F$2:$F$100000=$F19)*('List Unsorted Data - Non Unique'!$H$2:$H$100000)) -> 316
A20: 2014 | B20: 6 | C20: J. McVie | D20: JKL001 | E20: CA01 | F20: Actual | H20: =SUMPRODUCT(('List Unsorted Data - Non Unique'!$A$2:$A$100000=$A20)*('List Unsorted Data - Non Unique'!$B$2:$B$100000=$B20)*('List Unsorted Data - Non Unique'!$C$2:$C$100000=$C20)*('List Unsorted Data - Non Unique'!$D$2:$D$100000=$D20)*('List Unsorted Data - Non Unique'!$E$2:$E$100000=$E20)*('List Unsorted Data - Non Unique'!$F$2:$F$100000=$F20)*('List Unsorted Data - Non Unique'!$H$2:$H$100000)) -> 35 | J20: =SUMPRODUCT(('[1]List Unsorted Data - Non Unique'!$A$2:$A$100000=$A20)*('[1]List Unsorted Data - Non Unique'!$B$2:$B$100000=$B20)*('[1]List Unsorted Data - Non Unique'!$C$2:$C$100000=$C20)*('[1]List Unsorted Data - Non Unique'!$D$2:$D$100000=$D20)*('[1]List Unsorted Data - Non Unique'!$E$2:$E$100000=$E20)*('[1]List Unsorted Data - Non Unique'!$F$2:$F$100000=$F20)*('[1]List Unsorted Data - Non Unique'!$H$2:$H$100000)) -> 35 | L20: 35 | N20: =SUMIF('List Unsorted Data - Non Unique'!$G$2:$G$100000,A20&"-"&B20&"-"&C20&"-"&D20&"-"&E20&"-"&F20,'List Unsorted Data - Non Unique'!$H$2:$H$100000) -> 35 | P20: =SUMIF('List Unsorted Data - Non Unique'!G:G,A20&"-"&B20&"-"&C20&"-"&D20&"-"&E20&"-"&F20,'List Unsorted Data - Non Unique'!H:H) -> 35 | R20: =SUMPRODUCT(('List Unsorted Data - Non Unique'!$A$2:$A$100000=$A20)*('List Unsorted Data - Non Unique'!$B$2:$B$100000=$B20)*('List Unsorted Data - Non Unique'!$C$2:$C$100000=$C20)*('List Unsorted Data - Non Unique'!$D$2:$D$100000=$D20)*('List Unsorted Data - Non Unique'!$E$2:$E$100000=$E20)*('List Unsorted Data - Non Unique'!$F$2:$F$100000=$F20)*('List Unsorted Data - Non Unique'!$H$2:$H$100000)) -> 35 | T20: =SUMPRODUCT(('List Unsorted Data - Non Unique'!$A$2:$A$100000=$A20)*('List Unsorted Data - Non Unique'!$B$2:$B$100000=$B20)*('List Unsorted Data - Non Unique'!$C$2:$C$100000=$C20)*('List Unsorted Data - Non Unique'!$D$2:$D$100000=$D20)*('List Unsorted Data - Non Unique'!$E$2:$E$100000=$E20)*('List Unsorted Data - Non Unique'!$F$2:$F$100000=$F20)*('List Unsorted Data - Non Unique'!$H$2:$H$100000)) -> 35
A21: 2015 | B21: 8 | C21: J. Lennon | D21: POT001 | E21: AK01 | F21: Actual | H21: =SUMPRODUCT(('List Unsorted Data - Non Unique'!$A$2:$A$100000=$A21)*('List Unsorted Data - Non Unique'!$B$2:$B$100000=$B21)*('List Unsorted Data - Non Unique'!$C$2:$C$100000=$C21)*('List Unsorted Data - Non Unique'!$D$2:$D$100000=$D21)*('List Unsorted Data - Non Unique'!$E$2:$E$100000=$E21)*('List Unsorted Data - Non Unique'!$F$2:$F$100000=$F21)*('List Unsorted Data - Non Unique'!$H$2:$H$100000)) -> 161 | J21: =SUMPRODUCT(('[1]List Unsorted Data - Non Unique'!$A$2:$A$100000=$A21)*('[1]List Unsorted Data - Non Unique'!$B$2:$B$100000=$B21)*('[1]List Unsorted Data - Non Unique'!$C$2:$C$100000=$C21)*('[1]List Unsorted Data - Non Unique'!$D$2:$D$100000=$D21)*('[1]List Unsorted Data - Non Unique'!$E$2:$E$100000=$E21)*('[1]List Unsorted Data - Non Unique'!$F$2:$F$100000=$F21)*('[1]List Unsorted Data - Non Unique'!$H$2:$H$100000)) -> 161 | L21: 161 | N21: =SUMIF('List Unsorted Data - Non Unique'!$G$2:$G$100000,A21&"-"&B21&"-"&C21&"-"&D21&"-"&E21&"-"&F21,'List Unsorted Data - Non Unique'!$H$2:$H$100000) -> 161 | P21: =SUMIF('List Unsorted Data - Non Unique'!G:G,A21&"-"&B21&"-"&C21&"-"&D21&"-"&E21&"-"&F21,'List Unsorted Data - Non Unique'!H:H) -> 161 | R21: =SUMPRODUCT(('List Unsorted Data - Non Unique'!$A$2:$A$100000=$A21)*('List Unsorted Data - Non Unique'!$B$2:$B$100000=$B21)*('List Unsorted Data - Non Unique'!$C$2:$C$100000=$C21)*('List Unsorted Data - Non Unique'!$D$2:$D$100000=$D21)*('List Unsorted Data - Non Unique'!$E$2:$E$100000=$E21)*('List Unsorted Data - Non Unique'!$F$2:$F$100000=$F21)*('List Unsorted Data - Non Unique'!$H$2:$H$100000)) -> 161 | T21: =SUMPRODUCT(('List Unsorted Data - Non Unique'!$A$2:$A$100000=$A21)*('List Unsorted Data - Non Unique'!$B$2:$B$100000=$B21)*('List Unsorted Data - Non Unique'!$C$2:$C$100000=$C21)*('List Unsorted Data - Non Unique'!$D$2:$D$100000=$D21)*('List Unsorted Data - Non Unique'!$E$2:$E$100000=$E21)*('List Unsorted Data - Non Unique'!$F$2:$F$100000=$F21)*('List Unsorted Data - Non Unique'!$H$2:$H$100000)) -> 161
A22: 2015 | B22: 4 | C22: J. Lennon | D22: DFG001 | E22: CA01 | F22: Actual | H22: =SUMPRODUCT(('List Unsorted Data - Non Unique'!$A$2:$A$100000=$A22)*('List Unsorted Data - Non Unique'!$B$2:$B$100000=$B22)*('List Unsorted Data - Non Unique'!$C$2:$C$100000=$C22)*('List Unsorted Data - Non Unique'!$D$2:$D$100000=$D22)*('List Unsorted Data - Non Unique'!$E$2:$E$100000=$E22)*('List Unsorted Data - Non Unique'!$F$2:$F$100000=$F22)*('List Unsorted Data - Non Unique'!$H$2:$H$100000)) -> 61 | J22: =SUMPRODUCT(('[1]List Unsorted Data - Non Unique'!$A$2:$A$100000=$A22)*('[1]List Unsorted Data - Non Unique'!$B$2:$B$100000=$B22)*('[1]List Unsorted Data - Non Unique'!$C$2:$C$100000=$C22)*('[1]List Unsorted Data - Non Unique'!$D$2:$D$100000=$D22)*('[1]List Unsorted Data - Non Unique'!$E$2:$E$100000=$E22)*('[1]List Unsorted Data - Non Unique'!$F$2:$F$100000=$F22)*('[1]List Unsorted Data - Non Unique'!$H$2:$H$100000)) -> 61 | L22: 61 | N22: =SUMIF('List Unsorted Data - Non Unique'!$G$2:$G$100000,A22&"-"&B22&"-"&C22&"-"&D22&"-"&E22&"-"&F22,'List Unsorted Data - Non Unique'!$H$2:$H$100000) -> 61 | P22: =SUMIF('List Unsorted Data - Non Unique'!G:G,A22&"-"&B22&"-"&C22&"-"&D22&"-"&E22&"-"&F22,'List Unsorted Data - Non Unique'!H:H) -> 61 | R22: =SUMPRODUCT(('List Unsorted Data - Non Unique'!$A$2:$A$100000=$A22)*('List Unsorted Data - Non Unique'!$B$2:$B$100000=$B22)*('List Unsorted Data - Non Unique'!$C$2:$C$100000=$C22)*('List Unsorted Data - Non Unique'!$D$2:$D$100000=$D22)*('List Unsorted Data - Non Unique'!$E$2:$E$100000=$E22)*('List Unsorted Data - Non Unique'!$F$2:$F$100000=$F22)*('List Unsorted Data - Non Unique'!$H$2:$H$100000)) -> 61 | T22: =SUMPRODUCT(('List Unsorted Data - Non Unique'!$A$2:$A$100000=$A22)*('List Unsorted Data - Non Unique'!$B$2:$B$100000=$B22)*('List Unsorted Data - Non Unique'!$C$2:$C$100000=$C22)*('List Unsorted Data - Non Unique'!$D$2:$D$100000=$D22)*('List Unsorted Data - Non Unique'!$E$2:$E$100000=$E22)*('List Unsorted Data - Non Unique'!$F$2:$F$100000=$F22)*('List Unsorted Data - Non Unique'!$H$2:$H$100000)) -> 61
A23: 2015 | B23: 11 | C23: M.Mills | D23: ASL003 | E23: MN01 | F23: Actual | H23: =SUMPRODUCT(('List Unsorted Data - Non Unique'!$A$2:$A$100000=$A23)*('List Unsorted Data - Non Unique'!$B$2:$B$100000=$B23)*('List Unsorted Data - Non Unique'!$C$2:$C$100000=$C23)*('List Unsorted Data - Non Unique'!$D$2:$D$100000=$D23)*('List Unsorted Data - Non Unique'!$E$2:$E$100000=$E23)*('List Unsorted Data - Non Unique'!$F$2:$F$100000=$F23)*('List Unsorted Data - Non Unique'!$H$2:$H$100000)) -> 246 | J23: =SUMPRODUCT(('[1]List Unsorted Data - Non Unique'!$A$2:$A$100000=$A23)*('[1]List Unsorted Data - Non Unique'!$B$2:$B$100000=$B23)*('[1]List Unsorted Data - Non Unique'!$C$2:$C$100000=$C23)*('[1]List Unsorted Data - Non Unique'!$D$2:$D$100000=$D23)*('[1]List Unsorted Data - Non Unique'!$E$2:$E$100000=$E23)*('[1]List Unsorted Data - Non Unique'!$F$2:$F$100000=$F23)*('[1]List Unsorted Data - Non Unique'!$H$2:$H$100000)) -> 246 | L23: 246 | N23: =SUMIF('List Unsorted Data - Non Unique'!$G$2:$G$100000,A23&"-"&B23&"-"&C23&"-"&D23&"-"&E23&"-"&F23,'List Unsorted Data - Non Unique'!$H$2:$H$100000) -> 246 | P23: =SUMIF('List Unsorted Data - Non Unique'!G:G,A23&"-"&B23&"-"&C23&"-"&D23&"-"&E23&"-"&F23,'List Unsorted Data - Non Unique'!H:H) -> 246 | R23: =SUMPRODUCT(('List Unsorted Data - Non Unique'!$A$2:$A$100000=$A23)*('List Unsorted Data - Non Unique'!$B$2:$B$100000=$B23)*('List Unsorted Data - Non Unique'!$C$2:$C$100000=$C23)*('List Unsorted Data - Non Unique'!$D$2:$D$100000=$D23)*('List Unsorted Data - Non Unique'!$E$2:$E$100000=$E23)*('List Unsorted Data - Non Unique'!$F$2:$F$100000=$F23)*('List Unsorted Data - Non Unique'!$H$2:$H$100000)) -> 246 | T23: =SUMPRODUCT(('List Unsorted Data - Non Unique'!$A$2:$A$100000=$A23)*('List Unsorted Data - Non Unique'!$B$2:$B$100000=$B23)*('List Unsorted Data - Non Unique'!$C$2:$C$100000=$C23)*('List Unsorted Data - Non Unique'!$D$2:$D$100000=$D23)*('List Unsorted Data - Non Unique'!$E$2:$E$100000=$E23)*('List Unsorted Data - Non Unique'!$F$2:$F$100000=$F23)*('List Unsorted Data - Non Unique'!$H$2:$H$100000)) -> 246
A24: 2016 | B24: 2 | C24: J. Lennon | D24: ASL001 | E24: AK01 | F24: Forecast | H24: =SUMPRODUCT(('List Unsorted Data - Non Unique'!$A$2:$A$100000=$A24)*('List Unsorted Data - Non Unique'!$B$2:$B$100000=$B24)*('List Unsorted Data - Non Unique'!$C$2:$C$100000=$C24)*('List Unsorted Data - Non Unique'!$D$2:$D$100000=$D24)*('List Unsorted Data - Non Unique'!$E$2:$E$100000=$E24)*('List Unsorted Data - Non Unique'!$F$2:$F$100000=$F24)*('List Unsorted Data - Non Unique'!$H$2:$H$100000)) -> 78 | J24: =SUMPRODUCT(('[1]List Unsorted Data - Non Unique'!$A$2:$A$100000=$A24)*('[1]List Unsorted Data - Non Unique'!$B$2:$B$100000=$B24)*('[1]List Unsorted Data - Non Unique'!$C$2:$C$100000=$C24)*('[1]List Unsorted Data - Non Unique'!$D$2:$D$100000=$D24)*('[1]List Unsorted Data - Non Unique'!$E$2:$E$100000=$E24)*('[1]List Unsorted Data - Non Unique'!$F$2:$F$100000=$F24)*('[1]List Unsorted Data - Non Unique'!$H$2:$H$100000)) -> 78 | L24: 78 | N24: =SUMIF('List Unsorted Data - Non Unique'!$G$2:$G$100000,A24&"-"&B24&"-"&C24&"-"&D24&"-"&E24&"-"&F24,'List Unsorted Data - Non Unique'!$H$2:$H$100000) -> 78 | P24: =SUMIF('List Unsorted Data - Non Unique'!G:G,A24&"-"&B24&"-"&C24&"-"&D24&"-"&E24&"-"&F24,'List Unsorted Data - Non Unique'!H:H) -> 78 | R24: =SUMPRODUCT(('List Unsorted Data - Non Unique'!$A$2:$A$100000=$A24)*('List Unsorted Data - Non Unique'!$B$2:$B$100000=$B24)*('List Unsorted Data - Non Unique'!$C$2:$C$100000=$C24)*('List Unsorted Data - Non Unique'!$D$2:$D$100000=$D24)*('List Unsorted Data - Non Unique'!$E$2:$E$100000=$E24)*('List Unsorted Data - Non Unique'!$F$2:$F$100000=$F24)*('List Unsorted Data - Non Unique'!$H$2:$H$100000)) -> 78 | T24: =SUMPRODUCT(('List Unsorted Data - Non Unique'!$A$2:$A$100000=$A24)*('List Unsorted Data - Non Unique'!$B$2:$B$100000=$B24)*('List Unsorted Data - Non Unique'!$C$2:$C$100000=$C24)*('List Unsorted Data - Non Unique'!$D$2:$D$100000=$D24)*('List Unsorted Data - Non Unique'!$E$2:$E$100000=$E24)*('List Unsorted Data - Non Unique'!$F$2:$F$100000=$F24)*('List Unsorted Data - Non Unique'!$H$2:$H$100000)) -> 78
A25: 2015 | B25: 6 | C25: M.Mills | D25: ASL002 | E25: AL01 | F25: Actual | H25: =SUMPRODUCT(('List Unsorted Data - Non Unique'!$A$2:$A$100000=$A25)*('List Unsorted Data - Non Unique'!$B$2:$B$100000=$B25)*('List Unsorted Data - Non Unique'!$C$2:$C$100000=$C25)*('List Unsorted Data - Non Unique'!$D$2:$D$100000=$D25)*('List Unsorted Data - Non Unique'!$E$2:$E$100000=$E25)*('List Unsorted Data - Non Unique'!$F$2:$F$100000=$F25)*('List Unsorted Data - Non Unique'!$H$2:$H$100000)) -> 318 | J25: =SUMPRODUCT(('[1]List Unsorted Data - Non Unique'!$A$2:$A$100000=$A25)*('[1]List Unsorted Data - Non Unique'!$B$2:$B$100000=$B25)*('[1]List Unsorted Data - Non Unique'!$C$2:$C$100000=$C25)*('[1]List Unsorted Data - Non Unique'!$D$2:$D$100000=$D25)*('[1]List Unsorted Data - Non Unique'!$E$2:$E$100000=$E25)*('[1]List Unsorted Data - Non Unique'!$F$2:$F$100000=$F25)*('[1]List Unsorted Data - Non Unique'!$H$2:$H$100000)) -> 318 | L25: 318 | N25: =SUMIF('List Unsorted Data - Non Unique'!$G$2:$G$100000,A25&"-"&B25&"-"&C25&"-"&D25&"-"&E25&"-"&F25,'List Unsorted Data - Non Unique'!$H$2:$H$100000) -> 318 | P25: =SUMIF('List Unsorted Data - Non Unique'!G:G,A25&"-"&B25&"-"&C25&"-"&D25&"-"&E25&"-"&F25,'List Unsorted Data - Non Unique'!H:H) -> 318 | R25: =SUMPRODUCT(('List Unsorted Data - Non Unique'!$A$2:$A$100000=$A25)*('List Unsorted Data - Non Unique'!$B$2:$B$100000=$B25)*('List Unsorted Data - Non Unique'!$C$2:$C$100000=$C25)*('List Unsorted Data - Non Unique'!$D$2:$D$100000=$D25)*('List Unsorted Data - Non Unique'!$E$2:$E$100000=$E25)*('List Unsorted Data - Non Unique'!$F$2:$F$100000=$F25)*('List Unsorted Data - Non Unique'!$H$2:$H$100000)) -> 318 | T25: =SUMPRODUCT(('List Unsorted Data - Non Unique'!$A$2:$A$100000=$A25)*('List Unsorted Data - Non Unique'!$B$2:$B$100000=$B25)*('List Unsorted Data - Non Unique'!$C$2:$C$100000=$C25)*('List Unsorted Data - Non Unique'!$D$2:$D$100000=$D25)*('List Unsorted Data - Non Unique'!$E$2:$E$100000=$E25)*('List Unsorted Data - Non Unique'!$F$2:$F$100000=$F25)*('List Unsorted Data - Non Unique'!$H$2:$H$100000)) -> 318
A26: 2014 | B26: 4 | C26: C. Underwood | D26: JKL001 | E26: PA01 | F26: Forecast | H26: =SUMPRODUCT(('List Unsorted Data - Non Unique'!$A$2:$A$100000=$A26)*('List Unsorted Data - Non Unique'!$B$2:$B$100000=$B26)*('List Unsorted Data - Non Unique'!$C$2:$C$100000=$C26)*('List Unsorted Data - Non Unique'!$D$2:$D$100000=$D26)*('List Unsorted Data - Non Unique'!$E$2:$E$100000=$E26)*('List Unsorted Data - Non Unique'!$F$2:$F$100000=$F26)*('List Unsorted Data - Non Unique'!$H$2:$H$100000)) -> 43 | J26: =SUMPRODUCT(('[1]List Unsorted Data - Non Unique'!$A$2:$A$100000=$A26)*('[1]List Unsorted Data - Non Unique'!$B$2:$B$100000=$B26)*('[1]List Unsorted Data - Non Unique'!$C$2:$C$100000=$C26)*('[1]List Unsorted Data - Non Unique'!$D$2:$D$100000=$D26)*('[1]List Unsorted Data - Non Unique'!$E$2:$E$100000=$E26)*('[1]List Unsorted Data - Non Unique'!$F$2:$F$100000=$F26)*('[1]List Unsorted Data - Non Unique'!$H$2:$H$100000)) -> 43 | L26: 43 | N26: =SUMIF('List Unsorted Data - Non Unique'!$G$2:$G$100000,A26&"-"&B26&"-"&C26&"-"&D26&"-"&E26&"-"&F26,'List Unsorted Data - Non Unique'!$H$2:$H$100000) -> 43 | P26: =SUMIF('List Unsorted Data - Non Unique'!G:G,A26&"-"&B26&"-"&C26&"-"&D26&"-"&E26&"-"&F26,'List Unsorted Data - Non Unique'!H:H) -> 43 | R26: =SUMPRODUCT(('List Unsorted Data - Non Unique'!$A$2:$A$100000=$A26)*('List Unsorted Data - Non Unique'!$B$2:$B$100000=$B26)*('List Unsorted Data - Non Unique'!$C$2:$C$100000=$C26)*('List Unsorted Data - Non Unique'!$D$2:$D$100000=$D26)*('List Unsorted Data - Non Unique'!$E$2:$E$100000=$E26)*('List Unsorted Data - Non Unique'!$F$2:$F$100000=$F26)*('List Unsorted Data - Non Unique'!$H$2:$H$100000)) -> 43 | T26: =SUMPRODUCT(('List Unsorted Data - Non Unique'!$A$2:$A$100000=$A26)*('List Unsorted Data - Non Unique'!$B$2:$B$100000=$B26)*('List Unsorted Data - Non Unique'!$C$2:$C$100000=$C26)*('List Unsorted Data - Non Unique'!$D$2:$D$100000=$D26)*('List Unsorted Data - Non Unique'!$E$2:$E$100000=$E26)*('List Unsorted Data - Non Unique'!$F$2:$F$100000=$F26)*('List Unsorted Data - Non Unique'!$H$2:$H$100000)) -> 43
A27: 2015 | B27: 7 | C27: C. Underwood | D27: PRD002 | E27: PA01 | F27: Actual | H27: =SUMPRODUCT(('List Unsorted Data - Non Unique'!$A$2:$A$100000=$A27)*('List Unsorted Data - Non Unique'!$B$2:$B$100000=$B27)*('List Unsorted Data - Non Unique'!$C$2:$C$100000=$C27)*('List Unsorted Data - Non Unique'!$D$2:$D$100000=$D27)*('List Unsorted Data - Non Unique'!$E$2:$E$100000=$E27)*('List Unsorted Data - Non Unique'!$F$2:$F$100000=$F27)*('List Unsorted Data - Non Unique'!$H$2:$H$100000)) -> 469 | J27: =SUMPRODUCT(('[1]List Unsorted Data - Non Unique'!$A$2:$A$100000=$A27)*('[1]List Unsorted Data - Non Unique'!$B$2:$B$100000=$B27)*('[1]List Unsorted Data - Non Unique'!$C$2:$C$100000=$C27)*('[1]List Unsorted Data - Non Unique'!$D$2:$D$100000=$D27)*('[1]List Unsorted Data - Non Unique'!$E$2:$E$100000=$E27)*('[1]List Unsorted Data - Non Unique'!$F$2:$F$100000=$F27)*('[1]List Unsorted Data - Non Unique'!$H$2:$H$100000)) -> 469 | L27: 469 | N27: =SUMIF('List Unsorted Data - Non Unique'!$G$2:$G$100000,A27&"-"&B27&"-"&C27&"-"&D27&"-"&E27&"-"&F27,'List Unsorted Data - Non Unique'!$H$2:$H$100000) -> 469 | P27: =SUMIF('List Unsorted Data - Non Unique'!G:G,A27&"-"&B27&"-"&C27&"-"&D27&"-"&E27&"-"&F27,'List Unsorted Data - Non Unique'!H:H) -> 469 | R27: =SUMPRODUCT(('List Unsorted Data - Non Unique'!$A$2:$A$100000=$A27)*('List Unsorted Data - Non Unique'!$B$2:$B$100000=$B27)*('List Unsorted Data - Non Unique'!$C$2:$C$100000=$C27)*('List Unsorted Data - Non Unique'!$D$2:$D$100000=$D27)*('List Unsorted Data - Non Unique'!$E$2:$E$100000=$E27)*('List Unsorted Data - Non Unique'!$F$2:$F$100000=$F27)*('List Unsorted Data - Non Unique'!$H$2:$H$100000)) -> 469 | T27: =SUMPRODUCT(('List Unsorted Data - Non Unique'!$A$2:$A$100000=$A27)*('List Unsorted Data - Non Unique'!$B$2:$B$100000=$B27)*('List Unsorted Data - Non Unique'!$C$2:$C$100000=$C27)*('List Unsorted Data - Non Unique'!$D$2:$D$100000=$D27)*('List Unsorted Data - Non Unique'!$E$2:$E$100000=$E27)*('List Unsorted Data - Non Unique'!$F$2:$F$100000=$F27)*('List Unsorted Data - Non Unique'!$H$2:$H$100000)) -> 469
A28: 2014 | B28: 3 | C28: J. Lennon | D28: JKL001 | E28: NC01 | F28: Forecast | H28: =SUMPRODUCT(('List Unsorted Data - Non Unique'!$A$2:$A$100000=$A28)*('List Unsorted Data - Non Unique'!$B$2:$B$100000=$B28)*('List Unsorted Data - Non Unique'!$C$2:$C$100000=$C28)*('List Unsorted Data - Non Unique'!$D$2:$D$100000=$D28)*('List Unsorted Data - Non Unique'!$E$2:$E$100000=$E28)*('List Unsorted Data - Non Unique'!$F$2:$F$100000=$F28)*('List Unsorted Data - Non Unique'!$H$2:$H$100000)) -> 123 | J28: =SUMPRODUCT(('[1]List Unsorted Data - Non Unique'!$A$2:$A$100000=$A28)*('[1]List Unsorted Data - Non Unique'!$B$2:$B$100000=$B28)*('[1]List Unsorted Data - Non Unique'!$C$2:$C$100000=$C28)*('[1]List Unsorted Data - Non Unique'!$D$2:$D$100000=$D28)*('[1]List Unsorted Data - Non Unique'!$E$2:$E$100000=$E28)*('[1]List Unsorted Data - Non Unique'!$F$2:$F$100000=$F28)*('[1]List Unsorted Data - Non Unique'!$H$2:$H$100000)) -> 123 | L28: 123 | N28: =SUMIF('List Unsorted Data - Non Unique'!$G$2:$G$100000,A28&"-"&B28&"-"&C28&"-"&D28&"-"&E28&"-"&F28,'List Unsorted Data - Non Unique'!$H$2:$H$100000) -> 123 | P28: =SUMIF('List Unsorted Data - Non Unique'!G:G,A28&"-"&B28&"-"&C28&"-"&D28&"-"&E28&"-"&F28,'List Unsorted Data - Non Unique'!H:H) -> 123 | R28: =SUMPRODUCT(('List Unsorted Data - Non Unique'!$A$2:$A$100000=$A28)*('List Unsorted Data - Non Unique'!$B$2:$B$100000=$B28)*('List Unsorted Data - Non Unique'!$C$2:$C$100000=$C28)*('List Unsorted Data - Non Unique'!$D$2:$D$100000=$D28)*('List Unsorted Data - Non Unique'!$E$2:$E$100000=$E28)*('List Unsorted Data - Non Unique'!$F$2:$F$100000=$F28)*('List Unsorted Data - Non Unique'!$H$2:$H$100000)) -> 123 | T28: =SUMPRODUCT(('List Unsorted Data - Non Unique'!$A$2:$A$100000=$A28)*('List Unsorted Data - Non Unique'!$B$2:$B$100000=$B28)*('List Unsorted Data - Non Unique'!$C$2:$C$100000=$C28)*('List Unsorted Data - Non Unique'!$D$2:$D$100000=$D28)*('List Unsorted Data - Non Unique'!$E$2:$E$100000=$E28)*('List Unsorted Data - Non Unique'!$F$2:$F$100000=$F28)*('List Unsorted Data - Non Unique'!$H$2:$H$100000)) -> 123
A29: 2016 | B29: 7 | C29: B. Paisley | D29: DFG001 | E29: SD01 | F29: Actual | H29: =SUMPRODUCT(('List Unsorted Data - Non Unique'!$A$2:$A$100000=$A29)*('List Unsorted Data - Non Unique'!$B$2:$B$100000=$B29)*('List Unsorted Data - Non Unique'!$C$2:$C$100000=$C29)*('List Unsorted Data - Non Unique'!$D$2:$D$100000=$D29)*('List Unsorted Data - Non Unique'!$E$2:$E$100000=$E29)*('List Unsorted Data - Non Unique'!$F$2:$F$100000=$F29)*('List Unsorted Data - Non Unique'!$H$2:$H$100000)) -> 56 | J29: =SUMPRODUCT(('[1]List Unsorted Data - Non Unique'!$A$2:$A$100000=$A29)*('[1]List Unsorted Data - Non Unique'!$B$2:$B$100000=$B29)*('[1]List Unsorted Data - Non Unique'!$C$2:$C$100000=$C29)*('[1]List Unsorted Data - Non Unique'!$D$2:$D$100000=$D29)*('[1]List Unsorted Data - Non Unique'!$E$2:$E$100000=$E29)*('[1]List Unsorted Data - Non Unique'!$F$2:$F$100000=$F29)*('[1]List Unsorted Data - Non Unique'!$H$2:$H$100000)) -> 56 | L29: 56 | N29: =SUMIF('List Unsorted Data - Non Unique'!$G$2:$G$100000,A29&"-"&B29&"-"&C29&"-"&D29&"-"&E29&"-"&F29,'List Unsorted Data - Non Unique'!$H$2:$H$100000) -> 56 | P29: =SUMIF('List Unsorted Data - Non Unique'!G:G,A29&"-"&B29&"-"&C29&"-"&D29&"-"&E29&"-"&F29,'List Unsorted Data - Non Unique'!H:H) -> 56 | R29: =SUMPRODUCT(('List Unsorted Data - Non Unique'!$A$2:$A$100000=$A29)*('List Unsorted Data - Non Unique'!$B$2:$B$100000=$B29)*('List Unsorted Data - Non Unique'!$C$2:$C$100000=$C29)*('List Unsorted Data - Non Unique'!$D$2:$D$100000=$D29)*('List Unsorted Data - Non Unique'!$E$2:$E$100000=$E29)*('List Unsorted Data - Non Unique'!$F$2:$F$100000=$F29)*('List Unsorted Data - Non Unique'!$H$2:$H$100000)) -> 56 | T29: =SUMPRODUCT(('List Unsorted Data - Non Unique'!$A$2:$A$100000=$A29)*('List Unsorted Data - Non Unique'!$B$2:$B$100000=$B29)*('List Unsorted Data - Non Unique'!$C$2:$C$100000=$C29)*('List Unsorted Data - Non Unique'!$D$2:$D$100000=$D29)*('List Unsorted Data - Non Unique'!$E$2:$E$100000=$E29)*('List Unsorted Data - Non Unique'!$F$2:$F$100000=$F29)*('List Unsorted Data - Non Unique'!$H$2:$H$100000)) -> 56
A30: 2014 | B30: 6 | C30: J. McVie | D30: DFG001 | E30: MN01 | F30: Actual | H30: =SUMPRODUCT(('List Unsorted Data - Non Unique'!$A$2:$A$100000=$A30)*('List Unsorted Data - Non Unique'!$B$2:$B$100000=$B30)*('List Unsorted Data - Non Unique'!$C$2:$C$100000=$C30)*('List Unsorted Data - Non Unique'!$D$2:$D$100000=$D30)*('List Unsorted Data - Non Unique'!$E$2:$E$100000=$E30)*('List Unsorted Data - Non Unique'!$F$2:$F$100000=$F30)*('List Unsorted Data - Non Unique'!$H$2:$H$100000)) -> 129 | J30: =SUMPRODUCT(('[1]List Unsorted Data - Non Unique'!$A$2:$A$100000=$A30)*('[1]List Unsorted Data - Non Unique'!$B$2:$B$100000=$B30)*('[1]List Unsorted Data - Non Unique'!$C$2:$C$100000=$C30)*('[1]List Unsorted Data - Non Unique'!$D$2:$D$100000=$D30)*('[1]List Unsorted Data - Non Unique'!$E$2:$E$100000=$E30)*('[1]List Unsorted Data - Non Unique'!$F$2:$F$100000=$F30)*('[1]List Unsorted Data - Non Unique'!$H$2:$H$100000)) -> 129 | L30: 129 | N30: =SUMIF('List Unsorted Data - Non Unique'!$G$2:$G$100000,A30&"-"&B30&"-"&C30&"-"&D30&"-"&E30&"-"&F30,'List Unsorted Data - Non Unique'!$H$2:$H$100000) -> 129 | P30: =SUMIF('List Unsorted Data - Non Unique'!G:G,A30&"-"&B30&"-"&C30&"-"&D30&"-"&E30&"-"&F30,'List Unsorted Data - Non Unique'!H:H) -> 129 | R30: =SUMPRODUCT(('List Unsorted Data - Non Unique'!$A$2:$A$100000=$A30)*('List Unsorted Data - Non Unique'!$B$2:$B$100000=$B30)*('List Unsorted Data - Non Unique'!$C$2:$C$100000=$C30)*('List Unsorted Data - Non Unique'!$D$2:$D$100000=$D30)*('List Unsorted Data - Non Unique'!$E$2:$E$100000=$E30)*('List Unsorted Data - Non Unique'!$F$2:$F$100000=$F30)*('List Unsorted Data - Non Unique'!$H$2:$H$100000)) -> 129 | T30: =SUMPRODUCT(('List Unsorted Data - Non Unique'!$A$2:$A$100000=$A30)*('List Unsorted Data - Non Unique'!$B$2:$B$100000=$B30)*('List Unsorted Data - Non Unique'!$C$2:$C$100000=$C30)*('List Unsorted Data - Non Unique'!$D$2:$D$100000=$D30)*('List Unsorted Data - Non Unique'!$E$2:$E$100000=$E30)*('List Unsorted Data - Non Unique'!$F$2:$F$100000=$F30)*('List Unsorted Data - Non Unique'!$H$2:$H$100000)) -> 129
A31: 2014 | B31: 12 | C31: B. Shelton | D31: PRD002 | E31: NC01 | F31: Forecast | H31: =SUMPRODUCT(('List Unsorted Data - Non Unique'!$A$2:$A$100000=$A31)*('List Unsorted Data - Non Unique'!$B$2:$B$100000=$B31)*('List Unsorted Data - Non Unique'!$C$2:$C$100000=$C31)*('List Unsorted Data - Non Unique'!$D$2:$D$100000=$D31)*('List Unsorted Data - Non Unique'!$E$2:$E$100000=$E31)*('List Unsorted Data - Non Unique'!$F$2:$F$100000=$F31)*('List Unsorted Data - Non Unique'!$H$2:$H$100000)) -> 169 | J31: =SUMPRODUCT(('[1]List Unsorted Data - Non Unique'!$A$2:$A$100000=$A31)*('[1]List Unsorted Data - Non Unique'!$B$2:$B$100000=$B31)*('[1]List Unsorted Data - Non Unique'!$C$2:$C$100000=$C31)*('[1]List Unsorted Data - Non Unique'!$D$2:$D$100000=$D31)*('[1]List Unsorted Data - Non Unique'!$E$2:$E$100000=$E31)*('[1]List Unsorted Data - Non Unique'!$F$2:$F$100000=$F31)*('[1]List Unsorted Data - Non Unique'!$H$2:$H$100000)) -> 169 | L31: 169 | N31: =SUMIF('List Unsorted Data - Non Unique'!$G$2:$G$100000,A31&"-"&B31&"-"&C31&"-"&D31&"-"&E31&"-"&F31,'List Unsorted Data - Non Unique'!$H$2:$H$100000) -> 169 | P31: =SUMIF('List Unsorted Data - Non Unique'!G:G,A31&"-"&B31&"-"&C31&"-"&D31&"-"&E31&"-"&F31,'List Unsorted Data - Non Unique'!H:H) -> 169 | R31: =SUMPRODUCT(('List Unsorted Data - Non Unique'!$A$2:$A$100000=$A31)*('List Unsorted Data - Non Unique'!$B$2:$B$100000=$B31)*('List Unsorted Data - Non Unique'!$C$2:$C$100000=$C31)*('List Unsorted Data - Non Unique'!$D$2:$D$100000=$D31)*('List Unsorted Data - Non Unique'!$E$2:$E$100000=$E31)*('List Unsorted Data - Non Unique'!$F$2:$F$100000=$F31)*('List Unsorted Data - Non Unique'!$H$2:$H$100000)) -> 169 | T31: =SUMPRODUCT(('List Unsorted Data - Non Unique'!$A$2:$A$100000=$A31)*('List Unsorted Data - Non Unique'!$B$2:$B$100000=$B31)*('List Unsorted Data - Non Unique'!$C$2:$C$100000=$C31)*('List Unsorted Data - Non Unique'!$D$2:$D$100000=$D31)*('List Unsorted Data - Non Unique'!$E$2:$E$100000=$E31)*('List Unsorted Data - Non Unique'!$F$2:$F$100000=$F31)*('List Unsorted Data - Non Unique'!$H$2:$H$100000)) -> 169
A32: 2016 | B32: 4 | C32: R. Star | D32: PRD002 | E32: AK01 | F32: Actual | H32: =SUMPRODUCT(('List Unsorted Data - Non Unique'!$A$2:$A$100000=$A32)*('List Unsorted Data - Non Unique'!$B$2:$B$100000=$B32)*('List Unsorted Data - Non Unique'!$C$2:$C$100000=$C32)*('List Unsorted Data - Non Unique'!$D$2:$D$100000=$D32)*('List Unsorted Data - Non Unique'!$E$2:$E$100000=$E32)*('List Unsorted Data - Non Unique'!$F$2:$F$100000=$F32)*('List Unsorted Data - Non Unique'!$H$2:$H$100000)) -> 79 | J32: =SUMPRODUCT(('[1]List Unsorted Data - Non Unique'!$A$2:$A$100000=$A32)*('[1]List Unsorted Data - Non Unique'!$B$2:$B$100000=$B32)*('[1]List Unsorted Data - Non Unique'!$C$2:$C$100000=$C32)*('[1]List Unsorted Data - Non Unique'!$D$2:$D$100000=$D32)*('[1]List Unsorted Data - Non Unique'!$E$2:$E$100000=$E32)*('[1]List Unsorted Data - Non Unique'!$F$2:$F$100000=$F32)*('[1]List Unsorted Data - Non Unique'!$H$2:$H$100000)) -> 79 | L32: 79 | N32: =SUMIF('List Unsorted Data - Non Unique'!$G$2:$G$100000,A32&"-"&B32&"-"&C32&"-"&D32&"-"&E32&"-"&F32,'List Unsorted Data - Non Unique'!$H$2:$H$100000) -> 79 | P32: =SUMIF('List Unsorted Data - Non Unique'!G:G,A32&"-"&B32&"-"&C32&"-"&D32&"-"&E32&"-"&F32,'List Unsorted Data - Non Unique'!H:H) -> 79 | R32: =SUMPRODUCT(('List Unsorted Data - Non Unique'!$A$2:$A$100000=$A32)*('List Unsorted Data - Non Unique'!$B$2:$B$100000=$B32)*('List Unsorted Data - Non Unique'!$C$2:$C$100000=$C32)*('List Unsorted Data - Non Unique'!$D$2:$D$100000=$D32)*('List Unsorted Data - Non Unique'!$E$2:$E$100000=$E32)*('List Unsorted Data - Non Unique'!$F$2:$F$100000=$F32)*('List Unsorted Data - Non Unique'!$H$2:$H$100000)) -> 79 | T32: =SUMPRODUCT(('List Unsorted Data - Non Unique'!$A$2:$A$100000=$A32)*('List Unsorted Data - Non Unique'!$B$2:$B$100000=$B32)*('List Unsorted Data - Non Unique'!$C$2:$C$100000=$C32)*('List Unsorted Data - Non Unique'!$D$2:$D$100000=$D32)*('List Unsorted Data - Non Unique'!$E$2:$E$100000=$E32)*('List Unsorted Data - Non Unique'!$F$2:$F$100000=$F32)*('List Unsorted Data - Non Unique'!$H$2:$H$100000)) -> 79
A33: 2014 | B33: 9 | C33: R. Star | D33: JKL001 | E33: CA01 | F33: Actual | H33: =SUMPRODUCT(('List Unsorted Data - Non Unique'!$A$2:$A$100000=$A33)*('List Unsorted Data - Non Unique'!$B$2:$B$100000=$B33)*('List Unsorted Data - Non Unique'!$C$2:$C$100000=$C33)*('List Unsorted Data - Non Unique'!$D$2:$D$100000=$D33)*('List Unsorted Data - Non Unique'!$E$2:$E$100000=$E33)*('List Unsorted Data - Non Unique'!$F$2:$F$100000=$F33)*('List Unsorted Data - Non Unique'!$H$2:$H$100000)) -> 204 | J33: =SUMPRODUCT(('[1]List Unsorted Data - Non Unique'!$A$2:$A$100000=$A33)*('[1]List Unsorted Data - Non Unique'!$B$2:$B$100000=$B33)*('[1]List Unsorted Data - Non Unique'!$C$2:$C$100000=$C33)*('[1]List Unsorted Data - Non Unique'!$D$2:$D$100000=$D33)*('[1]List Unsorted Data - Non Unique'!$E$2:$E$100000=$E33)*('[1]List Unsorted Data - Non Unique'!$F$2:$F$100000=$F33)*('[1]List Unsorted Data - Non Unique'!$H$2:$H$100000)) -> 204 | L33: 204 | N33: =SUMIF('List Unsorted Data - Non Unique'!$G$2:$G$100000,A33&"-"&B33&"-"&C33&"-"&D33&"-"&E33&"-"&F33,'List Unsorted Data - Non Unique'!$H$2:$H$100000) -> 204 | P33: =SUMIF('List Unsorted Data - Non Unique'!G:G,A33&"-"&B33&"-"&C33&"-"&D33&"-"&E33&"-"&F33,'List Unsorted Data - Non Unique'!H:H) -> 204 | R33: =SUMPRODUCT(('List Unsorted Data - Non Unique'!$A$2:$A$100000=$A33)*('List Unsorted Data - Non Unique'!$B$2:$B$100000=$B33)*('List Unsorted Data - Non Unique'!$C$2:$C$100000=$C33)*('List Unsorted Data - Non Unique'!$D$2:$D$100000=$D33)*('List Unsorted Data - Non Unique'!$E$2:$E$100000=$E33)*('List Unsorted Data - Non Unique'!$F$2:$F$100000=$F33)*('List Unsorted Data - Non Unique'!$H$2:$H$100000)) -> 204 | T33: =SUMPRODUCT(('List Unsorted Data - Non Unique'!$A$2:$A$100000=$A33)*('List Unsorted Data - Non Unique'!$B$2:$B$100000=$B33)*('List Unsorted Data - Non Unique'!$C$2:$C$100000=$C33)*('List Unsorted Data - Non Unique'!$D$2:$D$100000=$D33)*('List Unsorted Data - Non Unique'!$E$2:$E$100000=$E33)*('List Unsorted Data - Non Unique'!$F$2:$F$100000=$F33)*('List Unsorted Data - Non Unique'!$H$2:$H$100000)) -> 204
A34: 2014 | B34: 2 | C34: M. Stipe | D34: ASL003 | E34: SD01 | F34: Forecast | H34: =SUMPRODUCT(('List Unsorted Data - Non Unique'!$A$2:$A$100000=$A34)*('List Unsorted Data - Non Unique'!$B$2:$B$100000=$B34)*('List Unsorted Data - Non Unique'!$C$2:$C$100000=$C34)*('List Unsorted Data - Non Unique'!$D$2:$D$100000=$D34)*('List Unsorted Data - Non Unique'!$E$2:$E$100000=$E34)*('List Unsorted Data - Non Unique'!$F$2:$F$100000=$F34)*('List Unsorted Data - Non Unique'!$H$2:$H$100000)) -> 182 | J34: =SUMPRODUCT(('[1]List Unsorted Data - Non Unique'!$A$2:$A$100000=$A34)*('[1]List Unsorted Data - Non Unique'!$B$2:$B$100000=$B34)*('[1]List Unsorted Data - Non Unique'!$C$2:$C$100000=$C34)*('[1]List Unsorted Data - Non Unique'!$D$2:$D$100000=$D34)*('[1]List Unsorted Data - Non Unique'!$E$2:$E$100000=$E34)*('[1]List Unsorted Data - Non Unique'!$F$2:$F$100000=$F34)*('[1]List Unsorted Data - Non Unique'!$H$2:$H$100000)) -> 182 | L34: 182 | N34: =SUMIF('List Unsorted Data - Non Unique'!$G$2:$G$100000,A34&"-"&B34&"-"&C34&"-"&D34&"-"&E34&"-"&F34,'List Unsorted Data - Non Unique'!$H$2:$H$100000) -> 182 | P34: =SUMIF('List Unsorted Data - Non Unique'!G:G,A34&"-"&B34&"-"&C34&"-"&D34&"-"&E34&"-"&F34,'List Unsorted Data - Non Unique'!H:H) -> 182 | R34: =SUMPRODUCT(('List Unsorted Data - Non Unique'!$A$2:$A$100000=$A34)*('List Unsorted Data - Non Unique'!$B$2:$B$100000=$B34)*('List Unsorted Data - Non Unique'!$C$2:$C$100000=$C34)*('List Unsorted Data - Non Unique'!$D$2:$D$100000=$D34)*('List Unsorted Data - Non Unique'!$E$2:$E$100000=$E34)*('List Unsorted Data - Non Unique'!$F$2:$F$100000=$F34)*('List Unsorted Data - Non Unique'!$H$2:$H$100000)) -> 182 | T34: =SUMPRODUCT(('List Unsorted Data - Non Unique'!$A$2:$A$100000=$A34)*('List Unsorted Data - Non Unique'!$B$2:$B$100000=$B34)*('List Unsorted Data - Non Unique'!$C$2:$C$100000=$C34)*('List Unsorted Data - Non Unique'!$D$2:$D$100000=$D34)*('List Unsorted Data - Non Unique'!$E$2:$E$100000=$E34)*('List Unsorted Data - Non Unique'!$F$2:$F$100000=$F34)*('List Unsorted Data - Non Unique'!$H$2:$H$100000)) -> 182
A35: 2015 | B35: 9 | C35: M. Stipe | D35: ASL002 | E35: SD01 | F35: Forecast | H35: =SUMPRODUCT(('List Unsorted Data - Non Unique'!$A$2:$A$100000=$A35)*('List Unsorted Data - Non Unique'!$B$2:$B$100000=$B35)*('List Unsorted Data - Non Unique'!$C$2:$C$100000=$C35)*('List Unsorted Data - Non Unique'!$D$2:$D$100000=$D35)*('List Unsorted Data - Non Unique'!$E$2:$E$100000=$E35)*('List Unsorted Data - Non Unique'!$F$2:$F$100000=$F35)*('List Unsorted Data - Non Unique'!$H$2:$H$100000)) -> 102 | J35: =SUMPRODUCT(('[1]List Unsorted Data - Non Unique'!$A$2:$A$100000=$A35)*('[1]List Unsorted Data - Non Unique'!$B$2:$B$100000=$B35)*('[1]List Unsorted Data - Non Unique'!$C$2:$C$100000=$C35)*('[1]List Unsorted Data - Non Unique'!$D$2:$D$100000=$D35)*('[1]List Unsorted Data - Non Unique'!$E$2:$E$100000=$E35)*('[1]List Unsorted Data - Non Unique'!$F$2:$F$100000=$F35)*('[1]List Unsorted Data - Non Unique'!$H$2:$H$100000)) -> 102 | L35: 102 | N35: =SUMIF('List Unsorted Data - Non Unique'!$G$2:$G$100000,A35&"-"&B35&"-"&C35&"-"&D35&"-"&E35&"-"&F35,'List Unsorted Data - Non Unique'!$H$2:$H$100000) -> 102 | P35: =SUMIF('List Unsorted Data - Non Unique'!G:G,A35&"-"&B35&"-"&C35&"-"&D35&"-"&E35&"-"&F35,'List Unsorted Data - Non Unique'!H:H) -> 102 | R35: =SUMPRODUCT(('List Unsorted Data - Non Unique'!$A$2:$A$100000=$A35)*('List Unsorted Data - Non Unique'!$B$2:$B$100000=$B35)*('List Unsorted Data - Non Unique'!$C$2:$C$100000=$C35)*('List Unsorted Data - Non Unique'!$D$2:$D$100000=$D35)*('List Unsorted Data - Non Unique'!$E$2:$E$100000=$E35)*('List Unsorted Data - Non Unique'!$F$2:$F$100000=$F35)*('List Unsorted Data - Non Unique'!$H$2:$H$100000)) -> 102 | T35: =SUMPRODUCT(('List Unsorted Data - Non Unique'!$A$2:$A$100000=$A35)*('List Unsorted Data - Non Unique'!$B$2:$B$100000=$B35)*('List Unsorted Data - Non Unique'!$C$2:$C$100000=$C35)*('List Unsorted Data - Non Unique'!$D$2:$D$100000=$D35)*('List Unsorted Data - Non Unique'!$E$2:$E$100000=$E35)*('List Unsorted Data - Non Unique'!$F$2:$F$100000=$F35)*('List Unsorted Data - Non Unique'!$H$2:$H$100000)) -> 102
A36: 2014 | B36: 4 | C36: J. Lennon | D36: ASL001 | E36: MN01 | F36: Actual | H36: =SUMPRODUCT(('List Unsorted Data - Non Unique'!$A$2:$A$100000=$A36)*('List Unsorted Data - Non Unique'!$B$2:$B$100000=$B36)*('List Unsorted Data - Non Unique'!$C$2:$C$100000=$C36)*('List Unsorted Data - Non Unique'!$D$2:$D$100000=$D36)*('List Unsorted Data - Non Unique'!$E$2:$E$100000=$E36)*('List Unsorted Data - Non Unique'!$F$2:$F$100000=$F36)*('List Unsorted Data - Non Unique'!$H$2:$H$100000)) -> 297 | J36: =SUMPRODUCT(('[1]List Unsorted Data - Non Unique'!$A$2:$A$100000=$A36)*('[1]List Unsorted Data - Non Unique'!$B$2:$B$100000=$B36)*('[1]List Unsorted Data - Non Unique'!$C$2:$C$100000=$C36)*('[1]List Unsorted Data - Non Unique'!$D$2:$D$100000=$D36)*('[1]List Unsorted Data - Non Unique'!$E$2:$E$100000=$E36)*('[1]List Unsorted Data - Non Unique'!$F$2:$F$100000=$F36)*('[1]List Unsorted Data - Non Unique'!$H$2:$H$100000)) -> 297 | L36: 297 | N36: =SUMIF('List Unsorted Data - Non Unique'!$G$2:$G$100000,A36&"-"&B36&"-"&C36&"-"&D36&"-"&E36&"-"&F36,'List Unsorted Data - Non Unique'!$H$2:$H$100000) -> 297 | P36: =SUMIF('List Unsorted Data - Non Unique'!G:G,A36&"-"&B36&"-"&C36&"-"&D36&"-"&E36&"-"&F36,'List Unsorted Data - Non Unique'!H:H) -> 297 | R36: =SUMPRODUCT(('List Unsorted Data - Non Unique'!$A$2:$A$100000=$A36)*('List Unsorted Data - Non Unique'!$B$2:$B$100000=$B36)*('List Unsorted Data - Non Unique'!$C$2:$C$100000=$C36)*('List Unsorted Data - Non Unique'!$D$2:$D$100000=$D36)*('List Unsorted Data - Non Unique'!$E$2:$E$100000=$E36)*('List Unsorted Data - Non Unique'!$F$2:$F$100000=$F36)*('List Unsorted Data - Non Unique'!$H$2:$H$100000)) -> 297 | T36: =SUMPRODUCT(('List Unsorted Data - Non Unique'!$A$2:$A$100000=$A36)*('List Unsorted Data - Non Unique'!$B$2:$B$100000=$B36)*('List Unsorted Data - Non Unique'!$C$2:$C$100000=$C36)*('List Unsorted Data - Non Unique'!$D$2:$D$100000=$D36)*('List Unsorted Data - Non Unique'!$E$2:$E$100000=$E36)*('List Unsorted Data - Non Unique'!$F$2:$F$100000=$F36)*('List Unsorted Data - Non Unique'!$H$2:$H$100000)) -> 297
A37: 2016 | B37: 5 | C37: M.Mills | D37: PRD002 | E37: CA01 | F37: Actual | H37: =SUMPRODUCT(('List Unsorted Data - Non Unique'!$A$2:$A$100000=$A37)*('List Unsorted Data - Non Unique'!$B$2:$B$100000=$B37)*('List Unsorted Data - Non Unique'!$C$2:$C$100000=$C37)*('List Unsorted Data - Non Unique'!$D$2:$D$100000=$D37)*('List Unsorted Data - Non Unique'!$E$2:$E$100000=$E37)*('List Unsorted Data - Non Unique'!$F$2:$F$100000=$F37)*('List Unsorted Data - Non Unique'!$H$2:$H$100000)) -> 157 | J37: =SUMPRODUCT(('[1]List Unsorted Data - Non Unique'!$A$2:$A$100000=$A37)*('[1]List Unsorted Data - Non Unique'!$B$2:$B$100000=$B37)*('[1]List Unsorted Data - Non Unique'!$C$2:$C$100000=$C37)*('[1]List Unsorted Data - Non Unique'!$D$2:$D$100000=$D37)*('[1]List Unsorted Data - Non Unique'!$E$2:$E$100000=$E37)*('[1]List Unsorted Data - Non Unique'!$F$2:$F$100000=$F37)*('[1]List Unsorted Data - Non Unique'!$H$2:$H$100000)) -> 157 | L37: 157 | N37: =SUMIF('List Unsorted Data - Non Unique'!$G$2:$G$100000,A37&"-"&B37&"-"&C37&"-"&D37&"-"&E37&"-"&F37,'List Unsorted Data - Non Unique'!$H$2:$H$100000) -> 157 | P37: =SUMIF('List Unsorted Data - Non Unique'!G:G,A37&"-"&B37&"-"&C37&"-"&D37&"-"&E37&"-"&F37,'List Unsorted Data - Non Unique'!H:H) -> 157 | R37: =SUMPRODUCT(('List Unsorted Data - Non Unique'!$A$2:$A$100000=$A37)*('List Unsorted Data - Non Unique'!$B$2:$B$100000=$B37)*('List Unsorted Data - Non Unique'!$C$2:$C$100000=$C37)*('List Unsorted Data - Non Unique'!$D$2:$D$100000=$D37)*('List Unsorted Data - Non Unique'!$E$2:$E$100000=$E37)*('List Unsorted Data - Non Unique'!$F$2:$F$100000=$F37)*('List Unsorted Data - Non Unique'!$H$2:$H$100000)) -> 157 | T37: =SUMPRODUCT(('List Unsorted Data - Non Unique'!$A$2:$A$100000=$A37)*('List Unsorted Data - Non Unique'!$B$2:$B$100000=$B37)*('List Unsorted Data - Non Unique'!$C$2:$C$100000=$C37)*('List Unsorted Data - Non Unique'!$D$2:$D$100000=$D37)*('List Unsorted Data - Non Unique'!$E$2:$E$100000=$E37)*('List Unsorted Data - Non Unique'!$F$2:$F$100000=$F37)*('List Unsorted Data - Non Unique'!$H$2:$H$100000)) -> 157
A38: 2015 | B38: 7 | C38: P. Buck | D38: ASL003 | E38: VA01 | F38: Actual | H38: =SUMPRODUCT(('List Unsorted Data - Non Unique'!$A$2:$A$100000=$A38)*('List Unsorted Data - Non Unique'!$B$2:$B$100000=$B38)*('List Unsorted Data - Non Unique'!$C$2:$C$100000=$C38)*('List Unsorted Data - Non Unique'!$D$2:$D$100000=$D38)*('List Unsorted Data - Non Unique'!$E$2:$E$100000=$E38)*('List Unsorted Data - Non Unique'!$F$2:$F$100000=$F38)*('List Unsorted Data - Non Unique'!$H$2:$H$100000)) -> 188 | J38: =SUMPRODUCT(('[1]List Unsorted Data - Non Unique'!$A$2:$A$100000=$A38)*('[1]List Unsorted Data - Non Unique'!$B$2:$B$100000=$B38)*('[1]List Unsorted Data - Non Unique'!$C$2:$C$100000=$C38)*('[1]List Unsorted Data - Non Unique'!$D$2:$D$100000=$D38)*('[1]List Unsorted Data - Non Unique'!$E$2:$E$100000=$E38)*('[1]List Unsorted Data - Non Unique'!$F$2:$F$100000=$F38)*('[1]List Unsorted Data - Non Unique'!$H$2:$H$100000)) -> 188 | L38: 188 | N38: =SUMIF('List Unsorted Data - Non Unique'!$G$2:$G$100000,A38&"-"&B38&"-"&C38&"-"&D38&"-"&E38&"-"&F38,'List Unsorted Data - Non Unique'!$H$2:$H$100000) -> 188 | P38: =SUMIF('List Unsorted Data - Non Unique'!G:G,A38&"-"&B38&"-"&C38&"-"&D38&"-"&E38&"-"&F38,'List Unsorted Data - Non Unique'!H:H) -> 188 | R38: =SUMPRODUCT(('List Unsorted Data - Non Unique'!$A$2:$A$100000=$A38)*('List Unsorted Data - Non Unique'!$B$2:$B$100000=$B38)*('List Unsorted Data - Non Unique'!$C$2:$C$100000=$C38)*('List Unsorted Data - Non Unique'!$D$2:$D$100000=$D38)*('List Unsorted Data - Non Unique'!$E$2:$E$100000=$E38)*('List Unsorted Data - Non Unique'!$F$2:$F$100000=$F38)*('List Unsorted Data - Non Unique'!$H$2:$H$100000)) -> 188 | T38: =SUMPRODUCT(('List Unsorted Data - Non Unique'!$A$2:$A$100000=$A38)*('List Unsorted Data - Non Unique'!$B$2:$B$100000=$B38)*('List Unsorted Data - Non Unique'!$C$2:$C$100000=$C38)*('List Unsorted Data - Non Unique'!$D$2:$D$100000=$D38)*('List Unsorted Data - Non Unique'!$E$2:$E$100000=$E38)*('List Unsorted Data - Non Unique'!$F$2:$F$100000=$F38)*('List Unsorted Data - Non Unique'!$H$2:$H$100000)) -> 188
A39: 2015 | B39: 6 | C39: B. Shelton | D39: POT002 | E39: LA01 | F39: Forecast | H39: =SUMPRODUCT(('List Unsorted Data - Non Unique'!$A$2:$A$100000=$A39)*('List Unsorted Data - Non Unique'!$B$2:$B$100000=$B39)*('List Unsorted Data - Non Unique'!$C$2:$C$100000=$C39)*('List Unsorted Data - Non Unique'!$D$2:$D$100000=$D39)*('List Unsorted Data - Non Unique'!$E$2:$E$100000=$E39)*('List Unsorted Data - Non Unique'!$F$2:$F$100000=$F39)*('List Unsorted Data - Non Unique'!$H$2:$H$100000)) -> 525 | J39: =SUMPRODUCT(('[1]List Unsorted Data - Non Unique'!$A$2:$A$100000=$A39)*('[1]List Unsorted Data - Non Unique'!$B$2:$B$100000=$B39)*('[1]List Unsorted Data - Non Unique'!$C$2:$C$100000=$C39)*('[1]List Unsorted Data - Non Unique'!$D$2:$D$100000=$D39)*('[1]List Unsorted Data - Non Unique'!$E$2:$E$100000=$E39)*('[1]List Unsorted Data - Non Unique'!$F$2:$F$100000=$F39)*('[1]List Unsorted Data - Non Unique'!$H$2:$H$100000)) -> 525 | L39: 525 | N39: =SUMIF('List Unsorted Data - Non Unique'!$G$2:$G$100000,A39&"-"&B39&"-"&C39&"-"&D39&"-"&E39&"-"&F39,'List Unsorted Data - Non Unique'!$H$2:$H$100000) -> 525 | P39: =SUMIF('List Unsorted Data - Non Unique'!G:G,A39&"-"&B39&"-"&C39&"-"&D39&"-"&E39&"-"&F39,'List Unsorted Data - Non Unique'!H:H) -> 525 | R39: =SUMPRODUCT(('List Unsorted Data - Non Unique'!$A$2:$A$100000=$A39)*('List Unsorted Data - Non Unique'!$B$2:$B$100000=$B39)*('List Unsorted Data - Non Unique'!$C$2:$C$100000=$C39)*('List Unsorted Data - Non Unique'!$D$2:$D$100000=$D39)*('List Unsorted Data - Non Unique'!$E$2:$E$100000=$E39)*('List Unsorted Data - Non Unique'!$F$2:$F$100000=$F39)*('List Unsorted Data - Non Unique'!$H$2:$H$100000)) -> 525 | T39: =SUMPRODUCT(('List Unsorted Data - Non Unique'!$A$2:$A$100000=$A39)*('List Unsorted Data - Non Unique'!$B$2:$B$100000=$B39)*('List Unsorted Data - Non Unique'!$C$2:$C$100000=$C39)*('List Unsorted Data - Non Unique'!$D$2:$D$100000=$D39)*('List Unsorted Data - Non Unique'!$E$2:$E$100000=$E39)*('List Unsorted Data - Non Unique'!$F$2:$F$100000=$F39)*('List Unsorted Data - Non Unique'!$H$2:$H$100000)) -> 525
A40: 2016 | B40: 8 | C40: B. Paisley | D40: POT001 | E40: VA01 | F40: Actual | H40: =SUMPRODUCT(('List Unsorted Data - Non Unique'!$A$2:$A$100000=$A40)*('List Unsorted Data - Non Unique'!$B$2:$B$100000=$B40)*('List Unsorted Data - Non Unique'!$C$2:$C$100000=$C40)*('List Unsorted Data - Non Unique'!$D$2:$D$100000=$D40)*('List Unsorted Data - Non Unique'!$E$2:$E$100000=$E40)*('List Unsorted Data - Non Unique'!$F$2:$F$100000=$F40)*('List Unsorted Data - Non Unique'!$H$2:$H$100000)) -> 153 | J40: =SUMPRODUCT(('[1]List Unsorted Data - Non Unique'!$A$2:$A$100000=$A40)*('[1]List Unsorted Data - Non Unique'!$B$2:$B$100000=$B40)*('[1]List Unsorted Data - Non Unique'!$C$2:$C$100000=$C40)*('[1]List Unsorted Data - Non Unique'!$D$2:$D$100000=$D40)*('[1]List Unsorted Data - Non Unique'!$E$2:$E$100000=$E40)*('[1]List Unsorted Data - Non Unique'!$F$2:$F$100000=$F40)*('[1]List Unsorted Data - Non Unique'!$H$2:$H$100000)) -> 153 | L40: 153 | N40: =SUMIF('List Unsorted Data - Non Unique'!$G$2:$G$100000,A40&"-"&B40&"-"&C40&"-"&D40&"-"&E40&"-"&F40,'List Unsorted Data - Non Unique'!$H$2:$H$100000) -> 153 | P40: =SUMIF('List Unsorted Data - Non Unique'!G:G,A40&"-"&B40&"-"&C40&"-"&D40&"-"&E40&"-"&F40,'List Unsorted Data - Non Unique'!H:H) -> 153 | R40: =SUMPRODUCT(('List Unsorted Data - Non Unique'!$A$2:$A$100000=$A40)*('List Unsorted Data - Non Unique'!$B$2:$B$100000=$B40)*('List Unsorted Data - Non Unique'!$C$2:$C$100000=$C40)*('List Unsorted Data - Non Unique'!$D$2:$D$100000=$D40)*('List Unsorted Data - Non Unique'!$E$2:$E$100000=$E40)*('List Unsorted Data - Non Unique'!$F$2:$F$100000=$F40)*('List Unsorted Data - Non Unique'!$H$2:$H$100000)) -> 153 | T40: =SUMPRODUCT(('List Unsorted Data - Non Unique'!$A$2:$A$100000=$A40)*('List Unsorted Data - Non Unique'!$B$2:$B$100000=$B40)*('List Unsorted Data - Non Unique'!$C$2:$C$100000=$C40)*('List Unsorted Data - Non Unique'!$D$2:$D$100000=$D40)*('List Unsorted Data - Non Unique'!$E$2:$E$100000=$E40)*('List Unsorted Data - Non Unique'!$F$2:$F$100000=$F40)*('List Unsorted Data - Non Unique'!$H$2:$H$100000)) -> 153
A41: 2015 | B41: 8 | C41: J. McVie | D41: PRD002 | E41: NC01 | F41: Actual | H41: =SUMPRODUCT(('List Unsorted Data - Non Unique'!$A$2:$A$100000=$A41)*('List Unsorted Data - Non Unique'!$B$2:$B$100000=$B41)*('List Unsorted Data - Non Unique'!$C$2:$C$100000=$C41)*('List Unsorted Data - Non Unique'!$D$2:$D$100000=$D41)*('List Unsorted Data - Non Unique'!$E$2:$E$100000=$E41)*('List Unsorted Data - Non Unique'!$F$2:$F$100000=$F41)*('List Unsorted Data - Non Unique'!$H$2:$H$100000)) -> 78 | J41: =SUMPRODUCT(('[1]List Unsorted Data - Non Unique'!$A$2:$A$100000=$A41)*('[1]List Unsorted Data - Non Unique'!$B$2:$B$100000=$B41)*('[1]List Unsorted Data - Non Unique'!$C$2:$C$100000=$C41)*('[1]List Unsorted Data - Non Unique'!$D$2:$D$100000=$D41)*('[1]List Unsorted Data - Non Unique'!$E$2:$E$100000=$E41)*('[1]List Unsorted Data - Non Unique'!$F$2:$F$100000=$F41)*('[1]List Unsorted Data - Non Unique'!$H$2:$H$100000)) -> 78 | L41: 78 | N41: =SUMIF('List Unsorted Data - Non Unique'!$G$2:$G$100000,A41&"-"&B41&"-"&C41&"-"&D41&"-"&E41&"-"&F41,'List Unsorted Data - Non Unique'!$H$2:$H$100000) -> 78 | P41: =SUMIF('List Unsorted Data - Non Unique'!G:G,A41&"-"&B41&"-"&C41&"-"&D41&"-"&E41&"-"&F41,'List Unsorted Data - Non Unique'!H:H) -> 78 | R41: =SUMPRODUCT(('List Unsorted Data - Non Unique'!$A$2:$A$100000=$A41)*('List Unsorted Data - Non Unique'!$B$2:$B$100000=$B41)*('List Unsorted Data - Non Unique'!$C$2:$C$100000=$C41)*('List Unsorted Data - Non Unique'!$D$2:$D$100000=$D41)*('List Unsorted Data - Non Unique'!$E$2:$E$100000=$E41)*('List Unsorted Data - Non Unique'!$F$2:$F$100000=$F41)*('List Unsorted Data - Non Unique'!$H$2:$H$100000)) -> 78 | T41: =SUMPRODUCT(('List Unsorted Data - Non Unique'!$A$2:$A$100000=$A41)*('List Unsorted Data - Non Unique'!$B$2:$B$100000=$B41)*('List Unsorted Data - Non Unique'!$C$2:$C$100000=$C41)*('List Unsorted Data - Non Unique'!$D$2:$D$100000=$D41)*('List Unsorted Data - Non Unique'!$E$2:$E$100000=$E41)*('List Unsorted Data - Non Unique'!$F$2:$F$100000=$F41)*('List Unsorted Data - Non Unique'!$H$2:$H$100000)) -> 78
A42: 2016 | B42: 7 | C42: J. McVie | D42: JKL001 | E42: SD01 | F42: Actual | H42: =SUMPRODUCT(('List Unsorted Data - Non Unique'!$A$2:$A$100000=$A42)*('List Unsorted Data - Non Unique'!$B$2:$B$100000=$B42)*('List Unsorted Data - Non Unique'!$C$2:$C$100000=$C42)*('List Unsorted Data - Non Unique'!$D$2:$D$100000=$D42)*('List Unsorted Data - Non Unique'!$E$2:$E$100000=$E42)*('List Unsorted Data - Non Unique'!$F$2:$F$100000=$F42)*('List Unsorted Data - Non Unique'!$H$2:$H$100000)) -> 69 | J42: =SUMPRODUCT(('[1]List Unsorted Data - Non Unique'!$A$2:$A$100000=$A42)*('[1]List Unsorted Data - Non Unique'!$B$2:$B$100000=$B42)*('[1]List Unsorted Data - Non Unique'!$C$2:$C$100000=$C42)*('[1]List Unsorted Data - Non Unique'!$D$2:$D$100000=$D42)*('[1]List Unsorted Data - Non Unique'!$E$2:$E$100000=$E42)*('[1]List Unsorted Data - Non Unique'!$F$2:$F$100000=$F42)*('[1]List Unsorted Data - Non Unique'!$H$2:$H$100000)) -> 69 | L42: 69 | N42: =SUMIF('List Unsorted Data - Non Unique'!$G$2:$G$100000,A42&"-"&B42&"-"&C42&"-"&D42&"-"&E42&"-"&F42,'List Unsorted Data - Non Unique'!$H$2:$H$100000) -> 69 | P42: =SUMIF('List Unsorted Data - Non Unique'!G:G,A42&"-"&B42&"-"&C42&"-"&D42&"-"&E42&"-"&F42,'List Unsorted Data - Non Unique'!H:H) -> 69 | R42: =SUMPRODUCT(('List Unsorted Data - Non Unique'!$A$2:$A$100000=$A42)*('List Unsorted Data - Non Unique'!$B$2:$B$100000=$B42)*('List Unsorted Data - Non Unique'!$C$2:$C$100000=$C42)*('List Unsorted Data - Non Unique'!$D$2:$D$100000=$D42)*('List Unsorted Data - Non Unique'!$E$2:$E$100000=$E42)*('List Unsorted Data - Non Unique'!$F$2:$F$100000=$F42)*('List Unsorted Data - Non Unique'!$H$2:$H$100000)) -> 69 | T42: =SUMPRODUCT(('List Unsorted Data - Non Unique'!$A$2:$A$100000=$A42)*('List Unsorted Data - Non Unique'!$B$2:$B$100000=$B42)*('List Unsorted Data - Non Unique'!$C$2:$C$100000=$C42)*('List Unsorted Data - Non Unique'!$D$2:$D$100000=$D42)*('List Unsorted Data - Non Unique'!$E$2:$E$100000=$E42)*('List Unsorted Data - Non Unique'!$F$2:$F$100000=$F42)*('List Unsorted Data - Non Unique'!$H$2:$H$100000)) -> 69
A43: 2016 | B43: 11 | C43: B. Paisley | D43: DFG001 | E43: MN01 | F43: Forecast | H43: =SUMPRODUCT(('List Unsorted Data - Non Unique'!$A$2:$A$100000=$A43)*('List Unsorted Data - Non Unique'!$B$2:$B$100000=$B43)*('List Unsorted Data - Non Unique'!$C$2:$C$100000=$C43)*('List Unsorted Data - Non Unique'!$D$2:$D$100000=$D43)*('List Unsorted Data - Non Unique'!$E$2:$E$100000=$E43)*('List Unsorted Data - Non Unique'!$F$2:$F$100000=$F43)*('List Unsorted Data - Non Unique'!$H$2:$H$100000)) -> 56 | J43: =SUMPRODUCT(('[1]List Unsorted Data - Non Unique'!$A$2:$A$100000=$A43)*('[1]List Unsorted Data - Non Unique'!$B$2:$B$100000=$B43)*('[1]List Unsorted Data - Non Unique'!$C$2:$C$100000=$C43)*('[1]List Unsorted Data - Non Unique'!$D$2:$D$100000=$D43)*('[1]List Unsorted Data - Non Unique'!$E$2:$E$100000=$E43)*('[1]List Unsorted Data - Non Unique'!$F$2:$F$100000=$F43)*('[1]List Unsorted Data - Non Unique'!$H$2:$H$100000)) -> 56 | L43: 56 | N43: =SUMIF('List Unsorted Data - Non Unique'!$G$2:$G$100000,A43&"-"&B43&"-"&C43&"-"&D43&"-"&E43&"-"&F43,'List Unsorted Data - Non Unique'!$H$2:$H$100000) -> 56 | P43: =SUMIF('List Unsorted Data - Non Unique'!G:G,A43&"-"&B43&"-"&C43&"-"&D43&"-"&E43&"-"&F43,'List Unsorted Data - Non Unique'!H:H) -> 56 | R43: =SUMPRODUCT(('List Unsorted Data - Non Unique'!$A$2:$A$100000=$A43)*('List Unsorted Data - Non Unique'!$B$2:$B$100000=$B43)*('List Unsorted Data - Non Unique'!$C$2:$C$100000=$C43)*('List Unsorted Data - Non Unique'!$D$2:$D$100000=$D43)*('List Unsorted Data - Non Unique'!$E$2:$E$100000=$E43)*('List Unsorted Data - Non Unique'!$F$2:$F$100000=$F43)*('List Unsorted Data - Non Unique'!$H$2:$H$100000)) -> 56 | T43: =SUMPRODUCT(('List Unsorted Data - Non Unique'!$A$2:$A$100000=$A43)*('List Unsorted Data - Non Unique'!$B$2:$B$100000=$B43)*('List Unsorted Data - Non Unique'!$C$2:$C$100000=$C43)*('List Unsorted Data - Non Unique'!$D$2:$D$100000=$D43)*('List Unsorted Data - Non Unique'!$E$2:$E$100000=$E43)*('List Unsorted Data - Non Unique'!$F$2:$F$100000=$F43)*('List Unsorted Data - Non Unique'!$H$2:$H$100000)) -> 56
A44: 2016 | B44: 5 | C44: P. Buck | D44: PRD002 | E44: AL01 | F44: Forecast | H44: =SUMPRODUCT(('List Unsorted Data - Non Unique'!$A$2:$A$100000=$A44)*('List Unsorted Data - Non Unique'!$B$2:$B$100000=$B44)*('List Unsorted Data - Non Unique'!$C$2:$C$100000=$C44)*('List Unsorted Data - Non Unique'!$D$2:$D$100000=$D44)*('List Unsorted Data - Non Unique'!$E$2:$E$100000=$E44)*('List Unsorted Data - Non Unique'!$F$2:$F$100000=$F44)*('List Unsorted Data - Non Unique'!$H$2:$H$100000)) -> 339 | J44: =SUMPRODUCT(('[1]List Unsorted Data - Non Unique'!$A$2:$A$100000=$A44)*('[1]List Unsorted Data - Non Unique'!$B$2:$B$100000=$B44)*('[1]List Unsorted Data - Non Unique'!$C$2:$C$100000=$C44)*('[1]List Unsorted Data - Non Unique'!$D$2:$D$100000=$D44)*('[1]List Unsorted Data - Non Unique'!$E$2:$E$100000=$E44)*('[1]List Unsorted Data - Non Unique'!$F$2:$F$100000=$F44)*('[1]List Unsorted Data - Non Unique'!$H$2:$H$100000)) -> 339 | L44: 339 | N44: =SUMIF('List Unsorted Data - Non Unique'!$G$2:$G$100000,A44&"-"&B44&"-"&C44&"-"&D44&"-"&E44&"-"&F44,'List Unsorted Data - Non Unique'!$H$2:$H$100000) -> 339 | P44: =SUMIF('List Unsorted Data - Non Unique'!G:G,A44&"-"&B44&"-"&C44&"-"&D44&"-"&E44&"-"&F44,'List Unsorted Data - Non Unique'!H:H) -> 339 | R44: =SUMPRODUCT(('List Unsorted Data - Non Unique'!$A$2:$A$100000=$A44)*('List Unsorted Data - Non Unique'!$B$2:$B$100000=$B44)*('List Unsorted Data - Non Unique'!$C$2:$C$100000=$C44)*('List Unsorted Data - Non Unique'!$D$2:$D$100000=$D44)*('List Unsorted Data - Non Unique'!$E$2:$E$100000=$E44)*('List Unsorted Data - Non Unique'!$F$2:$F$100000=$F44)*('List Unsorted Data - Non Unique'!$H$2:$H$100000)) -> 339 | T44: =SUMPRODUCT(('List Unsorted Data - Non Unique'!$A$2:$A$100000=$A44)*('List Unsorted Data - Non Unique'!$B$2:$B$100000=$B44)*('List Unsorted Data - Non Unique'!$C$2:$C$100000=$C44)*('List Unsorted Data - Non Unique'!$D$2:$D$100000=$D44)*('List Unsorted Data - Non Unique'!$E$2:$E$100000=$E44)*('List Unsorted Data - Non Unique'!$F$2:$F$100000=$F44)*('List Unsorted Data - Non Unique'!$H$2:$H$100000)) -> 339
A45: 2015 | B45: 7 | C45: S. Crow | D45: POT002 | E45: CA01 | F45: Actual | H45: =SUMPRODUCT(('List Unsorted Data - Non Unique'!$A$2:$A$100000=$A45)*('List Unsorted Data - Non Unique'!$B$2:$B$100000=$B45)*('List Unsorted Data - Non Unique'!$C$2:$C$100000=$C45)*('List Unsorted Data - Non Unique'!$D$2:$D$100000=$D45)*('List Unsorted Data - Non Unique'!$E$2:$E$100000=$E45)*('List Unsorted Data - Non Unique'!$F$2:$F$100000=$F45)*('List Unsorted Data - Non Unique'!$H$2:$H$100000)) -> 149 | J45: =SUMPRODUCT(('[1]List Unsorted Data - Non Unique'!$A$2:$A$100000=$A45)*('[1]List Unsorted Data - Non Unique'!$B$2:$B$100000=$B45)*('[1]List Unsorted Data - Non Unique'!$C$2:$C$100000=$C45)*('[1]List Unsorted Data - Non Unique'!$D$2:$D$100000=$D45)*('[1]List Unsorted Data - Non Unique'!$E$2:$E$100000=$E45)*('[1]List Unsorted Data - Non Unique'!$F$2:$F$100000=$F45)*('[1]List Unsorted Data - Non Unique'!$H$2:$H$100000)) -> 149 | L45: 149 | N45: =SUMIF('List Unsorted Data - Non Unique'!$G$2:$G$100000,A45&"-"&B45&"-"&C45&"-"&D45&"-"&E45&"-"&F45,'List Unsorted Data - Non Unique'!$H$2:$H$100000) -> 149 | P45: =SUMIF('List Unsorted Data - Non Unique'!G:G,A45&"-"&B45&"-"&C45&"-"&D45&"-"&E45&"-"&F45,'List Unsorted Data - Non Unique'!H:H) -> 149 | R45: =SUMPRODUCT(('List Unsorted Data - Non Unique'!$A$2:$A$100000=$A45)*('List Unsorted Data - Non Unique'!$B$2:$B$100000=$B45)*('List Unsorted Data - Non Unique'!$C$2:$C$100000=$C45)*('List Unsorted Data - Non Unique'!$D$2:$D$100000=$D45)*('List Unsorted Data - Non Unique'!$E$2:$E$100000=$E45)*('List Unsorted Data - Non Unique'!$F$2:$F$100000=$F45)*('List Unsorted Data - Non Unique'!$H$2:$H$100000)) -> 149 | T45: =SUMPRODUCT(('List Unsorted Data - Non Unique'!$A$2:$A$100000=$A45)*('List Unsorted Data - Non Unique'!$B$2:$B$100000=$B45)*('List Unsorted Data - Non Unique'!$C$2:$C$100000=$C45)*('List Unsorted Data - Non Unique'!$D$2:$D$100000=$D45)*('List Unsorted Data - Non Unique'!$E$2:$E$100000=$E45)*('List Unsorted Data - Non Unique'!$F$2:$F$100000=$F45)*('List Unsorted Data - Non Unique'!$H$2:$H$100000)) -> 149
A46: 2016 | B46: 7 | C46: B. Paisley | D46: DFG001 | E46: AK01 | F46: Forecast | H46: =SUMPRODUCT(('List Unsorted Data - Non Unique'!$A$2:$A$100000=$A46)*('List Unsorted Data - Non Unique'!$B$2:$B$100000=$B46)*('List Unsorted Data - Non Unique'!$C$2:$C$100000=$C46)*('List Unsorted Data - Non Unique'!$D$2:$D$100000=$D46)*('List Unsorted Data - Non Unique'!$E$2:$E$100000=$E46)*('List Unsorted Data - Non Unique'!$F$2:$F$100000=$F46)*('List Unsorted Data - Non Unique'!$H$2:$H$100000)) -> 112 | J46: =SUMPRODUCT(('[1]List Unsorted Data - Non Unique'!$A$2:$A$100000=$A46)*('[1]List Unsorted Data - Non Unique'!$B$2:$B$100000=$B46)*('[1]List Unsorted Data - Non Unique'!$C$2:$C$100000=$C46)*('[1]List Unsorted Data - Non Unique'!$D$2:$D$100000=$D46)*('[1]List Unsorted Data - Non Unique'!$E$2:$E$100000=$E46)*('[1]List Unsorted Data - Non Unique'!$F$2:$F$100000=$F46)*('[1]List Unsorted Data - Non Unique'!$H$2:$H$100000)) -> 112 | L46: 112 | N46: =SUMIF('List Unsorted Data - Non Unique'!$G$2:$G$100000,A46&"-"&B46&"-"&C46&"-"&D46&"-"&E46&"-"&F46,'List Unsorted Data - Non Unique'!$H$2:$H$100000) -> 112 | P46: =SUMIF('List Unsorted Data - Non Unique'!G:G,A46&"-"&B46&"-"&C46&"-"&D46&"-"&E46&"-"&F46,'List Unsorted Data - Non Unique'!H:H) -> 112 | R46: =SUMPRODUCT(('List Unsorted Data - Non Unique'!$A$2:$A$100000=$A46)*('List Unsorted Data - Non Unique'!$B$2:$B$100000=$B46)*('List Unsorted Data - Non Unique'!$C$2:$C$100000=$C46)*('List Unsorted Data - Non Unique'!$D$2:$D$100000=$D46)*('List Unsorted Data - Non Unique'!$E$2:$E$100000=$E46)*('List Unsorted Data - Non Unique'!$F$2:$F$100000=$F46)*('List Unsorted Data - Non Unique'!$H$2:$H$100000)) -> 112 | T46: =SUMPRODUCT(('List Unsorted Data - Non Unique'!$A$2:$A$100000=$A46)*('List Unsorted Data - Non Unique'!$B$2:$B$100000=$B46)*('List Unsorted Data - Non Unique'!$C$2:$C$100000=$C46)*('List Unsorted Data - Non Unique'!$D$2:$D$100000=$D46)*('List Unsorted Data - Non Unique'!$E$2:$E$100000=$E46)*('List Unsorted Data - Non Unique'!$F$2:$F$100000=$F46)*('List Unsorted Data - Non Unique'!$H$2:$H$100000)) -> 112
A47: 2014 | B47: 9 | C47: B. Paisley | D47: PRD001 | E47: MN01 | F47: Actual | H47: =SUMPRODUCT(('List Unsorted Data - Non Unique'!$A$2:$A$100000=$A47)*('List Unsorted Data - Non Unique'!$B$2:$B$100000=$B47)*('List Unsorted Data - Non Unique'!$C$2:$C$100000=$C47)*('List Unsorted Data - Non Unique'!$D$2:$D$100000=$D47)*('List Unsorted Data - Non Unique'!$E$2:$E$100000=$E47)*('List Unsorted Data - Non Unique'!$F$2:$F$100000=$F47)*('List Unsorted Data - Non Unique'!$H$2:$H$100000)) -> 263 | J47: =SUMPRODUCT(('[1]List Unsorted Data - Non Unique'!$A$2:$A$100000=$A47)*('[1]List Unsorted Data - Non Unique'!$B$2:$B$100000=$B47)*('[1]List Unsorted Data - Non Unique'!$C$2:$C$100000=$C47)*('[1]List Unsorted Data - Non Unique'!$D$2:$D$100000=$D47)*('[1]List Unsorted Data - Non Unique'!$E$2:$E$100000=$E47)*('[1]List Unsorted Data - Non Unique'!$F$2:$F$100000=$F47)*('[1]List Unsorted Data - Non Unique'!$H$2:$H$100000)) -> 263 | L47: 263 | N47: =SUMIF('List Unsorted Data - Non Unique'!$G$2:$G$100000,A47&"-"&B47&"-"&C47&"-"&D47&"-"&E47&"-"&F47,'List Unsorted Data - Non Unique'!$H$2:$H$100000) -> 263 | P47: =SUMIF('List Unsorted Data - Non Unique'!G:G,A47&"-"&B47&"-"&C47&"-"&D47&"-"&E47&"-"&F47,'List Unsorted Data - Non Unique'!H:H) -> 263 | R47: =SUMPRODUCT(('List Unsorted Data - Non Unique'!$A$2:$A$100000=$A47)*('List Unsorted Data - Non Unique'!$B$2:$B$100000=$B47)*('List Unsorted Data - Non Unique'!$C$2:$C$100000=$C47)*('List Unsorted Data - Non Unique'!$D$2:$D$100000=$D47)*('List Unsorted Data - Non Unique'!$E$2:$E$100000=$E47)*('List Unsorted Data - Non Unique'!$F$2:$F$100000=$F47)*('List Unsorted Data - Non Unique'!$H$2:$H$100000)) -> 263 | T47: =SUMPRODUCT(('List Unsorted Data - Non Unique'!$A$2:$A$100000=$A47)*('List Unsorted Data - Non Unique'!$B$2:$B$100000=$B47)*('List Unsorted Data - Non Unique'!$C$2:$C$100000=$C47)*('List Unsorted Data - Non Unique'!$D$2:$D$100000=$D47)*('List Unsorted Data - Non Unique'!$E$2:$E$100000=$E47)*('List Unsorted Data - Non Unique'!$F$2:$F$100000=$F47)*('List Unsorted Data - Non Unique'!$H$2:$H$100000)) -> 263
A48: 2015 | B48: 1 | C48: M. Stipe | D48: POT001 | E48: SD01 | F48: Actual | H48: =SUMPRODUCT(('List Unsorted Data - Non Unique'!$A$2:$A$100000=$A48)*('List Unsorted Data - Non Unique'!$B$2:$B$100000=$B48)*('List Unsorted Data - Non Unique'!$C$2:$C$100000=$C48)*('List Unsorted Data - Non Unique'!$D$2:$D$100000=$D48)*('List Unsorted Data - Non Unique'!$E$2:$E$100000=$E48)*('List Unsorted Data - Non Unique'!$F$2:$F$100000=$F48)*('List Unsorted Data - Non Unique'!$H$2:$H$100000)) -> 152 | J48: =SUMPRODUCT(('[1]List Unsorted Data - Non Unique'!$A$2:$A$100000=$A48)*('[1]List Unsorted Data - Non Unique'!$B$2:$B$100000=$B48)*('[1]List Unsorted Data - Non Unique'!$C$2:$C$100000=$C48)*('[1]List Unsorted Data - Non Unique'!$D$2:$D$100000=$D48)*('[1]List Unsorted Data - Non Unique'!$E$2:$E$100000=$E48)*('[1]List Unsorted Data - Non Unique'!$F$2:$F$100000=$F48)*('[1]List Unsorted Data - Non Unique'!$H$2:$H$100000)) -> 152 | L48: 152 | N48: =SUMIF('List Unsorted Data - Non Unique'!$G$2:$G$100000,A48&"-"&B48&"-"&C48&"-"&D48&"-"&E48&"-"&F48,'List Unsorted Data - Non Unique'!$H$2:$H$100000) -> 152 | P48: =SUMIF('List Unsorted Data - Non Unique'!G:G,A48&"-"&B48&"-"&C48&"-"&D48&"-"&E48&"-"&F48,'List Unsorted Data - Non Unique'!H:H) -> 152 | R48: =SUMPRODUCT(('List Unsorted Data - Non Unique'!$A$2:$A$100000=$A48)*('List Unsorted Data - Non Unique'!$B$2:$B$100000=$B48)*('List Unsorted Data - Non Unique'!$C$2:$C$100000=$C48)*('List Unsorted Data - Non Unique'!$D$2:$D$100000=$D48)*('List Unsorted Data - Non Unique'!$E$2:$E$100000=$E48)*('List Unsorted Data - Non Unique'!$F$2:$F$100000=$F48)*('List Unsorted Data - Non Unique'!$H$2:$H$100000)) -> 152 | T48: =SUMPRODUCT(('List Unsorted Data - Non Unique'!$A$2:$A$100000=$A48)*('List Unsorted Data - Non Unique'!$B$2:$B$100000=$B48)*('List Unsorted Data - Non Unique'!$C$2:$C$100000=$C48)*('List Unsorted Data - Non Unique'!$D$2:$D$100000=$D48)*('List Unsorted Data - Non Unique'!$E$2:$E$100000=$E48)*('List Unsorted Data - Non Unique'!$F$2:$F$100000=$F48)*('List Unsorted Data - Non Unique'!$H$2:$H$100000)) -> 152
A49: 2015 | B49: 12 | C49: M. Stipe | D49: DFG001 | E49: AL01 | F49: Forecast | H49: =SUMPRODUCT(('List Unsorted Data - Non Unique'!$A$2:$A$100000=$A49)*('List Unsorted Data - Non Unique'!$B$2:$B$100000=$B49)*('List Unsorted Data - Non Unique'!$C$2:$C$100000=$C49)*('List Unsorted Data - Non Unique'!$D$2:$D$100000=$D49)*('List Unsorted Data - Non Unique'!$E$2:$E$100000=$E49)*('List Unsorted Data - Non Unique'!$F$2:$F$100000=$F49)*('List Unsorted Data - Non Unique'!$H$2:$H$100000)) -> 59 | J49: =SUMPRODUCT(('[1]List Unsorted Data - Non Unique'!$A$2:$A$100000=$A49)*('[1]List Unsorted Data - Non Unique'!$B$2:$B$100000=$B49)*('[1]List Unsorted Data - Non Unique'!$C$2:$C$100000=$C49)*('[1]List Unsorted Data - Non Unique'!$D$2:$D$100000=$D49)*('[1]List Unsorted Data - Non Unique'!$E$2:$E$100000=$E49)*('[1]List Unsorted Data - Non Unique'!$F$2:$F$100000=$F49)*('[1]List Unsorted Data - Non Unique'!$H$2:$H$100000)) -> 59 | L49: 59 | N49: =SUMIF('List Unsorted Data - Non Unique'!$G$2:$G$100000,A49&"-"&B49&"-"&C49&"-"&D49&"-"&E49&"-"&F49,'List Unsorted Data - Non Unique'!$H$2:$H$100000) -> 59 | P49: =SUMIF('List Unsorted Data - Non Unique'!G:G,A49&"-"&B49&"-"&C49&"-"&D49&"-"&E49&"-"&F49,'List Unsorted Data - Non Unique'!H:H) -> 59 | R49: =SUMPRODUCT(('List Unsorted Data - Non Unique'!$A$2:$A$100000=$A49)*('List Unsorted Data - Non Unique'!$B$2:$B$100000=$B49)*('List Unsorted Data - Non Unique'!$C$2:$C$100000=$C49)*('List Unsorted Data - Non Unique'!$D$2:$D$100000=$D49)*('List Unsorted Data - Non Unique'!$E$2:$E$100000=$E49)*('List Unsorted Data - Non Unique'!$F$2:$F$100000=$F49)*('List Unsorted Data - Non Unique'!$H$2:$H$100000)) -> 59 | T49: =SUMPRODUCT(('List Unsorted Data - Non Unique'!$A$2:$A$100000=$A49)*('List Unsorted Data - Non Unique'!$B$2:$B$100000=$B49)*('List Unsorted Data - Non Unique'!$C$2:$C$100000=$C49)*('List Unsorted Data - Non Unique'!$D$2:$D$100000=$D49)*('List Unsorted Data - Non Unique'!$E$2:$E$100000=$E49)*('List Unsorted Data - Non Unique'!$F$2:$F$100000=$F49)*('List Unsorted Data - Non Unique'!$H$2:$H$100000)) -> 59
A50: 2016 | B50: 1 | C50: J. Lennon | D50: POT002 | E50: AL01 | F50: Actual | H50: =SUMPRODUCT(('List Unsorted Data - Non Unique'!$A$2:$A$100000=$A50)*('List Unsorted Data - Non Unique'!$B$2:$B$100000=$B50)*('List Unsorted Data - Non Unique'!$C$2:$C$100000=$C50)*('List Unsorted Data - Non Unique'!$D$2:$D$100000=$D50)*('List Unsorted Data - Non Unique'!$E$2:$E$100000=$E50)*('List Unsorted Data - Non Unique'!$F$2:$F$100000=$F50)*('List Unsorted Data - Non Unique'!$H$2:$H$100000)) -> 80 | J50: =SUMPRODUCT(('[1]List Unsorted Data - Non Unique'!$A$2:$A$100000=$A50)*('[1]List Unsorted Data - Non Unique'!$B$2:$B$100000=$B50)*('[1]List Unsorted Data - Non Unique'!$C$2:$C$100000=$C50)*('[1]List Unsorted Data - Non Unique'!$D$2:$D$100000=$D50)*('[1]List Unsorted Data - Non Unique'!$E$2:$E$100000=$E50)*('[1]List Unsorted Data - Non Unique'!$F$2:$F$100000=$F50)*('[1]List Unsorted Data - Non Unique'!$H$2:$H$100000)) -> 80 | L50: 80 | N50: =SUMIF('List Unsorted Data - Non Unique'!$G$2:$G$100000,A50&"-"&B50&"-"&C50&"-"&D50&"-"&E50&"-"&F50,'List Unsorted Data - Non Unique'!$H$2:$H$100000) -> 80 | P50: =SUMIF('List Unsorted Data - Non Unique'!G:G,A50&"-"&B50&"-"&C50&"-"&D50&"-"&E50&"-"&F50,'List Unsorted Data - Non Unique'!H:H) -> 80 | R50: =SUMPRODUCT(('List Unsorted Data - Non Unique'!$A$2:$A$100000=$A50)*('List Unsorted Data - Non Unique'!$B$2:$B$100000=$B50)*('List Unsorted Data - Non Unique'!$C$2:$C$100000=$C50)*('List Unsorted Data - Non Unique'!$D$2:$D$100000=$D50)*('List Unsorted Data - Non Unique'!$E$2:$E$100000=$E50)*('List Unsorted Data - Non Unique'!$F$2:$F$100000=$F50)*('List Unsorted Data - Non Unique'!$H$2:$H$100000)) -> 80 | T50: =SUMPRODUCT(('List Unsorted Data - Non Unique'!$A$2:$A$100000=$A50)*('List Unsorted Data - Non Unique'!$B$2:$B$100000=$B50)*('List Unsorted Data - Non Unique'!$C$2:$C$100000=$C50)*('List Unsorted Data - Non Unique'!$D$2:$D$100000=$D50)*('List Unsorted Data - Non Unique'!$E$2:$E$100000=$E50)*('List Unsorted Data - Non Unique'!$F$2:$F$100000=$F50)*('List Unsorted Data - Non Unique'!$H$2:$H$100000)) -> 80
A51: 2015 | B51: 9 | C51: M.Mills | D51: POT002 | E51: AL01 | F51: Forecast | H51: =SUMPRODUCT(('List Unsorted Data - Non Unique'!$A$2:$A$100000=$A51)*('List Unsorted Data - Non Unique'!$B$2:$B$100000=$B51)*('List Unsorted Data - Non Unique'!$C$2:$C$100000=$C51)*('List Unsorted Data - Non Unique'!$D$2:$D$100000=$D51)*('List Unsorted Data - Non Unique'!$E$2:$E$100000=$E51)*('List Unsorted Data - Non Unique'!$F$2:$F$100000=$F51)*('List Unsorted Data - Non Unique'!$H$2:$H$100000)) -> 145 | J51: =SUMPRODUCT(('[1]List Unsorted Data - Non Unique'!$A$2:$A$100000=$A51)*('[1]List Unsorted Data - Non Unique'!$B$2:$B$100000=$B51)*('[1]List Unsorted Data - Non Unique'!$C$2:$C$100000=$C51)*('[1]List Unsorted Data - Non Unique'!$D$2:$D$100000=$D51)*('[1]List Unsorted Data - Non Unique'!$E$2:$E$100000=$E51)*('[1]List Unsorted Data - Non Unique'!$F$2:$F$100000=$F51)*('[1]List Unsorted Data - Non Unique'!$H$2:$H$100000)) -> 145 | L51: 145 | N51: =SUMIF('List Unsorted Data - Non Unique'!$G$2:$G$100000,A51&"-"&B51&"-"&C51&"-"&D51&"-"&E51&"-"&F51,'List Unsorted Data - Non Unique'!$H$2:$H$100000) -> 145 | P51: =SUMIF('List Unsorted Data - Non Unique'!G:G,A51&"-"&B51&"-"&C51&"-"&D51&"-"&E51&"-"&F51,'List Unsorted Data - Non Unique'!H:H) -> 145 | R51: =SUMPRODUCT(('List Unsorted Data - Non Unique'!$A$2:$A$100000=$A51)*('List Unsorted Data - Non Unique'!$B$2:$B$100000=$B51)*('List Unsorted Data - Non Unique'!$C$2:$C$100000=$C51)*('List Unsorted Data - Non Unique'!$D$2:$D$100000=$D51)*('List Unsorted Data - Non Unique'!$E$2:$E$100000=$E51)*('List Unsorted Data - Non Unique'!$F$2:$F$100000=$F51)*('List Unsorted Data - Non Unique'!$H$2:$H$100000)) -> 145 | T51: =SUMPRODUCT(('List Unsorted Data - Non Unique'!$A$2:$A$100000=$A51)*('List Unsorted Data - Non Unique'!$B$2:$B$100000=$B51)*('List Unsorted Data - Non Unique'!$C$2:$C$100000=$C51)*('List Unsorted Data - Non Unique'!$D$2:$D$100000=$D51)*('List Unsorted Data - Non Unique'!$E$2:$E$100000=$E51)*('List Unsorted Data - Non Unique'!$F$2:$F$100000=$F51)*('List Unsorted Data - Non Unique'!$H$2:$H$100000)) -> 145
A52: 2016 | B52: 9 | C52: C. Underwood | D52: JKL001 | E52: MN01 | F52: Forecast | H52: =SUMPRODUCT(('List Unsorted Data - Non Unique'!$A$2:$A$100000=$A52)*('List Unsorted Data - Non Unique'!$B$2:$B$100000=$B52)*('List Unsorted Data - Non Unique'!$C$2:$C$100000=$C52)*('List Unsorted Data - Non Unique'!$D$2:$D$100000=$D52)*('List Unsorted Data - Non Unique'!$E$2:$E$100000=$E52)*('List Unsorted Data - Non Unique'!$F$2:$F$100000=$F52)*('List Unsorted Data - Non Unique'!$H$2:$H$100000)) -> 122 | J52: =SUMPRODUCT(('[1]List Unsorted Data - Non Unique'!$A$2:$A$100000=$A52)*('[1]List Unsorted Data - Non Unique'!$B$2:$B$100000=$B52)*('[1]List Unsorted Data - Non Unique'!$C$2:$C$100000=$C52)*('[1]List Unsorted Data - Non Unique'!$D$2:$D$100000=$D52)*('[1]List Unsorted Data - Non Unique'!$E$2:$E$100000=$E52)*('[1]List Unsorted Data - Non Unique'!$F$2:$F$100000=$F52)*('[1]List Unsorted Data - Non Unique'!$H$2:$H$100000)) -> 122 | L52: 122 | N52: =SUMIF('List Unsorted Data - Non Unique'!$G$2:$G$100000,A52&"-"&B52&"-"&C52&"-"&D52&"-"&E52&"-"&F52,'List Unsorted Data - Non Unique'!$H$2:$H$100000) -> 122 | P52: =SUMIF('List Unsorted Data - Non Unique'!G:G,A52&"-"&B52&"-"&C52&"-"&D52&"-"&E52&"-"&F52,'List Unsorted Data - Non Unique'!H:H) -> 122 | R52: =SUMPRODUCT(('List Unsorted Data - Non Unique'!$A$2:$A$100000=$A52)*('List Unsorted Data - Non Unique'!$B$2:$B$100000=$B52)*('List Unsorted Data - Non Unique'!$C$2:$C$100000=$C52)*('List Unsorted Data - Non Unique'!$D$2:$D$100000=$D52)*('List Unsorted Data - Non Unique'!$E$2:$E$100000=$E52)*('List Unsorted Data - Non Unique'!$F$2:$F$100000=$F52)*('List Unsorted Data - Non Unique'!$H$2:$H$100000)) -> 122 | T52: =SUMPRODUCT(('List Unsorted Data - Non Unique'!$A$2:$A$100000=$A52)*('List Unsorted Data - Non Unique'!$B$2:$B$100000=$B52)*('List Unsorted Data - Non Unique'!$C$2:$C$100000=$C52)*('List Unsorted Data - Non Unique'!$D$2:$D$100000=$D52)*('List Unsorted Data - Non Unique'!$E$2:$E$100000=$E52)*('List Unsorted Data - Non Unique'!$F$2:$F$100000=$F52)*('List Unsorted Data - Non Unique'!$H$2:$H$100000)) -> 122
A53: 2015 | B53: 2 | C53: B. Paisley | D53: PRD002 | E53: AL01 | F53: Forecast | H53: =SUMPRODUCT(('List Unsorted Data - Non Unique'!$A$2:$A$100000=$A53)*('List Unsorted Data - Non Unique'!$B$2:$B$100000=$B53)*('List Unsorted Data - Non Unique'!$C$2:$C$100000=$C53)*('List Unsorted Data - Non Unique'!$D$2:$D$100000=$D53)*('List Unsorted Data - Non Unique'!$E$2:$E$100000=$E53)*('List Unsorted Data - Non Unique'!$F$2:$F$100000=$F53)*('List Unsorted Data - Non Unique'!$H$2:$H$100000)) -> 240 | J53: =SUMPRODUCT(('[1]List Unsorted Data - Non Unique'!$A$2:$A$100000=$A53)*('[1]List Unsorted Data - Non Unique'!$B$2:$B$100000=$B53)*('[1]List Unsorted Data - Non Unique'!$C$2:$C$100000=$C53)*('[1]List Unsorted Data - Non Unique'!$D$2:$D$100000=$D53)*('[1]List Unsorted Data - Non Unique'!$E$2:$E$100000=$E53)*('[1]List Unsorted Data - Non Unique'!$F$2:$F$100000=$F53)*('[1]List Unsorted Data - Non Unique'!$H$2:$H$100000)) -> 240 | L53: 240 | N53: =SUMIF('List Unsorted Data - Non Unique'!$G$2:$G$100000,A53&"-"&B53&"-"&C53&"-"&D53&"-"&E53&"-"&F53,'List Unsorted Data - Non Unique'!$H$2:$H$100000) -> 240 | P53: =SUMIF('List Unsorted Data - Non Unique'!G:G,A53&"-"&B53&"-"&C53&"-"&D53&"-"&E53&"-"&F53,'List Unsorted Data - Non Unique'!H:H) -> 240 | R53: =SUMPRODUCT(('List Unsorted Data - Non Unique'!$A$2:$A$100000=$A53)*('List Unsorted Data - Non Unique'!$B$2:$B$100000=$B53)*('List Unsorted Data - Non Unique'!$C$2:$C$100000=$C53)*('List Unsorted Data - Non Unique'!$D$2:$D$100000=$D53)*('List Unsorted Data - Non Unique'!$E$2:$E$100000=$E53)*('List Unsorted Data - Non Unique'!$F$2:$F$100000=$F53)*('List Unsorted Data - Non Unique'!$H$2:$H$100000)) -> 240 | T53: =SUMPRODUCT(('List Unsorted Data - Non Unique'!$A$2:$A$100000=$A53)*('List Unsorted Data - Non Unique'!$B$2:$B$100000=$B53)*('List Unsorted Data - Non Unique'!$C$2:$C$100000=$C53)*('List Unsorted Data - Non Unique'!$D$2:$D$100000=$D53)*('List Unsorted Data - Non Unique'!$E$2:$E$100000=$E53)*('List Unsorted Data - Non Unique'!$F$2:$F$100000=$F53)*('List Unsorted Data - Non Unique'!$H$2:$H$100000)) -> 240
A54: 2015 | B54: 12 | C54: C. Underwood | D54: DFG001 | E54: MN01 | F54: Actual | H54: =SUMPRODUCT(('List Unsorted Data - Non Unique'!$A$2:$A$100000=$A54)*('List Unsorted Data - Non Unique'!$B$2:$B$100000=$B54)*('List Unsorted Data - Non Unique'!$C$2:$C$100000=$C54)*('List Unsorted Data - Non Unique'!$D$2:$D$100000=$D54)*('List Unsorted Data - Non Unique'!$E$2:$E$100000=$E54)*('List Unsorted Data - Non Unique'!$F$2:$F$100000=$F54)*('List Unsorted Data - Non Unique'!$H$2:$H$100000)) -> 54 | J54: =SUMPRODUCT(('[1]List Unsorted Data - Non Unique'!$A$2:$A$100000=$A54)*('[1]List Unsorted Data - Non Unique'!$B$2:$B$100000=$B54)*('[1]List Unsorted Data - Non Unique'!$C$2:$C$100000=$C54)*('[1]List Unsorted Data - Non Unique'!$D$2:$D$100000=$D54)*('[1]List Unsorted Data - Non Unique'!$E$2:$E$100000=$E54)*('[1]List Unsorted Data - Non Unique'!$F$2:$F$100000=$F54)*('[1]List Unsorted Data - Non Unique'!$H$2:$H$100000)) -> 54 | L54: 54 | N54: =SUMIF('List Unsorted Data - Non Unique'!$G$2:$G$100000,A54&"-"&B54&"-"&C54&"-"&D54&"-"&E54&"-"&F54,'List Unsorted Data - Non Unique'!$H$2:$H$100000) -> 54 | P54: =SUMIF('List Unsorted Data - Non Unique'!G:G,A54&"-"&B54&"-"&C54&"-"&D54&"-"&E54&"-"&F54,'List Unsorted Data - Non Unique'!H:H) -> 54 | R54: =SUMPRODUCT(('List Unsorted Data - Non Unique'!$A$2:$A$100000=$A54)*('List Unsorted Data - Non Unique'!$B$2:$B$100000=$B54)*('List Unsorted Data - Non Unique'!$C$2:$C$100000=$C54)*('List Unsorted Data - Non Unique'!$D$2:$D$100000=$D54)*('List Unsorted Data - Non Unique'!$E$2:$E$100000=$E54)*('List Unsorted Data - Non Unique'!$F$2:$F$100000=$F54)*('List Unsorted Data - Non Unique'!$H$2:$H$100000)) -> 54 | T54: =SUMPRODUCT(('List Unsorted Data - Non Unique'!$A$2:$A$100000=$A54)*('List Unsorted Data - Non Unique'!$B$2:$B$100000=$B54)*('List Unsorted Data - Non Unique'!$C$2:$C$100000=$C54)*('List Unsorted Data - Non Unique'!$D$2:$D$100000=$D54)*('List Unsorted Data - Non Unique'!$E$2:$E$100000=$E54)*('List Unsorted Data - Non Unique'!$F$2:$F$100000=$F54)*('List Unsorted Data - Non Unique'!$H$2:$H$100000)) -> 54
A55: 2016 | B55: 2 | C55: B. Paisley | D55: ASL003 | E55: PA01 | F55: Forecast | H55: =SUMPRODUCT(('List Unsorted Data - Non Unique'!$A$2:$A$100000=$A55)*('List Unsorted Data - Non Unique'!$B$2:$B$100000=$B55)*('List Unsorted Data - Non Unique'!$C$2:$C$100000=$C55)*('List Unsorted Data - Non Unique'!$D$2:$D$100000=$D55)*('List Unsorted Data - Non Unique'!$E$2:$E$100000=$E55)*('List Unsorted Data - Non Unique'!$F$2:$F$100000=$F55)*('List Unsorted Data - Non Unique'!$H$2:$H$100000)) -> 177 | J55: =SUMPRODUCT(('[1]List Unsorted Data - Non Unique'!$A$2:$A$100000=$A55)*('[1]List Unsorted Data - Non Unique'!$B$2:$B$100000=$B55)*('[1]List Unsorted Data - Non Unique'!$C$2:$C$100000=$C55)*('[1]List Unsorted Data - Non Unique'!$D$2:$D$100000=$D55)*('[1]List Unsorted Data - Non Unique'!$E$2:$E$100000=$E55)*('[1]List Unsorted Data - Non Unique'!$F$2:$F$100000=$F55)*('[1]List Unsorted Data - Non Unique'!$H$2:$H$100000)) -> 177 | L55: 177 | N55: =SUMIF('List Unsorted Data - Non Unique'!$G$2:$G$100000,A55&"-"&B55&"-"&C55&"-"&D55&"-"&E55&"-"&F55,'List Unsorted Data - Non Unique'!$H$2:$H$100000) -> 177 | P55: =SUMIF('List Unsorted Data - Non Unique'!G:G,A55&"-"&B55&"-"&C55&"-"&D55&"-"&E55&"-"&F55,'List Unsorted Data - Non Unique'!H:H) -> 177 | R55: =SUMPRODUCT(('List Unsorted Data - Non Unique'!$A$2:$A$100000=$A55)*('List Unsorted Data - Non Unique'!$B$2:$B$100000=$B55)*('List Unsorted Data - Non Unique'!$C$2:$C$100000=$C55)*('List Unsorted Data - Non Unique'!$D$2:$D$100000=$D55)*('List Unsorted Data - Non Unique'!$E$2:$E$100000=$E55)*('List Unsorted Data - Non Unique'!$F$2:$F$100000=$F55)*('List Unsorted Data - Non Unique'!$H$2:$H$100000)) -> 177 | T55: =SUMPRODUCT(('List Unsorted Data - Non Unique'!$A$2:$A$100000=$A55)*('List Unsorted Data - Non Unique'!$B$2:$B$100000=$B55)*('List Unsorted Data - Non Unique'!$C$2:$C$100000=$C55)*('List Unsorted Data - Non Unique'!$D$2:$D$100000=$D55)*('List Unsorted Data - Non Unique'!$E$2:$E$100000=$E55)*('List Unsorted Data - Non Unique'!$F$2:$F$100000=$F55)*('List Unsorted Data - Non Unique'!$H$2:$H$100000)) -> 177
A56: 2016 | B56: 10 | C56: R. Star | D56: PRD002 | E56: CA01 | F56: Forecast | H56: =SUMPRODUCT(('List Unsorted Data - Non Unique'!$A$2:$A$100000=$A56)*('List Unsorted Data - Non Unique'!$B$2:$B$100000=$B56)*('List Unsorted Data - Non Unique'!$C$2:$C$100000=$C56)*('List Unsorted Data - Non Unique'!$D$2:$D$100000=$D56)*('List Unsorted Data - Non Unique'!$E$2:$E$100000=$E56)*('List Unsorted Data - Non Unique'!$F$2:$F$100000=$F56)*('List Unsorted Data - Non Unique'!$H$2:$H$100000)) -> 328 | J56: =SUMPRODUCT(('[1]List Unsorted Data - Non Unique'!$A$2:$A$100000=$A56)*('[1]List Unsorted Data - Non Unique'!$B$2:$B$100000=$B56)*('[1]List Unsorted Data - Non Unique'!$C$2:$C$100000=$C56)*('[1]List Unsorted Data - Non Unique'!$D$2:$D$100000=$D56)*('[1]List Unsorted Data - Non Unique'!$E$2:$E$100000=$E56)*('[1]List Unsorted Data - Non Unique'!$F$2:$F$100000=$F56)*('[1]List Unsorted Data - Non Unique'!$H$2:$H$100000)) -> 328 | L56: 328 | N56: =SUMIF('List Unsorted Data - Non Unique'!$G$2:$G$100000,A56&"-"&B56&"-"&C56&"-"&D56&"-"&E56&"-"&F56,'List Unsorted Data - Non Unique'!$H$2:$H$100000) -> 328 | P56: =SUMIF('List Unsorted Data - Non Unique'!G:G,A56&"-"&B56&"-"&C56&"-"&D56&"-"&E56&"-"&F56,'List Unsorted Data - Non Unique'!H:H) -> 328 | R56: =SUMPRODUCT(('List Unsorted Data - Non Unique'!$A$2:$A$100000=$A56)*('List Unsorted Data - Non Unique'!$B$2:$B$100000=$B56)*('List Unsorted Data - Non Unique'!$C$2:$C$100000=$C56)*('List Unsorted Data - Non Unique'!$D$2:$D$100000=$D56)*('List Unsorted Data - Non Unique'!$E$2:$E$100000=$E56)*('List Unsorted Data - Non Unique'!$F$2:$F$100000=$F56)*('List Unsorted Data - Non Unique'!$H$2:$H$100000)) -> 328 | T56: =SUMPRODUCT(('List Unsorted Data - Non Unique'!$A$2:$A$100000=$A56)*('List Unsorted Data - Non Unique'!$B$2:$B$100000=$B56)*('List Unsorted Data - Non Unique'!$C$2:$C$100000=$C56)*('List Unsorted Data - Non Unique'!$D$2:$D$100000=$D56)*('List Unsorted Data - Non Unique'!$E$2:$E$100000=$E56)*('List Unsorted Data - Non Unique'!$F$2:$F$100000=$F56)*('List Unsorted Data - Non Unique'!$H$2:$H$100000)) -> 328
A57: 2015 | B57: 6 | C57: P. Buck | D57: PRD002 | E57: NC01 | F57: Forecast | H57: =SUMPRODUCT(('List Unsorted Data - Non Unique'!$A$2:$A$100000=$A57)*('List Unsorted Data - Non Unique'!$B$2:$B$100000=$B57)*('List Unsorted Data - Non Unique'!$C$2:$C$100000=$C57)*('List Unsorted Data - Non Unique'!$D$2:$D$100000=$D57)*('List Unsorted Data - Non Unique'!$E$2:$E$100000=$E57)*('List Unsorted Data - Non Unique'!$F$2:$F$100000=$F57)*('List Unsorted Data - Non Unique'!$H$2:$H$100000)) -> 324 | J57: =SUMPRODUCT(('[1]List Unsorted Data - Non Unique'!$A$2:$A$100000=$A57)*('[1]List Unsorted Data - Non Unique'!$B$2:$B$100000=$B57)*('[1]List Unsorted Data - Non Unique'!$C$2:$C$100000=$C57)*('[1]List Unsorted Data - Non Unique'!$D$2:$D$100000=$D57)*('[1]List Unsorted Data - Non Unique'!$E$2:$E$100000=$E57)*('[1]List Unsorted Data - Non Unique'!$F$2:$F$100000=$F57)*('[1]List Unsorted Data - Non Unique'!$H$2:$H$100000)) -> 324 | L57: 324 | N57: =SUMIF('List Unsorted Data - Non Unique'!$G$2:$G$100000,A57&"-"&B57&"-"&C57&"-"&D57&"-"&E57&"-"&F57,'List Unsorted Data - Non Unique'!$H$2:$H$100000) -> 324 | P57: =SUMIF('List Unsorted Data - Non Unique'!G:G,A57&"-"&B57&"-"&C57&"-"&D57&"-"&E57&"-"&F57,'List Unsorted Data - Non Unique'!H:H) -> 324 | R57: =SUMPRODUCT(('List Unsorted Data - Non Unique'!$A$2:$A$100000=$A57)*('List Unsorted Data - Non Unique'!$B$2:$B$100000=$B57)*('List Unsorted Data - Non Unique'!$C$2:$C$100000=$C57)*('List Unsorted Data - Non Unique'!$D$2:$D$100000=$D57)*('List Unsorted Data - Non Unique'!$E$2:$E$100000=$E57)*('List Unsorted Data - Non Unique'!$F$2:$F$100000=$F57)*('List Unsorted Data - Non Unique'!$H$2:$H$100000)) -> 324 | T57: =SUMPRODUCT(('List Unsorted Data - Non Unique'!$A$2:$A$100000=$A57)*('List Unsorted Data - Non Unique'!$B$2:$B$100000=$B57)*('List Unsorted Data - Non Unique'!$C$2:$C$100000=$C57)*('List Unsorted Data - Non Unique'!$D$2:$D$100000=$D57)*('List Unsorted Data - Non Unique'!$E$2:$E$100000=$E57)*('List Unsorted Data - Non Unique'!$F$2:$F$100000=$F57)*('List Unsorted Data - Non Unique'!$H$2:$H$100000)) -> 324
A58: 2016 | B58: 4 | C58: M. Stipe | D58: PRD002 | E58: PA01 | F58: Actual | H58: =SUMPRODUCT(('List Unsorted Data - Non Unique'!$A$2:$A$100000=$A58)*('List Unsorted Data - Non Unique'!$B$2:$B$100000=$B58)*('List Unsorted Data - Non Unique'!$C$2:$C$100000=$C58)*('List Unsorted Data - Non Unique'!$D$2:$D$100000=$D58)*('List Unsorted Data - Non Unique'!$E$2:$E$100000=$E58)*('List Unsorted Data - Non Unique'!$F$2:$F$100000=$F58)*('List Unsorted Data - Non Unique'!$H$2:$H$100000)) -> 76 | J58: =SUMPRODUCT(('[1]List Unsorted Data - Non Unique'!$A$2:$A$100000=$A58)*('[1]List Unsorted Data - Non Unique'!$B$2:$B$100000=$B58)*('[1]List Unsorted Data - Non Unique'!$C$2:$C$100000=$C58)*('[1]List Unsorted Data - Non Unique'!$D$2:$D$100000=$D58)*('[1]List Unsorted Data - Non Unique'!$E$2:$E$100000=$E58)*('[1]List Unsorted Data - Non Unique'!$F$2:$F$100000=$F58)*('[1]List Unsorted Data - Non Unique'!$H$2:$H$100000)) -> 76 | L58: 76 | N58: =SUMIF('List Unsorted Data - Non Unique'!$G$2:$G$100000,A58&"-"&B58&"-"&C58&"-"&D58&"-"&E58&"-"&F58,'List Unsorted Data - Non Unique'!$H$2:$H$100000) -> 76 | P58: =SUMIF('List Unsorted Data - Non Unique'!G:G,A58&"-"&B58&"-"&C58&"-"&D58&"-"&E58&"-"&F58,'List Unsorted Data - Non Unique'!H:H) -> 76 | R58: =SUMPRODUCT(('List Unsorted Data - Non Unique'!$A$2:$A$100000=$A58)*('List Unsorted Data - Non Unique'!$B$2:$B$100000=$B58)*('List Unsorted Data - Non Unique'!$C$2:$C$100000=$C58)*('List Unsorted Data - Non Unique'!$D$2:$D$100000=$D58)*('List Unsorted Data - Non Unique'!$E$2:$E$100000=$E58)*('List Unsorted Data - Non Unique'!$F$2:$F$100000=$F58)*('List Unsorted Data - Non Unique'!$H$2:$H$100000)) -> 76 | T58: =SUMPRODUCT(('List Unsorted Data - Non Unique'!$A$2:$A$100000=$A58)*('List Unsorted Data - Non Unique'!$B$2:$B$100000=$B58)*('List Unsorted Data - Non Unique'!$C$2:$C$100000=$C58)*('List Unsorted Data - Non Unique'!$D$2:$D$100000=$D58)*('List Unsorted Data - Non Unique'!$E$2:$E$100000=$E58)*('List Unsorted Data - Non Unique'!$F$2:$F$100000=$F58)*('List Unsorted Data - Non Unique'!$H$2:$H$100000)) -> 76
A59: 2015 | B59: 3 | C59: B. Shelton | D59: PRD002 | E59: VA01 | F59: Actual | H59: =SUMPRODUCT(('List Unsorted Data - Non Unique'!$A$2:$A$100000=$A59)*('List Unsorted Data - Non Unique'!$B$2:$B$100000=$B59)*('List Unsorted Data - Non Unique'!$C$2:$C$100000=$C59)*('List Unsorted Data - Non Unique'!$D$2:$D$100000=$D59)*('List Unsorted Data - Non Unique'!$E$2:$E$100000=$E59)*('List Unsorted Data - Non Unique'!$F$2:$F$100000=$F59)*('List Unsorted Data - Non Unique'!$H$2:$H$100000)) -> 328 | J59: =SUMPRODUCT(('[1]List Unsorted Data - Non Unique'!$A$2:$A$100000=$A59)*('[1]List Unsorted Data - Non Unique'!$B$2:$B$100000=$B59)*('[1]List Unsorted Data - Non Unique'!$C$2:$C$100000=$C59)*('[1]List Unsorted Data - Non Unique'!$D$2:$D$100000=$D59)*('[1]List Unsorted Data - Non Unique'!$E$2:$E$100000=$E59)*('[1]List Unsorted Data - Non Unique'!$F$2:$F$100000=$F59)*('[1]List Unsorted Data - Non Unique'!$H$2:$H$100000)) -> 328 | L59: 328 | N59: =SUMIF('List Unsorted Data - Non Unique'!$G$2:$G$100000,A59&"-"&B59&"-"&C59&"-"&D59&"-"&E59&"-"&F59,'List Unsorted Data - Non Unique'!$H$2:$H$100000) -> 328 | P59: =SUMIF('List Unsorted Data - Non Unique'!G:G,A59&"-"&B59&"-"&C59&"-"&D59&"-"&E59&"-"&F59,'List Unsorted Data - Non Unique'!H:H) -> 328 | R59: =SUMPRODUCT(('List Unsorted Data - Non Unique'!$A$2:$A$100000=$A59)*('List Unsorted Data - Non Unique'!$B$2:$B$100000=$B59)*('List Unsorted Data - Non Unique'!$C$2:$C$100000=$C59)*('List Unsorted Data - Non Unique'!$D$2:$D$100000=$D59)*('List Unsorted Data - Non Unique'!$E$2:$E$100000=$E59)*('List Unsorted Data - Non Unique'!$F$2:$F$100000=$F59)*('List Unsorted Data - Non Unique'!$H$2:$H$100000)) -> 328 | T59: =SUMPRODUCT(('List Unsorted Data - Non Unique'!$A$2:$A$100000=$A59)*('List Unsorted Data - Non Unique'!$B$2:$B$100000=$B59)*('List Unsorted Data - Non Unique'!$C$2:$C$100000=$C59)*('List Unsorted Data - Non Unique'!$D$2:$D$100000=$D59)*('List Unsorted Data - Non Unique'!$E$2:$E$100000=$E59)*('List Unsorted Data - Non Unique'!$F$2:$F$100000=$F59)*('List Unsorted Data - Non Unique'!$H$2:$H$100000)) -> 328
A60: 2016 | B60: 6 | C60: P. Buck | D60: ASL001 | E60: AK01 | F60: Actual | H60: =SUMPRODUCT(('List Unsorted Data - Non Unique'!$A$2:$A$100000=$A60)*('List Unsorted Data - Non Unique'!$B$2:$B$100000=$B60)*('List Unsorted Data - Non Unique'!$C$2:$C$100000=$C60)*('List Unsorted Data - Non Unique'!$D$2:$D$100000=$D60)*('List Unsorted Data - Non Unique'!$E$2:$E$100000=$E60)*('List Unsorted Data - Non Unique'!$F$2:$F$100000=$F60)*('List Unsorted Data - Non Unique'!$H$2:$H$100000)) -> 210 | J60: =SUMPRODUCT(('[1]List Unsorted Data - Non Unique'!$A$2:$A$100000=$A60)*('[1]List Unsorted Data - Non Unique'!$B$2:$B$100000=$B60)*('[1]List Unsorted Data - Non Unique'!$C$2:$C$100000=$C60)*('[1]List Unsorted Data - Non Unique'!$D$2:$D$100000=$D60)*('[1]List Unsorted Data - Non Unique'!$E$2:$E$100000=$E60)*('[1]List Unsorted Data - Non Unique'!$F$2:$F$100000=$F60)*('[1]List Unsorted Data - Non Unique'!$H$2:$H$100000)) -> 210 | L60: 210 | N60: =SUMIF('List Unsorted Data - Non Unique'!$G$2:$G$100000,A60&"-"&B60&"-"&C60&"-"&D60&"-"&E60&"-"&F60,'List Unsorted Data - Non Unique'!$H$2:$H$100000) -> 210 | P60: =SUMIF('List Unsorted Data - Non Unique'!G:G,A60&"-"&B60&"-"&C60&"-"&D60&"-"&E60&"-"&F60,'List Unsorted Data - Non Unique'!H:H) -> 210 | R60: =SUMPRODUCT(('List Unsorted Data - Non Unique'!$A$2:$A$100000=$A60)*('List Unsorted Data - Non Unique'!$B$2:$B$100000=$B60)*('List Unsorted Data - Non Unique'!$C$2:$C$100000=$C60)*('List Unsorted Data - Non Unique'!$D$2:$D$100000=$D60)*('List Unsorted Data - Non Unique'!$E$2:$E$100000=$E60)*('List Unsorted Data - Non Unique'!$F$2:$F$100000=$F60)*('List Unsorted Data - Non Unique'!$H$2:$H$100000)) -> 210 | T60: =SUMPRODUCT(('List Unsorted Data - Non Unique'!$A$2:$A$100000=$A60)*('List Unsorted Data - Non Unique'!$B$2:$B$100000=$B60)*('List Unsorted Data - Non Unique'!$C$2:$C$100000=$C60)*('List Unsorted Data - Non Unique'!$D$2:$D$100000=$D60)*('List Unsorted Data - Non Unique'!$E$2:$E$100000=$E60)*('List Unsorted Data - Non Unique'!$F$2:$F$100000=$F60)*('List Unsorted Data - Non Unique'!$H$2:$H$100000)) -> 210
A61: 2015 | B61: 9 | C61: S. Crow | D61: ASL003 | E61: SD01 | F61: Forecast | H61: =SUMPRODUCT(('List Unsorted Data - Non Unique'!$A$2:$A$100000=$A61)*('List Unsorted Data - Non Unique'!$B$2:$B$100000=$B61)*('List Unsorted Data - Non Unique'!$C$2:$C$100000=$C61)*('List Unsorted Data - Non Unique'!$D$2:$D$100000=$D61)*('List Unsorted Data - Non Unique'!$E$2:$E$100000=$E61)*('List Unsorted Data - Non Unique'!$F$2:$F$100000=$F61)*('List Unsorted Data - Non Unique'!$H$2:$H$100000)) -> 179 | J61: =SUMPRODUCT(('[1]List Unsorted Data - Non Unique'!$A$2:$A$100000=$A61)*('[1]List Unsorted Data - Non Unique'!$B$2:$B$100000=$B61)*('[1]List Unsorted Data - Non Unique'!$C$2:$C$100000=$C61)*('[1]List Unsorted Data - Non Unique'!$D$2:$D$100000=$D61)*('[1]List Unsorted Data - Non Unique'!$E$2:$E$100000=$E61)*('[1]List Unsorted Data - Non Unique'!$F$2:$F$100000=$F61)*('[1]List Unsorted Data - Non Unique'!$H$2:$H$100000)) -> 179 | L61: 179 | N61: =SUMIF('List Unsorted Data - Non Unique'!$G$2:$G$100000,A61&"-"&B61&"-"&C61&"-"&D61&"-"&E61&"-"&F61,'List Unsorted Data - Non Unique'!$H$2:$H$100000) -> 179 | P61: =SUMIF('List Unsorted Data - Non Unique'!G:G,A61&"-"&B61&"-"&C61&"-"&D61&"-"&E61&"-"&F61,'List Unsorted Data - Non Unique'!H:H) -> 179 | R61: =SUMPRODUCT(('List Unsorted Data - Non Unique'!$A$2:$A$100000=$A61)*('List Unsorted Data - Non Unique'!$B$2:$B$100000=$B61)*('List Unsorted Data - Non Unique'!$C$2:$C$100000=$C61)*('List Unsorted Data - Non Unique'!$D$2:$D$100000=$D61)*('List Unsorted Data - Non Unique'!$E$2:$E$100000=$E61)*('List Unsorted Data - Non Unique'!$F$2:$F$100000=$F61)*('List Unsorted Data - Non Unique'!$H$2:$H$100000)) -> 179 | T61: =SUMPRODUCT(('List Unsorted Data - Non Unique'!$A$2:$A$100000=$A61)*('List Unsorted Data - Non Unique'!$B$2:$B$100000=$B61)*('List Unsorted Data - Non Unique'!$C$2:$C$100000=$C61)*('List Unsorted Data - Non Unique'!$D$2:$D$100000=$D61)*('List Unsorted Data - Non Unique'!$E$2:$E$100000=$E61)*('List Unsorted Data - Non Unique'!$F$2:$F$100000=$F61)*('List Unsorted Data - Non Unique'!$H$2:$H$100000)) -> 179
A62: 2014 | B62: 8 | C62: P. Buck | D62: DFG001 | E62: AK01 | F62: Actual | H62: =SUMPRODUCT(('List Unsorted Data - Non Unique'!$A$2:$A$100000=$A62)*('List Unsorted Data - Non Unique'!$B$2:$B$100000=$B62)*('List Unsorted Data - Non Unique'!$C$2:$C$100000=$C62)*('List Unsorted Data - Non Unique'!$D$2:$D$100000=$D62)*('List Unsorted Data - Non Unique'!$E$2:$E$100000=$E62)*('List Unsorted Data - Non Unique'!$F$2:$F$100000=$F62)*('List Unsorted Data - Non Unique'!$H$2:$H$100000)) -> 68 | J62: =SUMPRODUCT(('[1]List Unsorted Data - Non Unique'!$A$2:$A$100000=$A62)*('[1]List Unsorted Data - Non Unique'!$B$2:$B$100000=$B62)*('[1]List Unsorted Data - Non Unique'!$C$2:$C$100000=$C62)*('[1]List Unsorted Data - Non Unique'!$D$2:$D$100000=$D62)*('[1]List Unsorted Data - Non Unique'!$E$2:$E$100000=$E62)*('[1]List Unsorted Data - Non Unique'!$F$2:$F$100000=$F62)*('[1]List Unsorted Data - Non Unique'!$H$2:$H$100000)) -> 68 | L62: 68 | N62: =SUMIF('List Unsorted Data - Non Unique'!$G$2:$G$100000,A62&"-"&B62&"-"&C62&"-"&D62&"-"&E62&"-"&F62,'List Unsorted Data - Non Unique'!$H$2:$H$100000) -> 68 | P62: =SUMIF('List Unsorted Data - Non Unique'!G:G,A62&"-"&B62&"-"&C62&"-"&D62&"-"&E62&"-"&F62,'List Unsorted Data - Non Unique'!H:H) -> 68 | R62: =SUMPRODUCT(('List Unsorted Data - Non Unique'!$A$2:$A$100000=$A62)*('List Unsorted Data - Non Unique'!$B$2:$B$100000=$B62)*('List Unsorted Data - Non Unique'!$C$2:$C$100000=$C62)*('List Unsorted Data - Non Unique'!$D$2:$D$100000=$D62)*('List Unsorted Data - Non Unique'!$E$2:$E$100000=$E62)*('List Unsorted Data - Non Unique'!$F$2:$F$100000=$F62)*('List Unsorted Data - Non Unique'!$H$2:$H$100000)) -> 68 | T62: =SUMPRODUCT(('List Unsorted Data - Non Unique'!$A$2:$A$100000=$A62)*('List Unsorted Data - Non Unique'!$B$2:$B$100000=$B62)*('List Unsorted Data - Non Unique'!$C$2:$C$100000=$C62)*('List Unsorted Data - Non Unique'!$D$2:$D$100000=$D62)*('List Unsorted Data - Non Unique'!$E$2:$E$100000=$E62)*('List Unsorted Data - Non Unique'!$F$2:$F$100000=$F62)*('List Unsorted Data - Non Unique'!$H$2:$H$100000)) -> 68
A63: 2015 | B63: 10 | C63: J. Lennon | D63: DFG001 | E63: SD01 | F63: Forecast | H63: =SUMPRODUCT(('List Unsorted Data - Non Unique'!$A$2:$A$100000=$A63)*('List Unsorted Data - Non Unique'!$B$2:$B$100000=$B63)*('List Unsorted Data - Non Unique'!$C$2:$C$100000=$C63)*('List Unsorted Data - Non Unique'!$D$2:$D$100000=$D63)*('List Unsorted Data - Non Unique'!$E$2:$E$100000=$E63)*('List Unsorted Data - Non Unique'!$F$2:$F$100000=$F63)*('List Unsorted Data - Non Unique'!$H$2:$H$100000)) -> 62 | J63: =SUMPRODUCT(('[1]List Unsorted Data - Non Unique'!$A$2:$A$100000=$A63)*('[1]List Unsorted Data - Non Unique'!$B$2:$B$100000=$B63)*('[1]List Unsorted Data - Non Unique'!$C$2:$C$100000=$C63)*('[1]List Unsorted Data - Non Unique'!$D$2:$D$100000=$D63)*('[1]List Unsorted Data - Non Unique'!$E$2:$E$100000=$E63)*('[1]List Unsorted Data - Non Unique'!$F$2:$F$100000=$F63)*('[1]List Unsorted Data - Non Unique'!$H$2:$H$100000)) -> 62 | L63: 62 | N63: =SUMIF('List Unsorted Data - Non Unique'!$G$2:$G$100000,A63&"-"&B63&"-"&C63&"-"&D63&"-"&E63&"-"&F63,'List Unsorted Data - Non Unique'!$H$2:$H$100000) -> 62 | P63: =SUMIF('List Unsorted Data - Non Unique'!G:G,A63&"-"&B63&"-"&C63&"-"&D63&"-"&E63&"-"&F63,'List Unsorted Data - Non Unique'!H:H) -> 62 | R63: =SUMPRODUCT(('List Unsorted Data - Non Unique'!$A$2:$A$100000=$A63)*('List Unsorted Data - Non Unique'!$B$2:$B$100000=$B63)*('List Unsorted Data - Non Unique'!$C$2:$C$100000=$C63)*('List Unsorted Data - Non Unique'!$D$2:$D$100000=$D63)*('List Unsorted Data - Non Unique'!$E$2:$E$100000=$E63)*('List Unsorted Data - Non Unique'!$F$2:$F$100000=$F63)*('List Unsorted Data - Non Unique'!$H$2:$H$100000)) -> 62 | T63: =SUMPRODUCT(('List Unsorted Data - Non Unique'!$A$2:$A$100000=$A63)*('List Unsorted Data - Non Unique'!$B$2:$B$100000=$B63)*('List Unsorted Data - Non Unique'!$C$2:$C$100000=$C63)*('List Unsorted Data - Non Unique'!$D$2:$D$100000=$D63)*('List Unsorted Data - Non Unique'!$E$2:$E$100000=$E63)*('List Unsorted Data - Non Unique'!$F$2:$F$100000=$F63)*('List Unsorted Data - Non Unique'!$H$2:$H$100000)) -> 62
A64: 2015 | B64: 11 | C64: B. Paisley | D64: PRD001 | E64: LA01 | F64: Forecast | H64: =SUMPRODUCT(('List Unsorted Data - Non Unique'!$A$2:$A$100000=$A64)*('List Unsorted Data - Non Unique'!$B$2:$B$100000=$B64)*('List Unsorted Data - Non Unique'!$C$2:$C$100000=$C64)*('List Unsorted Data - Non Unique'!$D$2:$D$100000=$D64)*('List Unsorted Data - Non Unique'!$E$2:$E$100000=$E64)*('List Unsorted Data - Non Unique'!$F$2:$F$100000=$F64)*('List Unsorted Data - Non Unique'!$H$2:$H$100000)) -> 264 | J64: =SUMPRODUCT(('[1]List Unsorted Data - Non Unique'!$A$2:$A$100000=$A64)*('[1]List Unsorted Data - Non Unique'!$B$2:$B$100000=$B64)*('[1]List Unsorted Data - Non Unique'!$C$2:$C$100000=$C64)*('[1]List Unsorted Data - Non Unique'!$D$2:$D$100000=$D64)*('[1]List Unsorted Data - Non Unique'!$E$2:$E$100000=$E64)*('[1]List Unsorted Data - Non Unique'!$F$2:$F$100000=$F64)*('[1]List Unsorted Data - Non Unique'!$H$2:$H$100000)) -> 264 | L64: 264 | N64: =SUMIF('List Unsorted Data - Non Unique'!$G$2:$G$100000,A64&"-"&B64&"-"&C64&"-"&D64&"-"&E64&"-"&F64,'List Unsorted Data - Non Unique'!$H$2:$H$100000) -> 264 | P64: =SUMIF('List Unsorted Data - Non Unique'!G:G,A64&"-"&B64&"-"&C64&"-"&D64&"-"&E64&"-"&F64,'List Unsorted Data - Non Unique'!H:H) -> 264 | R64: =SUMPRODUCT(('List Unsorted Data - Non Unique'!$A$2:$A$100000=$A64)*('List Unsorted Data - Non Unique'!$B$2:$B$100000=$B64)*('List Unsorted Data - Non Unique'!$C$2:$C$100000=$C64)*('List Unsorted Data - Non Unique'!$D$2:$D$100000=$D64)*('List Unsorted Data - Non Unique'!$E$2:$E$100000=$E64)*('List Unsorted Data - Non Unique'!$F$2:$F$100000=$F64)*('List Unsorted Data - Non Unique'!$H$2:$H$100000)) -> 264 | T64: =SUMPRODUCT(('List Unsorted Data - Non Unique'!$A$2:$A$100000=$A64)*('List Unsorted Data - Non Unique'!$B$2:$B$100000=$B64)*('List Unsorted Data - Non Unique'!$C$2:$C$100000=$C64)*('List Unsorted Data - Non Unique'!$D$2:$D$100000=$D64)*('List Unsorted Data - Non Unique'!$E$2:$E$100000=$E64)*('List Unsorted Data - Non Unique'!$F$2:$F$100000=$F64)*('List Unsorted Data - Non Unique'!$H$2:$H$100000)) -> 264
A65: 2015 | B65: 7 | C65: C. Underwood | D65: ASL003 | E65: VA01 | F65: Forecast | H65: =SUMPRODUCT(('List Unsorted Data - Non Unique'!$A$2:$A$100000=$A65)*('List Unsorted Data - Non Unique'!$B$2:$B$100000=$B65)*('List Unsorted Data - Non Unique'!$C$2:$C$100000=$C65)*('List Unsorted Data - Non Unique'!$D$2:$D$100000=$D65)*('List Unsorted Data - Non Unique'!$E$2:$E$100000=$E65)*('List Unsorted Data - Non Unique'!$F$2:$F$100000=$F65)*('List Unsorted Data - Non Unique'!$H$2:$H$100000)) -> 56 | J65: =SUMPRODUCT(('[1]List Unsorted Data - Non Unique'!$A$2:$A$100000=$A65)*('[1]List Unsorted Data - Non Unique'!$B$2:$B$100000=$B65)*('[1]List Unsorted Data - Non Unique'!$C$2:$C$100000=$C65)*('[1]List Unsorted Data - Non Unique'!$D$2:$D$100000=$D65)*('[1]List Unsorted Data - Non Unique'!$E$2:$E$100000=$E65)*('[1]List Unsorted Data - Non Unique'!$F$2:$F$100000=$F65)*('[1]List Unsorted Data - Non Unique'!$H$2:$H$100000)) -> 56 | L65: 56 | N65: =SUMIF('List Unsorted Data - Non Unique'!$G$2:$G$100000,A65&"-"&B65&"-"&C65&"-"&D65&"-"&E65&"-"&F65,'List Unsorted Data - Non Unique'!$H$2:$H$100000) -> 56 | P65: =SUMIF('List Unsorted Data - Non Unique'!G:G,A65&"-"&B65&"-"&C65&"-"&D65&"-"&E65&"-"&F65,'List Unsorted Data - Non Unique'!H:H) -> 56 | R65: =SUMPRODUCT(('List Unsorted Data - Non Unique'!$A$2:$A$100000=$A65)*('List Unsorted Data - Non Unique'!$B$2:$B$100000=$B65)*('List Unsorted Data - Non Unique'!$C$2:$C$100000=$C65)*('List Unsorted Data - Non Unique'!$D$2:$D$100000=$D65)*('List Unsorted Data - Non Unique'!$E$2:$E$100000=$E65)*('List Unsorted Data - Non Unique'!$F$2:$F$100000=$F65)*('List Unsorted Data - Non Unique'!$H$2:$H$100000)) -> 56 | T65: =SUMPRODUCT(('List Unsorted Data - Non Unique'!$A$2:$A$100000=$A65)*('List Unsorted Data - Non Unique'!$B$2:$B$100000=$B65)*('List Unsorted Data - Non Unique'!$C$2:$C$100000=$C65)*('List Unsorted Data - Non Unique'!$D$2:$D$100000=$D65)*('List Unsorted Data - Non Unique'!$E$2:$E$100000=$E65)*('List Unsorted Data - Non Unique'!$F$2:$F$100000=$F65)*('List Unsorted Data - Non Unique'!$H$2:$H$100000)) -> 56
A66: 2016 | B66: 9 | C66: B. Paisley | D66: ASL002 | E66: SD01 | F66: Forecast | H66: =SUMPRODUCT(('List Unsorted Data - Non Unique'!$A$2:$A$100000=$A66)*('List Unsorted Data - Non Unique'!$B$2:$B$100000=$B66)*('List Unsorted Data - Non Unique'!$C$2:$C$100000=$C66)*('List Unsorted Data - Non Unique'!$D$2:$D$100000=$D66)*('List Unsorted Data - Non Unique'!$E$2:$E$100000=$E66)*('List Unsorted Data - Non Unique'!$F$2:$F$100000=$F66)*('List Unsorted Data - Non Unique'!$H$2:$H$100000)) -> 54 | J66: =SUMPRODUCT(('[1]List Unsorted Data - Non Unique'!$A$2:$A$100000=$A66)*('[1]List Unsorted Data - Non Unique'!$B$2:$B$100000=$B66)*('[1]List Unsorted Data - Non Unique'!$C$2:$C$100000=$C66)*('[1]List Unsorted Data - Non Unique'!$D$2:$D$100000=$D66)*('[1]List Unsorted Data - Non Unique'!$E$2:$E$100000=$E66)*('[1]List Unsorted Data - Non Unique'!$F$2:$F$100000=$F66)*('[1]List Unsorted Data - Non Unique'!$H$2:$H$100000)) -> 54 | L66: 54 | N66: =SUMIF('List Unsorted Data - Non Unique'!$G$2:$G$100000,A66&"-"&B66&"-"&C66&"-"&D66&"-"&E66&"-"&F66,'List Unsorted Data - Non Unique'!$H$2:$H$100000) -> 54 | P66: =SUMIF('List Unsorted Data - Non Unique'!G:G,A66&"-"&B66&"-"&C66&"-"&D66&"-"&E66&"-"&F66,'List Unsorted Data - Non Unique'!H:H) -> 54 | R66: =SUMPRODUCT(('List Unsorted Data - Non Unique'!$A$2:$A$100000=$A66)*('List Unsorted Data - Non Unique'!$B$2:$B$100000=$B66)*('List Unsorted Data - Non Unique'!$C$2:$C$100000=$C66)*('List Unsorted Data - Non Unique'!$D$2:$D$100000=$D66)*('List Unsorted Data - Non Unique'!$E$2:$E$100000=$E66)*('List Unsorted Data - Non Unique'!$F$2:$F$100000=$F66)*('List Unsorted Data - Non Unique'!$H$2:$H$100000)) -> 54 | T66: =SUMPRODUCT(('List Unsorted Data - Non Unique'!$A$2:$A$100000=$A66)*('List Unsorted Data - Non Unique'!$B$2:$B$100000=$B66)*('List Unsorted Data - Non Unique'!$C$2:$C$100000=$C66)*('List Unsorted Data - Non Unique'!$D$2:$D$100000=$D66)*('List Unsorted Data - Non Unique'!$E$2:$E$100000=$E66)*('List Unsorted Data - Non Unique'!$F$2:$F$100000=$F66)*('List Unsorted Data - Non Unique'!$H$2:$H$100000)) -> 54
A67: 2015 | B67: 8 | C67: B. Shelton | D67: ASL002 | E67: NC01 | F67: Forecast | H67: =SUMPRODUCT(('List Unsorted Data - Non Unique'!$A$2:$A$100000=$A67)*('List Unsorted Data - Non Unique'!$B$2:$B$100000=$B67)*('List Unsorted Data - Non Unique'!$C$2:$C$100000=$C67)*('List Unsorted Data - Non Unique'!$D$2:$D$100000=$D67)*('List Unsorted Data - Non Unique'!$E$2:$E$100000=$E67)*('List Unsorted Data - Non Unique'!$F$2:$F$100000=$F67)*('List Unsorted Data - Non Unique'!$H$2:$H$100000)) -> 164 | J67: =SUMPRODUCT(('[1]List Unsorted Data - Non Unique'!$A$2:$A$100000=$A67)*('[1]List Unsorted Data - Non Unique'!$B$2:$B$100000=$B67)*('[1]List Unsorted Data - Non Unique'!$C$2:$C$100000=$C67)*('[1]List Unsorted Data - Non Unique'!$D$2:$D$100000=$D67)*('[1]List Unsorted Data - Non Unique'!$E$2:$E$100000=$E67)*('[1]List Unsorted Data - Non Unique'!$F$2:$F$100000=$F67)*('[1]List Unsorted Data - Non Unique'!$H$2:$H$100000)) -> 164 | L67: 164 | N67: =SUMIF('List Unsorted Data - Non Unique'!$G$2:$G$100000,A67&"-"&B67&"-"&C67&"-"&D67&"-"&E67&"-"&F67,'List Unsorted Data - Non Unique'!$H$2:$H$100000) -> 164 | P67: =SUMIF('List Unsorted Data - Non Unique'!G:G,A67&"-"&B67&"-"&C67&"-"&D67&"-"&E67&"-"&F67,'List Unsorted Data - Non Unique'!H:H) -> 164 | R67: =SUMPRODUCT(('List Unsorted Data - Non Unique'!$A$2:$A$100000=$A67)*('List Unsorted Data - Non Unique'!$B$2:$B$100000=$B67)*('List Unsorted Data - Non Unique'!$C$2:$C$100000=$C67)*('List Unsorted Data - Non Unique'!$D$2:$D$100000=$D67)*('List Unsorted Data - Non Unique'!$E$2:$E$100000=$E67)*('List Unsorted Data - Non Unique'!$F$2:$F$100000=$F67)*('List Unsorted Data - Non Unique'!$H$2:$H$100000)) -> 164 | T67: =SUMPRODUCT(('List Unsorted Data - Non Unique'!$A$2:$A$100000=$A67)*('List Unsorted Data - Non Unique'!$B$2:$B$100000=$B67)*('List Unsorted Data - Non Unique'!$C$2:$C$100000=$C67)*('List Unsorted Data - Non Unique'!$D$2:$D$100000=$D67)*('List Unsorted Data - Non Unique'!$E$2:$E$100000=$E67)*('List Unsorted Data - Non Unique'!$F$2:$F$100000=$F67)*('List Unsorted Data - Non Unique'!$H$2:$H$100000)) -> 164
A68: 2016 | B68: 6 | C68: S. Crow | D68: POT002 | E68: PA01 | F68: Actual | H68: =SUMPRODUCT(('List Unsorted Data - Non Unique'!$A$2:$A$100000=$A68)*('List Unsorted Data - Non Unique'!$B$2:$B$100000=$B68)*('List Unsorted Data - Non Unique'!$C$2:$C$100000=$C68)*('List Unsorted Data - Non Unique'!$D$2:$D$100000=$D68)*('List Unsorted Data - Non Unique'!$E$2:$E$100000=$E68)*('List Unsorted Data - Non Unique'!$F$2:$F$100000=$F68)*('List Unsorted Data - Non Unique'!$H$2:$H$100000)) -> 65 | J68: =SUMPRODUCT(('[1]List Unsorted Data - Non Unique'!$A$2:$A$100000=$A68)*('[1]List Unsorted Data - Non Unique'!$B$2:$B$100000=$B68)*('[1]List Unsorted Data - Non Unique'!$C$2:$C$100000=$C68)*('[1]List Unsorted Data - Non Unique'!$D$2:$D$100000=$D68)*('[1]List Unsorted Data - Non Unique'!$E$2:$E$100000=$E68)*('[1]List Unsorted Data - Non Unique'!$F$2:$F$100000=$F68)*('[1]List Unsorted Data - Non Unique'!$H$2:$H$100000)) -> 65 | L68: 65 | N68: =SUMIF('List Unsorted Data - Non Unique'!$G$2:$G$100000,A68&"-"&B68&"-"&C68&"-"&D68&"-"&E68&"-"&F68,'List Unsorted Data - Non Unique'!$H$2:$H$100000) -> 65 | P68: =SUMIF('List Unsorted Data - Non Unique'!G:G,A68&"-"&B68&"-"&C68&"-"&D68&"-"&E68&"-"&F68,'List Unsorted Data - Non Unique'!H:H) -> 65 | R68: =SUMPRODUCT(('List Unsorted Data - Non Unique'!$A$2:$A$100000=$A68)*('List Unsorted Data - Non Unique'!$B$2:$B$100000=$B68)*('List Unsorted Data - Non Unique'!$C$2:$C$100000=$C68)*('List Unsorted Data - Non Unique'!$D$2:$D$100000=$D68)*('List Unsorted Data - Non Unique'!$E$2:$E$100000=$E68)*('List Unsorted Data - Non Unique'!$F$2:$F$100000=$F68)*('List Unsorted Data - Non Unique'!$H$2:$H$100000)) -> 65 | T68: =SUMPRODUCT(('List Unsorted Data - Non Unique'!$A$2:$A$100000=$A68)*('List Unsorted Data - Non Unique'!$B$2:$B$100000=$B68)*('List Unsorted Data - Non Unique'!$C$2:$C$100000=$C68)*('List Unsorted Data - Non Unique'!$D$2:$D$100000=$D68)*('List Unsorted Data - Non Unique'!$E$2:$E$100000=$E68)*('List Unsorted Data - Non Unique'!$F$2:$F$100000=$F68)*('List Unsorted Data - Non Unique'!$H$2:$H$100000)) -> 65
A69: 2014 | B69: 12 | C69: M. Stipe | D69: POT002 | E69: MN01 | F69: Actual | H69: =SUMPRODUCT(('List Unsorted Data - Non Unique'!$A$2:$A$100000=$A69)*('List Unsorted Data - Non Unique'!$B$2:$B$100000=$B69)*('List Unsorted Data - Non Unique'!$C$2:$C$100000=$C69)*('List Unsorted Data - Non Unique'!$D$2:$D$100000=$D69)*('List Unsorted Data - Non Unique'!$E$2:$E$100000=$E69)*('List Unsorted Data - Non Unique'!$F$2:$F$100000=$F69)*('List Unsorted Data - Non Unique'!$H$2:$H$100000)) -> 143 | J69: =SUMPRODUCT(('[1]List Unsorted Data - Non Unique'!$A$2:$A$100000=$A69)*('[1]List Unsorted Data - Non Unique'!$B$2:$B$100000=$B69)*('[1]List Unsorted Data - Non Unique'!$C$2:$C$100000=$C69)*('[1]List Unsorted Data - Non Unique'!$D$2:$D$100000=$D69)*('[1]List Unsorted Data - Non Unique'!$E$2:$E$100000=$E69)*('[1]List Unsorted Data - Non Unique'!$F$2:$F$100000=$F69)*('[1]List Unsorted Data - Non Unique'!$H$2:$H$100000)) -> 143 | L69: 143 | N69: =SUMIF('List Unsorted Data - Non Unique'!$G$2:$G$100000,A69&"-"&B69&"-"&C69&"-"&D69&"-"&E69&"-"&F69,'List Unsorted Data - Non Unique'!$H$2:$H$100000) -> 143 | P69: =SUMIF('List Unsorted Data - Non Unique'!G:G,A69&"-"&B69&"-"&C69&"-"&D69&"-"&E69&"-"&F69,'List Unsorted Data - Non Unique'!H:H) -> 143 | R69: =SUMPRODUCT(('List Unsorted Data - Non Unique'!$A$2:$A$100000=$A69)*('List Unsorted Data - Non Unique'!$B$2:$B$100000=$B69)*('List Unsorted Data - Non Unique'!$C$2:$C$100000=$C69)*('List Unsorted Data - Non Unique'!$D$2:$D$100000=$D69)*('List Unsorted Data - Non Unique'!$E$2:$E$100000=$E69)*('List Unsorted Data - Non Unique'!$F$2:$F$100000=$F69)*('List Unsorted Data - Non Unique'!$H$2:$H$100000)) -> 143 | T69: =SUMPRODUCT(('List Unsorted Data - Non Unique'!$A$2:$A$100000=$A69)*('List Unsorted Data - Non Unique'!$B$2:$B$100000=$B69)*('List Unsorted Data - Non Unique'!$C$2:$C$100000=$C69)*('List Unsorted Data - Non Unique'!$D$2:$D$100000=$D69)*('List Unsorted Data - Non Unique'!$E$2:$E$100000=$E69)*('List Unsorted Data - Non Unique'!$F$2:$F$100000=$F69)*('List Unsorted Data - Non Unique'!$H$2:$H$100000)) -> 143
A70: 2015 | B70: 8 | C70: R. Star | D70: POT002 | E70: SD01 | F70: Actual | H70: =SUMPRODUCT(('List Unsorted Data - Non Unique'!$A$2:$A$100000=$A70)*('List Unsorted Data - Non Unique'!$B$2:$B$100000=$B70)*('List Unsorted Data - Non Unique'!$C$2:$C$100000=$C70)*('List Unsorted Data - Non Unique'!$D$2:$D$100000=$D70)*('List Unsorted Data - Non Unique'!$E$2:$E$100000=$E70)*('List Unsorted Data - Non Unique'!$F$2:$F$100000=$F70)*('List Unsorted Data - Non Unique'!$H$2:$H$100000)) -> 151 | J70: =SUMPRODUCT(('[1]List Unsorted Data - Non Unique'!$A$2:$A$100000=$A70)*('[1]List Unsorted Data - Non Unique'!$B$2:$B$100000=$B70)*('[1]List Unsorted Data - Non Unique'!$C$2:$C$100000=$C70)*('[1]List Unsorted Data - Non Unique'!$D$2:$D$100000=$D70)*('[1]List Unsorted Data - Non Unique'!$E$2:$E$100000=$E70)*('[1]List Unsorted Data - Non Unique'!$F$2:$F$100000=$F70)*('[1]List Unsorted Data - Non Unique'!$H$2:$H$100000)) -> 151 | L70: 151 | N70: =SUMIF('List Unsorted Data - Non Unique'!$G$2:$G$100000,A70&"-"&B70&"-"&C70&"-"&D70&"-"&E70&"-"&F70,'List Unsorted Data - Non Unique'!$H$2:$H$100000) -> 151 | P70: =SUMIF('List Unsorted Data - Non Unique'!G:G,A70&"-"&B70&"-"&C70&"-"&D70&"-"&E70&"-"&F70,'List Unsorted Data - Non Unique'!H:H) -> 151 | R70: =SUMPRODUCT(('List Unsorted Data - Non Unique'!$A$2:$A$100000=$A70)*('List Unsorted Data - Non Unique'!$B$2:$B$100000=$B70)*('List Unsorted Data - Non Unique'!$C$2:$C$100000=$C70)*('List Unsorted Data - Non Unique'!$D$2:$D$100000=$D70)*('List Unsorted Data - Non Unique'!$E$2:$E$100000=$E70)*('List Unsorted Data - Non Unique'!$F$2:$F$100000=$F70)*('List Unsorted Data - Non Unique'!$H$2:$H$100000)) -> 151 | T70: =SUMPRODUCT(('List Unsorted Data - Non Unique'!$A$2:$A$100000=$A70)*('List Unsorted Data - Non Unique'!$B$2:$B$100000=$B70)*('List Unsorted Data - Non Unique'!$C$2:$C$100000=$C70)*('List Unsorted Data - Non Unique'!$D$2:$D$100000=$D70)*('List Unsorted Data - Non Unique'!$E$2:$E$100000=$E70)*('List Unsorted Data - Non Unique'!$F$2:$F$100000=$F70)*('List Unsorted Data - Non Unique'!$H$2:$H$100000)) -> 151
A71: 2015 | B71: 7 | C71: S. Crow | D71: PRD002 | E71: LA01 | F71: Forecast | H71: =SUMPRODUCT(('List Unsorted Data - Non Unique'!$A$2:$A$100000=$A71)*('List Unsorted Data - Non Unique'!$B$2:$B$100000=$B71)*('List Unsorted Data - Non Unique'!$C$2:$C$100000=$C71)*('List Unsorted Data - Non Unique'!$D$2:$D$100000=$D71)*('List Unsorted Data - Non Unique'!$E$2:$E$100000=$E71)*('List Unsorted Data - Non Unique'!$F$2:$F$100000=$F71)*('List Unsorted Data - Non Unique'!$H$2:$H$100000)) -> 240 | J71: =SUMPRODUCT(('[1]List Unsorted Data - Non Unique'!$A$2:$A$100000=$A71)*('[1]List Unsorted Data - Non Unique'!$B$2:$B$100000=$B71)*('[1]List Unsorted Data - Non Unique'!$C$2:$C$100000=$C71)*('[1]List Unsorted Data - Non Unique'!$D$2:$D$100000=$D71)*('[1]List Unsorted Data - Non Unique'!$E$2:$E$100000=$E71)*('[1]List Unsorted Data - Non Unique'!$F$2:$F$100000=$F71)*('[1]List Unsorted Data - Non Unique'!$H$2:$H$100000)) -> 240 | L71: =SUMPRODUCT(($A$151:$A$100149=$A71)*($B$151:$B$100149=$B71)*($C$151:$C$100149=$C71)*($D$151:$D$100149=$D71)*($E$151:$E$100149=$E71)*($F$151:$F$100149=$F71)*($H$151:$H$100149)) -> 240 | N71: =SUMIF('List Unsorted Data - Non Unique'!$G$2:$G$100000,A71&"-"&B71&"-"&C71&"-"&D71&"-"&E71&"-"&F71,'List Unsorted Data - Non Unique'!$H$2:$H$100000) -> 240 | P71: =SUMIF('List Unsorted Data - Non Unique'!G:G,A71&"-"&B71&"-"&C71&"-"&D71&"-"&E71&"-"&F71,'List Unsorted Data - Non Unique'!H:H) -> 240 | R71: =SUMPRODUCT(('List Unsorted Data - Non Unique'!$A$2:$A$100000=$A71)*('List Unsorted Data - Non Unique'!$B$2:$B$100000=$B71)*('List Unsorted Data - Non Unique'!$C$2:$C$100000=$C71)*('List Unsorted Data - Non Unique'!$D$2:$D$100000=$D71)*('List Unsorted Data - Non Unique'!$E$2:$E$100000=$E71)*('List Unsorted Data - Non Unique'!$F$2:$F$100000=$F71)*('List Unsorted Data - Non Unique'!$H$2:$H$100000)) -> 240 | T71: =SUMPRODUCT(('List Unsorted Data - Non Unique'!$A$2:$A$100000=$A71)*('List Unsorted Data - Non Unique'!$B$2:$B$100000=$B71)*('List Unsorted Data - Non Unique'!$C$2:$C$100000=$C71)*('List Unsorted Data - Non Unique'!$D$2:$D$100000=$D71)*('List Unsorted Data - Non Unique'!$E$2:$E$100000=$E71)*('List Unsorted Data - Non Unique'!$F$2:$F$100000=$F71)*('List Unsorted Data - Non Unique'!$H$2:$H$100000)) -> 240
A72: 2014 | B72: 6 | C72: C. Underwood | D72: POT002 | E72: MN01 | F72: Forecast | H72: =SUMPRODUCT(('List Unsorted Data - Non Unique'!$A$2:$A$100000=$A72)*('List Unsorted Data - Non Unique'!$B$2:$B$100000=$B72)*('List Unsorted Data - Non Unique'!$C$2:$C$100000=$C72)*('List Unsorted Data - Non Unique'!$D$2:$D$100000=$D72)*('List Unsorted Data - Non Unique'!$E$2:$E$100000=$E72)*('List Unsorted Data - Non Unique'!$F$2:$F$100000=$F72)*('List Unsorted Data - Non Unique'!$H$2:$H$100000)) -> 150 | J72: =SUMPRODUCT(('[1]List Unsorted Data - Non Unique'!$A$2:$A$100000=$A72)*('[1]List Unsorted Data - Non Unique'!$B$2:$B$100000=$B72)*('[1]List Unsorted Data - Non Unique'!$C$2:$C$100000=$C72)*('[1]List Unsorted Data - Non Unique'!$D$2:$D$100000=$D72)*('[1]List Unsorted Data - Non Unique'!$E$2:$E$100000=$E72)*('[1]List Unsorted Data - Non Unique'!$F$2:$F$100000=$F72)*('[1]List Unsorted Data - Non Unique'!$H$2:$H$100000)) -> 150 | L72: 150 | N72: =SUMIF('List Unsorted Data - Non Unique'!$G$2:$G$100000,A72&"-"&B72&"-"&C72&"-"&D72&"-"&E72&"-"&F72,'List Unsorted Data - Non Unique'!$H$2:$H$100000) -> 150 | P72: =SUMIF('List Unsorted Data - Non Unique'!G:G,A72&"-"&B72&"-"&C72&"-"&D72&"-"&E72&"-"&F72,'List Unsorted Data - Non Unique'!H:H) -> 150 | R72: =SUMPRODUCT(('List Unsorted Data - Non Unique'!$A$2:$A$100000=$A72)*('List Unsorted Data - Non Unique'!$B$2:$B$100000=$B72)*('List Unsorted Data - Non Unique'!$C$2:$C$100000=$C72)*('List Unsorted Data - Non Unique'!$D$2:$D$100000=$D72)*('List Unsorted Data - Non Unique'!$E$2:$E$100000=$E72)*('List Unsorted Data - Non Unique'!$F$2:$F$100000=$F72)*('List Unsorted Data - Non Unique'!$H$2:$H$100000)) -> 150 | T72: =SUMPRODUCT(('List Unsorted Data - Non Unique'!$A$2:$A$100000=$A72)*('List Unsorted Data - Non Unique'!$B$2:$B$100000=$B72)*('List Unsorted Data - Non Unique'!$C$2:$C$100000=$C72)*('List Unsorted Data - Non Unique'!$D$2:$D$100000=$D72)*('List Unsorted Data - Non Unique'!$E$2:$E$100000=$E72)*('List Unsorted Data - Non Unique'!$F$2:$F$100000=$F72)*('List Unsorted Data - Non Unique'!$H$2:$H$100000)) -> 150
A73: 2015 | B73: 7 | C73: B. Shelton | D73: JKL001 | E73: CA01 | F73: Actual | H73: =SUMPRODUCT(('List Unsorted Data - Non Unique'!$A$2:$A$100000=$A73)*('List Unsorted Data - Non Unique'!$B$2:$B$100000=$B73)*('List Unsorted Data - Non Unique'!$C$2:$C$100000=$C73)*('List Unsorted Data - Non Unique'!$D$2:$D$100000=$D73)*('List Unsorted Data - Non Unique'!$E$2:$E$100000=$E73)*('List Unsorted Data - Non Unique'!$F$2:$F$100000=$F73)*('List Unsorted Data - Non Unique'!$H$2:$H$100000)) -> 223 | J73: =SUMPRODUCT(('[1]List Unsorted Data - Non Unique'!$A$2:$A$100000=$A73)*('[1]List Unsorted Data - Non Unique'!$B$2:$B$100000=$B73)*('[1]List Unsorted Data - Non Unique'!$C$2:$C$100000=$C73)*('[1]List Unsorted Data - Non Unique'!$D$2:$D$100000=$D73)*('[1]List Unsorted Data - Non Unique'!$E$2:$E$100000=$E73)*('[1]List Unsorted Data - Non Unique'!$F$2:$F$100000=$F73)*('[1]List Unsorted Data - Non Unique'!$H$2:$H$100000)) -> 223 | L73: 223 | N73: =SUMIF('List Unsorted Data - Non Unique'!$G$2:$G$100000,A73&"-"&B73&"-"&C73&"-"&D73&"-"&E73&"-"&F73,'List Unsorted Data - Non Unique'!$H$2:$H$100000) -> 223 | P73: =SUMIF('List Unsorted Data - Non Unique'!G:G,A73&"-"&B73&"-"&C73&"-"&D73&"-"&E73&"-"&F73,'List Unsorted Data - Non Unique'!H:H) -> 223 | R73: =SUMPRODUCT(('List Unsorted Data - Non Unique'!$A$2:$A$100000=$A73)*('List Unsorted Data - Non Unique'!$B$2:$B$100000=$B73)*('List Unsorted Data - Non Unique'!$C$2:$C$100000=$C73)*('List Unsorted Data - Non Unique'!$D$2:$D$100000=$D73)*('List Unsorted Data - Non Unique'!$E$2:$E$100000=$E73)*('List Unsorted Data - Non Unique'!$F$2:$F$100000=$F73)*('List Unsorted Data - Non Unique'!$H$2:$H$100000)) -> 223 | T73: =SUMPRODUCT(('List Unsorted Data - Non Unique'!$A$2:$A$100000=$A73)*('List Unsorted Data - Non Unique'!$B$2:$B$100000=$B73)*('List Unsorted Data - Non Unique'!$C$2:$C$100000=$C73)*('List Unsorted Data - Non Unique'!$D$2:$D$100000=$D73)*('List Unsorted Data - Non Unique'!$E$2:$E$100000=$E73)*('List Unsorted Data - Non Unique'!$F$2:$F$100000=$F73)*('List Unsorted Data - Non Unique'!$H$2:$H$100000)) -> 223
A74: 2014 | B74: 6 | C74: M.Mills | D74: DFG001 | E74: SD01 | F74: Forecast | H74: =SUMPRODUCT(('List Unsorted Data - Non Unique'!$A$2:$A$100000=$A74)*('List Unsorted Data - Non Unique'!$B$2:$B$100000=$B74)*('List Unsorted Data - Non Unique'!$C$2:$C$100000=$C74)*('List Unsorted Data - Non Unique'!$D$2:$D$100000=$D74)*('List Unsorted Data - Non Unique'!$E$2:$E$100000=$E74)*('List Unsorted Data - Non Unique'!$F$2:$F$100000=$F74)*('List Unsorted Data - Non Unique'!$H$2:$H$100000)) -> 112 | J74: =SUMPRODUCT(('[1]List Unsorted Data - Non Unique'!$A$2:$A$100000=$A74)*('[1]List Unsorted Data - Non Unique'!$B$2:$B$100000=$B74)*('[1]List Unsorted Data - Non Unique'!$C$2:$C$100000=$C74)*('[1]List Unsorted Data - Non Unique'!$D$2:$D$100000=$D74)*('[1]List Unsorted Data - Non Unique'!$E$2:$E$100000=$E74)*('[1]List Unsorted Data - Non Unique'!$F$2:$F$100000=$F74)*('[1]List Unsorted Data - Non Unique'!$H$2:$H$100000)) -> 112 | L74: 112 | N74: =SUMIF('List Unsorted Data - Non Unique'!$G$2:$G$100000,A74&"-"&B74&"-"&C74&"-"&D74&"-"&E74&"-"&F74,'List Unsorted Data - Non Unique'!$H$2:$H$100000) -> 112 | P74: =SUMIF('List Unsorted Data - Non Unique'!G:G,A74&"-"&B74&"-"&C74&"-"&D74&"-"&E74&"-"&F74,'List Unsorted Data - Non Unique'!H:H) -> 112 | R74: =SUMPRODUCT(('List Unsorted Data - Non Unique'!$A$2:$A$100000=$A74)*('List Unsorted Data - Non Unique'!$B$2:$B$100000=$B74)*('List Unsorted Data - Non Unique'!$C$2:$C$100000=$C74)*('List Unsorted Data - Non Unique'!$D$2:$D$100000=$D74)*('List Unsorted Data - Non Unique'!$E$2:$E$100000=$E74)*('List Unsorted Data - Non Unique'!$F$2:$F$100000=$F74)*('List Unsorted Data - Non Unique'!$H$2:$H$100000)) -> 112 | T74: =SUMPRODUCT(('List Unsorted Data - Non Unique'!$A$2:$A$100000=$A74)*('List Unsorted Data - Non Unique'!$B$2:$B$100000=$B74)*('List Unsorted Data - Non Unique'!$C$2:$C$100000=$C74)*('List Unsorted Data - Non Unique'!$D$2:$D$100000=$D74)*('List Unsorted Data - Non Unique'!$E$2:$E$100000=$E74)*('List Unsorted Data - Non Unique'!$F$2:$F$100000=$F74)*('List Unsorted Data - Non Unique'!$H$2:$H$100000)) -> 112
A75: 2014 | B75: 4 | C75: S. Crow | D75: ASL002 | E75: VA01 | F75: Forecast | H75: =SUMPRODUCT(('List Unsorted Data - Non Unique'!$A$2:$A$100000=$A75)*('List Unsorted Data - Non Unique'!$B$2:$B$100000=$B75)*('List Unsorted Data - Non Unique'!$C$2:$C$100000=$C75)*('List Unsorted Data - Non Unique'!$D$2:$D$100000=$D75)*('List Unsorted Data - Non Unique'!$E$2:$E$100000=$E75)*('List Unsorted Data - Non Unique'!$F$2:$F$100000=$F75)*('List Unsorted Data - Non Unique'!$H$2:$H$100000)) -> 105 | J75: =SUMPRODUCT(('[1]List Unsorted Data - Non Unique'!$A$2:$A$100000=$A75)*('[1]List Unsorted Data - Non Unique'!$B$2:$B$100000=$B75)*('[1]List Unsorted Data - Non Unique'!$C$2:$C$100000=$C75)*('[1]List Unsorted Data - Non Unique'!$D$2:$D$100000=$D75)*('[1]List Unsorted Data - Non Unique'!$E$2:$E$100000=$E75)*('[1]List Unsorted Data - Non Unique'!$F$2:$F$100000=$F75)*('[1]List Unsorted Data - Non Unique'!$H$2:$H$100000)) -> 105 | L75: 105 | N75: =SUMIF('List Unsorted Data - Non Unique'!$G$2:$G$100000,A75&"-"&B75&"-"&C75&"-"&D75&"-"&E75&"-"&F75,'List Unsorted Data - Non Unique'!$H$2:$H$100000) -> 105 | P75: =SUMIF('List Unsorted Data - Non Unique'!G:G,A75&"-"&B75&"-"&C75&"-"&D75&"-"&E75&"-"&F75,'List Unsorted Data - Non Unique'!H:H) -> 105 | R75: =SUMPRODUCT(('List Unsorted Data - Non Unique'!$A$2:$A$100000=$A75)*('List Unsorted Data - Non Unique'!$B$2:$B$100000=$B75)*('List Unsorted Data - Non Unique'!$C$2:$C$100000=$C75)*('List Unsorted Data - Non Unique'!$D$2:$D$100000=$D75)*('List Unsorted Data - Non Unique'!$E$2:$E$100000=$E75)*('List Unsorted Data - Non Unique'!$F$2:$F$100000=$F75)*('List Unsorted Data - Non Unique'!$H$2:$H$100000)) -> 105 | T75: =SUMPRODUCT(('List Unsorted Data - Non Unique'!$A$2:$A$100000=$A75)*('List Unsorted Data - Non Unique'!$B$2:$B$100000=$B75)*('List Unsorted Data - Non Unique'!$C$2:$C$100000=$C75)*('List Unsorted Data - Non Unique'!$D$2:$D$100000=$D75)*('List Unsorted Data - Non Unique'!$E$2:$E$100000=$E75)*('List Unsorted Data - Non Unique'!$F$2:$F$100000=$F75)*('List Unsorted Data - Non Unique'!$H$2:$H$100000)) -> 105
A76: 2015 | B76: 5 | C76: P. Buck | D76: ASL002 | E76: MN01 | F76: Actual | H76: =SUMPRODUCT(('List Unsorted Data - Non Unique'!$A$2:$A$100000=$A76)*('List Unsorted Data - Non Unique'!$B$2:$B$100000=$B76)*('List Unsorted Data - Non Unique'!$C$2:$C$100000=$C76)*('List Unsorted Data - Non Unique'!$D$2:$D$100000=$D76)*('List Unsorted Data - Non Unique'!$E$2:$E$100000=$E76)*('List Unsorted Data - Non Unique'!$F$2:$F$100000=$F76)*('List Unsorted Data - Non Unique'!$H$2:$H$100000)) -> 156 | J76: =SUMPRODUCT(('[1]List Unsorted Data - Non Unique'!$A$2:$A$100000=$A76)*('[1]List Unsorted Data - Non Unique'!$B$2:$B$100000=$B76)*('[1]List Unsorted Data - Non Unique'!$C$2:$C$100000=$C76)*('[1]List Unsorted Data - Non Unique'!$D$2:$D$100000=$D76)*('[1]List Unsorted Data - Non Unique'!$E$2:$E$100000=$E76)*('[1]List Unsorted Data - Non Unique'!$F$2:$F$100000=$F76)*('[1]List Unsorted Data - Non Unique'!$H$2:$H$100000)) -> 156 | L76: 156 | N76: =SUMIF('List Unsorted Data - Non Unique'!$G$2:$G$100000,A76&"-"&B76&"-"&C76&"-"&D76&"-"&E76&"-"&F76,'List Unsorted Data - Non Unique'!$H$2:$H$100000) -> 156 | P76: =SUMIF('List Unsorted Data - Non Unique'!G:G,A76&"-"&B76&"-"&C76&"-"&D76&"-"&E76&"-"&F76,'List Unsorted Data - Non Unique'!H:H) -> 156 | R76: =SUMPRODUCT(('List Unsorted Data - Non Unique'!$A$2:$A$100000=$A76)*('List Unsorted Data - Non Unique'!$B$2:$B$100000=$B76)*('List Unsorted Data - Non Unique'!$C$2:$C$100000=$C76)*('List Unsorted Data - Non Unique'!$D$2:$D$100000=$D76)*('List Unsorted Data - Non Unique'!$E$2:$E$100000=$E76)*('List Unsorted Data - Non Unique'!$F$2:$F$100000=$F76)*('List Unsorted Data - Non Unique'!$H$2:$H$100000)) -> 156 | T76: =SUMPRODUCT(('List Unsorted Data - Non Unique'!$A$2:$A$100000=$A76)*('List Unsorted Data - Non Unique'!$B$2:$B$100000=$B76)*('List Unsorted Data - Non Unique'!$C$2:$C$100000=$C76)*('List Unsorted Data - Non Unique'!$D$2:$D$100000=$D76)*('List Unsorted Data - Non Unique'!$E$2:$E$100000=$E76)*('List Unsorted Data - Non Unique'!$F$2:$F$100000=$F76)*('List Unsorted Data - Non Unique'!$H$2:$H$100000)) -> 156
A77: 2015 | B77: 7 | C77: B. Paisley | D77: PRD002 | E77: LA01 | F77: Actual | H77: =SUMPRODUCT(('List Unsorted Data - Non Unique'!$A$2:$A$100000=$A77)*('List Unsorted Data - Non Unique'!$B$2:$B$100000=$B77)*('List Unsorted Data - Non Unique'!$C$2:$C$100000=$C77)*('List Unsorted Data - Non Unique'!$D$2:$D$100000=$D77)*('List Unsorted Data - Non Unique'!$E$2:$E$100000=$E77)*('List Unsorted Data - Non Unique'!$F$2:$F$100000=$F77)*('List Unsorted Data - Non Unique'!$H$2:$H$100000)) -> 239 | J77: =SUMPRODUCT(('[1]List Unsorted Data - Non Unique'!$A$2:$A$100000=$A77)*('[1]List Unsorted Data - Non Unique'!$B$2:$B$100000=$B77)*('[1]List Unsorted Data - Non Unique'!$C$2:$C$100000=$C77)*('[1]List Unsorted Data - Non Unique'!$D$2:$D$100000=$D77)*('[1]List Unsorted Data - Non Unique'!$E$2:$E$100000=$E77)*('[1]List Unsorted Data - Non Unique'!$F$2:$F$100000=$F77)*('[1]List Unsorted Data - Non Unique'!$H$2:$H$100000)) -> 239 | L77: 239 | N77: =SUMIF('List Unsorted Data - Non Unique'!$G$2:$G$100000,A77&"-"&B77&"-"&C77&"-"&D77&"-"&E77&"-"&F77,'List Unsorted Data - Non Unique'!$H$2:$H$100000) -> 239 | P77: =SUMIF('List Unsorted Data - Non Unique'!G:G,A77&"-"&B77&"-"&C77&"-"&D77&"-"&E77&"-"&F77,'List Unsorted Data - Non Unique'!H:H) -> 239 | R77: =SUMPRODUCT(('List Unsorted Data - Non Unique'!$A$2:$A$100000=$A77)*('List Unsorted Data - Non Unique'!$B$2:$B$100000=$B77)*('List Unsorted Data - Non Unique'!$C$2:$C$100000=$C77)*('List Unsorted Data - Non Unique'!$D$2:$D$100000=$D77)*('List Unsorted Data - Non Unique'!$E$2:$E$100000=$E77)*('List Unsorted Data - Non Unique'!$F$2:$F$100000=$F77)*('List Unsorted Data - Non Unique'!$H$2:$H$100000)) -> 239 | T77: =SUMPRODUCT(('List Unsorted Data - Non Unique'!$A$2:$A$100000=$A77)*('List Unsorted Data - Non Unique'!$B$2:$B$100000=$B77)*('List Unsorted Data - Non Unique'!$C$2:$C$100000=$C77)*('List Unsorted Data - Non Unique'!$D$2:$D$100000=$D77)*('List Unsorted Data - Non Unique'!$E$2:$E$100000=$E77)*('List Unsorted Data - Non Unique'!$F$2:$F$100000=$F77)*('List Unsorted Data - Non Unique'!$H$2:$H$100000)) -> 239
A78: 2015 | B78: 8 | C78: B. Shelton | D78: ASL003 | E78: VA01 | F78: Actual | H78: =SUMPRODUCT(('List Unsorted Data - Non Unique'!$A$2:$A$100000=$A78)*('List Unsorted Data - Non Unique'!$B$2:$B$100000=$B78)*('List Unsorted Data - Non Unique'!$C$2:$C$100000=$C78)*('List Unsorted Data - Non Unique'!$D$2:$D$100000=$D78)*('List Unsorted Data - Non Unique'!$E$2:$E$100000=$E78)*('List Unsorted Data - Non Unique'!$F$2:$F$100000=$F78)*('List Unsorted Data - Non Unique'!$H$2:$H$100000)) -> 59 | J78: =SUMPRODUCT(('[1]List Unsorted Data - Non Unique'!$A$2:$A$100000=$A78)*('[1]List Unsorted Data - Non Unique'!$B$2:$B$100000=$B78)*('[1]List Unsorted Data - Non Unique'!$C$2:$C$100000=$C78)*('[1]List Unsorted Data - Non Unique'!$D$2:$D$100000=$D78)*('[1]List Unsorted Data - Non Unique'!$E$2:$E$100000=$E78)*('[1]List Unsorted Data - Non Unique'!$F$2:$F$100000=$F78)*('[1]List Unsorted Data - Non Unique'!$H$2:$H$100000)) -> 59 | L78: 59 | N78: =SUMIF('List Unsorted Data - Non Unique'!$G$2:$G$100000,A78&"-"&B78&"-"&C78&"-"&D78&"-"&E78&"-"&F78,'List Unsorted Data - Non Unique'!$H$2:$H$100000) -> 59 | P78: =SUMIF('List Unsorted Data - Non Unique'!G:G,A78&"-"&B78&"-"&C78&"-"&D78&"-"&E78&"-"&F78,'List Unsorted Data - Non Unique'!H:H) -> 59 | R78: =SUMPRODUCT(('List Unsorted Data - Non Unique'!$A$2:$A$100000=$A78)*('List Unsorted Data - Non Unique'!$B$2:$B$100000=$B78)*('List Unsorted Data - Non Unique'!$C$2:$C$100000=$C78)*('List Unsorted Data - Non Unique'!$D$2:$D$100000=$D78)*('List Unsorted Data - Non Unique'!$E$2:$E$100000=$E78)*('List Unsorted Data - Non Unique'!$F$2:$F$100000=$F78)*('List Unsorted Data - Non Unique'!$H$2:$H$100000)) -> 59 | T78: =SUMPRODUCT(('List Unsorted Data - Non Unique'!$A$2:$A$100000=$A78)*('List Unsorted Data - Non Unique'!$B$2:$B$100000=$B78)*('List Unsorted Data - Non Unique'!$C$2:$C$100000=$C78)*('List Unsorted Data - Non Unique'!$D$2:$D$100000=$D78)*('List Unsorted Data - Non Unique'!$E$2:$E$100000=$E78)*('List Unsorted Data - Non Unique'!$F$2:$F$100000=$F78)*('List Unsorted Data - Non Unique'!$H$2:$H$100000)) -> 59
A79: 2015 | B79: 3 | C79: M.Mills | D79: POT002 | E79: LA01 | F79: Actual | H79: =SUMPRODUCT(('List Unsorted Data - Non Unique'!$A$2:$A$100000=$A79)*('List Unsorted Data - Non Unique'!$B$2:$B$100000=$B79)*('List Unsorted Data - Non Unique'!$C$2:$C$100000=$C79)*('List Unsorted Data - Non Unique'!$D$2:$D$100000=$D79)*('List Unsorted Data - Non Unique'!$E$2:$E$100000=$E79)*('List Unsorted Data - Non Unique'!$F$2:$F$100000=$F79)*('List Unsorted Data - Non Unique'!$H$2:$H$100000)) -> 203 | J79: =SUMPRODUCT(('[1]List Unsorted Data - Non Unique'!$A$2:$A$100000=$A79)*('[1]List Unsorted Data - Non Unique'!$B$2:$B$100000=$B79)*('[1]List Unsorted Data - Non Unique'!$C$2:$C$100000=$C79)*('[1]List Unsorted Data - Non Unique'!$D$2:$D$100000=$D79)*('[1]List Unsorted Data - Non Unique'!$E$2:$E$100000=$E79)*('[1]List Unsorted Data - Non Unique'!$F$2:$F$100000=$F79)*('[1]List Unsorted Data - Non Unique'!$H$2:$H$100000)) -> 203 | L79: 203 | N79: =SUMIF('List Unsorted Data - Non Unique'!$G$2:$G$100000,A79&"-"&B79&"-"&C79&"-"&D79&"-"&E79&"-"&F79,'List Unsorted Data - Non Unique'!$H$2:$H$100000) -> 203 | P79: =SUMIF('List Unsorted Data - Non Unique'!G:G,A79&"-"&B79&"-"&C79&"-"&D79&"-"&E79&"-"&F79,'List Unsorted Data - Non Unique'!H:H) -> 203 | R79: =SUMPRODUCT(('List Unsorted Data - Non Unique'!$A$2:$A$100000=$A79)*('List Unsorted Data - Non Unique'!$B$2:$B$100000=$B79)*('List Unsorted Data - Non Unique'!$C$2:$C$100000=$C79)*('List Unsorted Data - Non Unique'!$D$2:$D$100000=$D79)*('List Unsorted Data - Non Unique'!$E$2:$E$100000=$E79)*('List Unsorted Data - Non Unique'!$F$2:$F$100000=$F79)*('List Unsorted Data - Non Unique'!$H$2:$H$100000)) -> 203 | T79: =SUMPRODUCT(('List Unsorted Data - Non Unique'!$A$2:$A$100000=$A79)*('List Unsorted Data - Non Unique'!$B$2:$B$100000=$B79)*('List Unsorted Data - Non Unique'!$C$2:$C$100000=$C79)*('List Unsorted Data - Non Unique'!$D$2:$D$100000=$D79)*('List Unsorted Data - Non Unique'!$E$2:$E$100000=$E79)*('List Unsorted Data - Non Unique'!$F$2:$F$100000=$F79)*('List Unsorted Data - Non Unique'!$H$2:$H$100000)) -> 203
A80: 2015 | B80: 6 | C80: J. McVie | D80: DFG001 | E80: CA01 | F80: Actual | H80: =SUMPRODUCT(('List Unsorted Data - Non Unique'!$A$2:$A$100000=$A80)*('List Unsorted Data - Non Unique'!$B$2:$B$100000=$B80)*('List Unsorted Data - Non Unique'!$C$2:$C$100000=$C80)*('List Unsorted Data - Non Unique'!$D$2:$D$100000=$D80)*('List Unsorted Data - Non Unique'!$E$2:$E$100000=$E80)*('List Unsorted Data - Non Unique'!$F$2:$F$100000=$F80)*('List Unsorted Data - Non Unique'!$H$2:$H$100000)) -> 55 | J80: =SUMPRODUCT(('[1]List Unsorted Data - Non Unique'!$A$2:$A$100000=$A80)*('[1]List Unsorted Data - Non Unique'!$B$2:$B$100000=$B80)*('[1]List Unsorted Data - Non Unique'!$C$2:$C$100000=$C80)*('[1]List Unsorted Data - Non Unique'!$D$2:$D$100000=$D80)*('[1]List Unsorted Data - Non Unique'!$E$2:$E$100000=$E80)*('[1]List Unsorted Data - Non Unique'!$F$2:$F$100000=$F80)*('[1]List Unsorted Data - Non Unique'!$H$2:$H$100000)) -> 55 | L80: 55 | N80: =SUMIF('List Unsorted Data - Non Unique'!$G$2:$G$100000,A80&"-"&B80&"-"&C80&"-"&D80&"-"&E80&"-"&F80,'List Unsorted Data - Non Unique'!$H$2:$H$100000) -> 55 | P80: =SUMIF('List Unsorted Data - Non Unique'!G:G,A80&"-"&B80&"-"&C80&"-"&D80&"-"&E80&"-"&F80,'List Unsorted Data - Non Unique'!H:H) -> 55 | R80: =SUMPRODUCT(('List Unsorted Data - Non Unique'!$A$2:$A$100000=$A80)*('List Unsorted Data - Non Unique'!$B$2:$B$100000=$B80)*('List Unsorted Data - Non Unique'!$C$2:$C$100000=$C80)*('List Unsorted Data - Non Unique'!$D$2:$D$100000=$D80)*('List Unsorted Data - Non Unique'!$E$2:$E$100000=$E80)*('List Unsorted Data - Non Unique'!$F$2:$F$100000=$F80)*('List Unsorted Data - Non Unique'!$H$2:$H$100000)) -> 55 | T80: =SUMPRODUCT(('List Unsorted Data - Non Unique'!$A$2:$A$100000=$A80)*('List Unsorted Data - Non Unique'!$B$2:$B$100000=$B80)*('List Unsorted Data - Non Unique'!$C$2:$C$100000=$C80)*('List Unsorted Data - Non Unique'!$D$2:$D$100000=$D80)*('List Unsorted Data - Non Unique'!$E$2:$E$100000=$E80)*('List Unsorted Data - Non Unique'!$F$2:$F$100000=$F80)*('List Unsorted Data - Non Unique'!$H$2:$H$100000)) -> 55
A81: 2015 | B81: 7 | C81: B. Shelton | D81: ASL002 | E81: AL01 | F81: Actual | H81: =SUMPRODUCT(('List Unsorted Data - Non Unique'!$A$2:$A$100000=$A81)*('List Unsorted Data - Non Unique'!$B$2:$B$100000=$B81)*('List Unsorted Data - Non Unique'!$C$2:$C$100000=$C81)*('List Unsorted Data - Non Unique'!$D$2:$D$100000=$D81)*('List Unsorted Data - Non Unique'!$E$2:$E$100000=$E81)*('List Unsorted Data - Non Unique'!$F$2:$F$100000=$F81)*('List Unsorted Data - Non Unique'!$H$2:$H$100000)) -> 246 | J81: =SUMPRODUCT(('[1]List Unsorted Data - Non Unique'!$A$2:$A$100000=$A81)*('[1]List Unsorted Data - Non Unique'!$B$2:$B$100000=$B81)*('[1]List Unsorted Data - Non Unique'!$C$2:$C$100000=$C81)*('[1]List Unsorted Data - Non Unique'!$D$2:$D$100000=$D81)*('[1]List Unsorted Data - Non Unique'!$E$2:$E$100000=$E81)*('[1]List Unsorted Data - Non Unique'!$F$2:$F$100000=$F81)*('[1]List Unsorted Data - Non Unique'!$H$2:$H$100000)) -> 246 | L81: 246 | N81: =SUMIF('List Unsorted Data - Non Unique'!$G$2:$G$100000,A81&"-"&B81&"-"&C81&"-"&D81&"-"&E81&"-"&F81,'List Unsorted Data - Non Unique'!$H$2:$H$100000) -> 246 | P81: =SUMIF('List Unsorted Data - Non Unique'!G:G,A81&"-"&B81&"-"&C81&"-"&D81&"-"&E81&"-"&F81,'List Unsorted Data - Non Unique'!H:H) -> 246 | R81: =SUMPRODUCT(('List Unsorted Data - Non Unique'!$A$2:$A$100000=$A81)*('List Unsorted Data - Non Unique'!$B$2:$B$100000=$B81)*('List Unsorted Data - Non Unique'!$C$2:$C$100000=$C81)*('List Unsorted Data - Non Unique'!$D$2:$D$100000=$D81)*('List Unsorted Data - Non Unique'!$E$2:$E$100000=$E81)*('List Unsorted Data - Non Unique'!$F$2:$F$100000=$F81)*('List Unsorted Data - Non Unique'!$H$2:$H$100000)) -> 246 | T81: =SUMPRODUCT(('List Unsorted Data - Non Unique'!$A$2:$A$100000=$A81)*('List Unsorted Data - Non Unique'!$B$2:$B$100000=$B81)*('List Unsorted Data - Non Unique'!$C$2:$C$100000=$C81)*('List Unsorted Data - Non Unique'!$D$2:$D$100000=$D81)*('List Unsorted Data - Non Unique'!$E$2:$E$100000=$E81)*('List Unsorted Data - Non Unique'!$F$2:$F$100000=$F81)*('List Unsorted Data - Non Unique'!$H$2:$H$100000)) -> 246
A82: 2016 | B82: 3 | C82: C. Underwood | D82: ASL003 | E82: AL01 | F82: Actual | H82: =SUMPRODUCT(('List Unsorted Data - Non Unique'!$A$2:$A$100000=$A82)*('List Unsorted Data - Non Unique'!$B$2:$B$100000=$B82)*('List Unsorted Data - Non Unique'!$C$2:$C$100000=$C82)*('List Unsorted Data - Non Unique'!$D$2:$D$100000=$D82)*('List Unsorted Data - Non Unique'!$E$2:$E$100000=$E82)*('List Unsorted Data - Non Unique'!$F$2:$F$100000=$F82)*('List Unsorted Data - Non Unique'!$H$2:$H$100000)) -> 124 | J82: =SUMPRODUCT(('[1]List Unsorted Data - Non Unique'!$A$2:$A$100000=$A82)*('[1]List Unsorted Data - Non Unique'!$B$2:$B$100000=$B82)*('[1]List Unsorted Data - Non Unique'!$C$2:$C$100000=$C82)*('[1]List Unsorted Data - Non Unique'!$D$2:$D$100000=$D82)*('[1]List Unsorted Data - Non Unique'!$E$2:$E$100000=$E82)*('[1]List Unsorted Data - Non Unique'!$F$2:$F$100000=$F82)*('[1]List Unsorted Data - Non Unique'!$H$2:$H$100000)) -> 124 | L82: 124 | N82: =SUMIF('List Unsorted Data - Non Unique'!$G$2:$G$100000,A82&"-"&B82&"-"&C82&"-"&D82&"-"&E82&"-"&F82,'List Unsorted Data - Non Unique'!$H$2:$H$100000) -> 124 | P82: =SUMIF('List Unsorted Data - Non Unique'!G:G,A82&"-"&B82&"-"&C82&"-"&D82&"-"&E82&"-"&F82,'List Unsorted Data - Non Unique'!H:H) -> 124 | R82: =SUMPRODUCT(('List Unsorted Data - Non Unique'!$A$2:$A$100000=$A82)*('List Unsorted Data - Non Unique'!$B$2:$B$100000=$B82)*('List Unsorted Data - Non Unique'!$C$2:$C$100000=$C82)*('List Unsorted Data - Non Unique'!$D$2:$D$100000=$D82)*('List Unsorted Data - Non Unique'!$E$2:$E$100000=$E82)*('List Unsorted Data - Non Unique'!$F$2:$F$100000=$F82)*('List Unsorted Data - Non Unique'!$H$2:$H$100000)) -> 124 | T82: =SUMPRODUCT(('List Unsorted Data - Non Unique'!$A$2:$A$100000=$A82)*('List Unsorted Data - Non Unique'!$B$2:$B$100000=$B82)*('List Unsorted Data - Non Unique'!$C$2:$C$100000=$C82)*('List Unsorted Data - Non Unique'!$D$2:$D$100000=$D82)*('List Unsorted Data - Non Unique'!$E$2:$E$100000=$E82)*('List Unsorted Data - Non Unique'!$F$2:$F$100000=$F82)*('List Unsorted Data - Non Unique'!$H$2:$H$100000)) -> 124
A83: 2016 | B83: 1 | C83: J. McVie | D83: POT002 | E83: NC01 | F83: Actual | H83: =SUMPRODUCT(('List Unsorted Data - Non Unique'!$A$2:$A$100000=$A83)*('List Unsorted Data - Non Unique'!$B$2:$B$100000=$B83)*('List Unsorted Data - Non Unique'!$C$2:$C$100000=$C83)*('List Unsorted Data - Non Unique'!$D$2:$D$100000=$D83)*('List Unsorted Data - Non Unique'!$E$2:$E$100000=$E83)*('List Unsorted Data - Non Unique'!$F$2:$F$100000=$F83)*('List Unsorted Data - Non Unique'!$H$2:$H$100000)) -> 64 | J83: =SUMPRODUCT(('[1]List Unsorted Data - Non Unique'!$A$2:$A$100000=$A83)*('[1]List Unsorted Data - Non Unique'!$B$2:$B$100000=$B83)*('[1]List Unsorted Data - Non Unique'!$C$2:$C$100000=$C83)*('[1]List Unsorted Data - Non Unique'!$D$2:$D$100000=$D83)*('[1]List Unsorted Data - Non Unique'!$E$2:$E$100000=$E83)*('[1]List Unsorted Data - Non Unique'!$F$2:$F$100000=$F83)*('[1]List Unsorted Data - Non Unique'!$H$2:$H$100000)) -> 64 | L83: 64 | N83: =SUMIF('List Unsorted Data - Non Unique'!$G$2:$G$100000,A83&"-"&B83&"-"&C83&"-"&D83&"-"&E83&"-"&F83,'List Unsorted Data - Non Unique'!$H$2:$H$100000) -> 64 | P83: =SUMIF('List Unsorted Data - Non Unique'!G:G,A83&"-"&B83&"-"&C83&"-"&D83&"-"&E83&"-"&F83,'List Unsorted Data - Non Unique'!H:H) -> 64 | R83: =SUMPRODUCT(('List Unsorted Data - Non Unique'!$A$2:$A$100000=$A83)*('List Unsorted Data - Non Unique'!$B$2:$B$100000=$B83)*('List Unsorted Data - Non Unique'!$C$2:$C$100000=$C83)*('List Unsorted Data - Non Unique'!$D$2:$D$100000=$D83)*('List Unsorted Data - Non Unique'!$E$2:$E$100000=$E83)*('List Unsorted Data - Non Unique'!$F$2:$F$100000=$F83)*('List Unsorted Data - Non Unique'!$H$2:$H$100000)) -> 64 | T83: =SUMPRODUCT(('List Unsorted Data - Non Unique'!$A$2:$A$100000=$A83)*('List Unsorted Data - Non Unique'!$B$2:$B$100000=$B83)*('List Unsorted Data - Non Unique'!$C$2:$C$100000=$C83)*('List Unsorted Data - Non Unique'!$D$2:$D$100000=$D83)*('List Unsorted Data - Non Unique'!$E$2:$E$100000=$E83)*('List Unsorted Data - Non Unique'!$F$2:$F$100000=$F83)*('List Unsorted Data - Non Unique'!$H$2:$H$100000)) -> 64
A84: 2016 | B84: 5 | C84: M.Mills | D84: ASL001 | E84: MN01 | F84: Forecast | H84: =SUMPRODUCT(('List Unsorted Data - Non Unique'!$A$2:$A$100000=$A84)*('List Unsorted Data - Non Unique'!$B$2:$B$100000=$B84)*('List Unsorted Data - Non Unique'!$C$2:$C$100000=$C84)*('List Unsorted Data - Non Unique'!$D$2:$D$100000=$D84)*('List Unsorted Data - Non Unique'!$E$2:$E$100000=$E84)*('List Unsorted Data - Non Unique'!$F$2:$F$100000=$F84)*('List Unsorted Data - Non Unique'!$H$2:$H$100000)) -> 62 | J84: =SUMPRODUCT(('[1]List Unsorted Data - Non Unique'!$A$2:$A$100000=$A84)*('[1]List Unsorted Data - Non Unique'!$B$2:$B$100000=$B84)*('[1]List Unsorted Data - Non Unique'!$C$2:$C$100000=$C84)*('[1]List Unsorted Data - Non Unique'!$D$2:$D$100000=$D84)*('[1]List Unsorted Data - Non Unique'!$E$2:$E$100000=$E84)*('[1]List Unsorted Data - Non Unique'!$F$2:$F$100000=$F84)*('[1]List Unsorted Data - Non Unique'!$H$2:$H$100000)) -> 62 | L84: 62 | N84: =SUMIF('List Unsorted Data - Non Unique'!$G$2:$G$100000,A84&"-"&B84&"-"&C84&"-"&D84&"-"&E84&"-"&F84,'List Unsorted Data - Non Unique'!$H$2:$H$100000) -> 62 | P84: =SUMIF('List Unsorted Data - Non Unique'!G:G,A84&"-"&B84&"-"&C84&"-"&D84&"-"&E84&"-"&F84,'List Unsorted Data - Non Unique'!H:H) -> 62 | R84: =SUMPRODUCT(('List Unsorted Data - Non Unique'!$A$2:$A$100000=$A84)*('List Unsorted Data - Non Unique'!$B$2:$B$100000=$B84)*('List Unsorted Data - Non Unique'!$C$2:$C$100000=$C84)*('List Unsorted Data - Non Unique'!$D$2:$D$100000=$D84)*('List Unsorted Data - Non Unique'!$E$2:$E$100000=$E84)*('List Unsorted Data - Non Unique'!$F$2:$F$100000=$F84)*('List Unsorted Data - Non Unique'!$H$2:$H$100000)) -> 62 | T84: =SUMPRODUCT(('List Unsorted Data - Non Unique'!$A$2:$A$100000=$A84)*('List Unsorted Data - Non Unique'!$B$2:$B$100000=$B84)*('List Unsorted Data - Non Unique'!$C$2:$C$100000=$C84)*('List Unsorted Data - Non Unique'!$D$2:$D$100000=$D84)*('List Unsorted Data - Non Unique'!$E$2:$E$100000=$E84)*('List Unsorted Data - Non Unique'!$F$2:$F$100000=$F84)*('List Unsorted Data - Non Unique'!$H$2:$H$100000)) -> 62
A85: 2015 | B85: 7 | C85: M.Mills | D85: PRD001 | E85: AK01 | F85: Forecast | H85: =SUMPRODUCT(('List Unsorted Data - Non Unique'!$A$2:$A$100000=$A85)*('List Unsorted Data - Non Unique'!$B$2:$B$100000=$B85)*('List Unsorted Data - Non Unique'!$C$2:$C$100000=$C85)*('List Unsorted Data - Non Unique'!$D$2:$D$100000=$D85)*('List Unsorted Data - Non Unique'!$E$2:$E$100000=$E85)*('List Unsorted Data - Non Unique'!$F$2:$F$100000=$F85)*('List Unsorted Data - Non Unique'!$H$2:$H$100000)) -> 198 | J85: =SUMPRODUCT(('[1]List Unsorted Data - Non Unique'!$A$2:$A$100000=$A85)*('[1]List Unsorted Data - Non Unique'!$B$2:$B$100000=$B85)*('[1]List Unsorted Data - Non Unique'!$C$2:$C$100000=$C85)*('[1]List Unsorted Data - Non Unique'!$D$2:$D$100000=$D85)*('[1]List Unsorted Data - Non Unique'!$E$2:$E$100000=$E85)*('[1]List Unsorted Data - Non Unique'!$F$2:$F$100000=$F85)*('[1]List Unsorted Data - Non Unique'!$H$2:$H$100000)) -> 198 | L85: 198 | N85: =SUMIF('List Unsorted Data - Non Unique'!$G$2:$G$100000,A85&"-"&B85&"-"&C85&"-"&D85&"-"&E85&"-"&F85,'List Unsorted Data - Non Unique'!$H$2:$H$100000) -> 198 | P85: =SUMIF('List Unsorted Data - Non Unique'!G:G,A85&"-"&B85&"-"&C85&"-"&D85&"-"&E85&"-"&F85,'List Unsorted Data - Non Unique'!H:H) -> 198 | R85: =SUMPRODUCT(('List Unsorted Data - Non Unique'!$A$2:$A$100000=$A85)*('List Unsorted Data - Non Unique'!$B$2:$B$100000=$B85)*('List Unsorted Data - Non Unique'!$C$2:$C$100000=$C85)*('List Unsorted Data - Non Unique'!$D$2:$D$100000=$D85)*('List Unsorted Data - Non Unique'!$E$2:$E$100000=$E85)*('List Unsorted Data - Non Unique'!$F$2:$F$100000=$F85)*('List Unsorted Data - Non Unique'!$H$2:$H$100000)) -> 198 | T85: =SUMPRODUCT(('List Unsorted Data - Non Unique'!$A$2:$A$100000=$A85)*('List Unsorted Data - Non Unique'!$B$2:$B$100000=$B85)*('List Unsorted Data - Non Unique'!$C$2:$C$100000=$C85)*('List Unsorted Data - Non Unique'!$D$2:$D$100000=$D85)*('List Unsorted Data - Non Unique'!$E$2:$E$100000=$E85)*('List Unsorted Data - Non Unique'!$F$2:$F$100000=$F85)*('List Unsorted Data - Non Unique'!$H$2:$H$100000)) -> 198
A86: 2015 | B86: 6 | C86: C. Underwood | D86: JKL001 | E86: AL01 | F86: Actual | H86: =SUMPRODUCT(('List Unsorted Data - Non Unique'!$A$2:$A$100000=$A86)*('List Unsorted Data - Non Unique'!$B$2:$B$100000=$B86)*('List Unsorted Data - Non Unique'!$C$2:$C$100000=$C86)*('List Unsorted Data - Non Unique'!$D$2:$D$100000=$D86)*('List Unsorted Data - Non Unique'!$E$2:$E$100000=$E86)*('List Unsorted Data - Non Unique'!$F$2:$F$100000=$F86)*('List Unsorted Data - Non Unique'!$H$2:$H$100000)) -> 80 | J86: =SUMPRODUCT(('[1]List Unsorted Data - Non Unique'!$A$2:$A$100000=$A86)*('[1]List Unsorted Data - Non Unique'!$B$2:$B$100000=$B86)*('[1]List Unsorted Data - Non Unique'!$C$2:$C$100000=$C86)*('[1]List Unsorted Data - Non Unique'!$D$2:$D$100000=$D86)*('[1]List Unsorted Data - Non Unique'!$E$2:$E$100000=$E86)*('[1]List Unsorted Data - Non Unique'!$F$2:$F$100000=$F86)*('[1]List Unsorted Data - Non Unique'!$H$2:$H$100000)) -> 80 | L86: 80 | N86: =SUMIF('List Unsorted Data - Non Unique'!$G$2:$G$100000,A86&"-"&B86&"-"&C86&"-"&D86&"-"&E86&"-"&F86,'List Unsorted Data - Non Unique'!$H$2:$H$100000) -> 80 | P86: =SUMIF('List Unsorted Data - Non Unique'!G:G,A86&"-"&B86&"-"&C86&"-"&D86&"-"&E86&"-"&F86,'List Unsorted Data - Non Unique'!H:H) -> 80 | R86: =SUMPRODUCT(('List Unsorted Data - Non Unique'!$A$2:$A$100000=$A86)*('List Unsorted Data - Non Unique'!$B$2:$B$100000=$B86)*('List Unsorted Data - Non Unique'!$C$2:$C$100000=$C86)*('List Unsorted Data - Non Unique'!$D$2:$D$100000=$D86)*('List Unsorted Data - Non Unique'!$E$2:$E$100000=$E86)*('List Unsorted Data - Non Unique'!$F$2:$F$100000=$F86)*('List Unsorted Data - Non Unique'!$H$2:$H$100000)) -> 80 | T86: =SUMPRODUCT(('List Unsorted Data - Non Unique'!$A$2:$A$100000=$A86)*('List Unsorted Data - Non Unique'!$B$2:$B$100000=$B86)*('List Unsorted Data - Non Unique'!$C$2:$C$100000=$C86)*('List Unsorted Data - Non Unique'!$D$2:$D$100000=$D86)*('List Unsorted Data - Non Unique'!$E$2:$E$100000=$E86)*('List Unsorted Data - Non Unique'!$F$2:$F$100000=$F86)*('List Unsorted Data - Non Unique'!$H$2:$H$100000)) -> 80
A87: 2015 | B87: 12 | C87: S. Crow | D87: DFG001 | E87: SD01 | F87: Forecast | H87: =SUMPRODUCT(('List Unsorted Data - Non Unique'!$A$2:$A$100000=$A87)*('List Unsorted Data - Non Unique'!$B$2:$B$100000=$B87)*('List Unsorted Data - Non Unique'!$C$2:$C$100000=$C87)*('List Unsorted Data - Non Unique'!$D$2:$D$100000=$D87)*('List Unsorted Data - Non Unique'!$E$2:$E$100000=$E87)*('List Unsorted Data - Non Unique'!$F$2:$F$100000=$F87)*('List Unsorted Data - Non Unique'!$H$2:$H$100000)) -> 62 | J87: =SUMPRODUCT(('[1]List Unsorted Data - Non Unique'!$A$2:$A$100000=$A87)*('[1]List Unsorted Data - Non Unique'!$B$2:$B$100000=$B87)*('[1]List Unsorted Data - Non Unique'!$C$2:$C$100000=$C87)*('[1]List Unsorted Data - Non Unique'!$D$2:$D$100000=$D87)*('[1]List Unsorted Data - Non Unique'!$E$2:$E$100000=$E87)*('[1]List Unsorted Data - Non Unique'!$F$2:$F$100000=$F87)*('[1]List Unsorted Data - Non Unique'!$H$2:$H$100000)) -> 62 | L87: 62 | N87: =SUMIF('List Unsorted Data - Non Unique'!$G$2:$G$100000,A87&"-"&B87&"-"&C87&"-"&D87&"-"&E87&"-"&F87,'List Unsorted Data - Non Unique'!$H$2:$H$100000) -> 62 | P87: =SUMIF('List Unsorted Data - Non Unique'!G:G,A87&"-"&B87&"-"&C87&"-"&D87&"-"&E87&"-"&F87,'List Unsorted Data - Non Unique'!H:H) -> 62 | R87: =SUMPRODUCT(('List Unsorted Data - Non Unique'!$A$2:$A$100000=$A87)*('List Unsorted Data - Non Unique'!$B$2:$B$100000=$B87)*('List Unsorted Data - Non Unique'!$C$2:$C$100000=$C87)*('List Unsorted Data - Non Unique'!$D$2:$D$100000=$D87)*('List Unsorted Data - Non Unique'!$E$2:$E$100000=$E87)*('List Unsorted Data - Non Unique'!$F$2:$F$100000=$F87)*('List Unsorted Data - Non Unique'!$H$2:$H$100000)) -> 62 | T87: =SUMPRODUCT(('List Unsorted Data - Non Unique'!$A$2:$A$100000=$A87)*('List Unsorted Data - Non Unique'!$B$2:$B$100000=$B87)*('List Unsorted Data - Non Unique'!$C$2:$C$100000=$C87)*('List Unsorted Data - Non Unique'!$D$2:$D$100000=$D87)*('List Unsorted Data - Non Unique'!$E$2:$E$100000=$E87)*('List Unsorted Data - Non Unique'!$F$2:$F$100000=$F87)*('List Unsorted Data - Non Unique'!$H$2:$H$100000)) -> 62
A88: 2016 | B88: 6 | C88: J. McVie | D88: PRD002 | E88: SD01 | F88: Actual | H88: =SUMPRODUCT(('List Unsorted Data - Non Unique'!$A$2:$A$100000=$A88)*('List Unsorted Data - Non Unique'!$B$2:$B$100000=$B88)*('List Unsorted Data - Non Unique'!$C$2:$C$100000=$C88)*('List Unsorted Data - Non Unique'!$D$2:$D$100000=$D88)*('List Unsorted Data - Non Unique'!$E$2:$E$100000=$E88)*('List Unsorted Data - Non Unique'!$F$2:$F$100000=$F88)*('List Unsorted Data - Non Unique'!$H$2:$H$100000)) -> 73 | J88: =SUMPRODUCT(('[1]List Unsorted Data - Non Unique'!$A$2:$A$100000=$A88)*('[1]List Unsorted Data - Non Unique'!$B$2:$B$100000=$B88)*('[1]List Unsorted Data - Non Unique'!$C$2:$C$100000=$C88)*('[1]List Unsorted Data - Non Unique'!$D$2:$D$100000=$D88)*('[1]List Unsorted Data - Non Unique'!$E$2:$E$100000=$E88)*('[1]List Unsorted Data - Non Unique'!$F$2:$F$100000=$F88)*('[1]List Unsorted Data - Non Unique'!$H$2:$H$100000)) -> 73 | L88: 73 | N88: =SUMIF('List Unsorted Data - Non Unique'!$G$2:$G$100000,A88&"-"&B88&"-"&C88&"-"&D88&"-"&E88&"-"&F88,'List Unsorted Data - Non Unique'!$H$2:$H$100000) -> 73 | P88: =SUMIF('List Unsorted Data - Non Unique'!G:G,A88&"-"&B88&"-"&C88&"-"&D88&"-"&E88&"-"&F88,'List Unsorted Data - Non Unique'!H:H) -> 73 | R88: =SUMPRODUCT(('List Unsorted Data - Non Unique'!$A$2:$A$100000=$A88)*('List Unsorted Data - Non Unique'!$B$2:$B$100000=$B88)*('List Unsorted Data - Non Unique'!$C$2:$C$100000=$C88)*('List Unsorted Data - Non Unique'!$D$2:$D$100000=$D88)*('List Unsorted Data - Non Unique'!$E$2:$E$100000=$E88)*('List Unsorted Data - Non Unique'!$F$2:$F$100000=$F88)*('List Unsorted Data - Non Unique'!$H$2:$H$100000)) -> 73 | T88: =SUMPRODUCT(('List Unsorted Data - Non Unique'!$A$2:$A$100000=$A88)*('List Unsorted Data - Non Unique'!$B$2:$B$100000=$B88)*('List Unsorted Data - Non Unique'!$C$2:$C$100000=$C88)*('List Unsorted Data - Non Unique'!$D$2:$D$100000=$D88)*('List Unsorted Data - Non Unique'!$E$2:$E$100000=$E88)*('List Unsorted Data - Non Unique'!$F$2:$F$100000=$F88)*('List Unsorted Data - Non Unique'!$H$2:$H$100000)) -> 73
A89: 2015 | B89: 7 | C89: C. Underwood | D89: ASL002 | E89: MN01 | F89: Forecast | H89: =SUMPRODUCT(('List Unsorted Data - Non Unique'!$A$2:$A$100000=$A89)*('List Unsorted Data - Non Unique'!$B$2:$B$100000=$B89)*('List Unsorted Data - Non Unique'!$C$2:$C$100000=$C89)*('List Unsorted Data - Non Unique'!$D$2:$D$100000=$D89)*('List Unsorted Data - Non Unique'!$E$2:$E$100000=$E89)*('List Unsorted Data - Non Unique'!$F$2:$F$100000=$F89)*('List Unsorted Data - Non Unique'!$H$2:$H$100000)) -> 375 | J89: =SUMPRODUCT(('[1]List Unsorted Data - Non Unique'!$A$2:$A$100000=$A89)*('[1]List Unsorted Data - Non Unique'!$B$2:$B$100000=$B89)*('[1]List Unsorted Data - Non Unique'!$C$2:$C$100000=$C89)*('[1]List Unsorted Data - Non Unique'!$D$2:$D$100000=$D89)*('[1]List Unsorted Data - Non Unique'!$E$2:$E$100000=$E89)*('[1]List Unsorted Data - Non Unique'!$F$2:$F$100000=$F89)*('[1]List Unsorted Data - Non Unique'!$H$2:$H$100000)) -> 375 | L89: 375 | N89: =SUMIF('List Unsorted Data - Non Unique'!$G$2:$G$100000,A89&"-"&B89&"-"&C89&"-"&D89&"-"&E89&"-"&F89,'List Unsorted Data - Non Unique'!$H$2:$H$100000) -> 375 | P89: =SUMIF('List Unsorted Data - Non Unique'!G:G,A89&"-"&B89&"-"&C89&"-"&D89&"-"&E89&"-"&F89,'List Unsorted Data - Non Unique'!H:H) -> 375 | R89: =SUMPRODUCT(('List Unsorted Data - Non Unique'!$A$2:$A$100000=$A89)*('List Unsorted Data - Non Unique'!$B$2:$B$100000=$B89)*('List Unsorted Data - Non Unique'!$C$2:$C$100000=$C89)*('List Unsorted Data - Non Unique'!$D$2:$D$100000=$D89)*('List Unsorted Data - Non Unique'!$E$2:$E$100000=$E89)*('List Unsorted Data - Non Unique'!$F$2:$F$100000=$F89)*('List Unsorted Data - Non Unique'!$H$2:$H$100000)) -> 375 | T89: =SUMPRODUCT(('List Unsorted Data - Non Unique'!$A$2:$A$100000=$A89)*('List Unsorted Data - Non Unique'!$B$2:$B$100000=$B89)*('List Unsorted Data - Non Unique'!$C$2:$C$100000=$C89)*('List Unsorted Data - Non Unique'!$D$2:$D$100000=$D89)*('List Unsorted Data - Non Unique'!$E$2:$E$100000=$E89)*('List Unsorted Data - Non Unique'!$F$2:$F$100000=$F89)*('List Unsorted Data - Non Unique'!$H$2:$H$100000)) -> 375
A90: 2015 | B90: 9 | C90: B. Paisley | D90: JKL001 | E90: LA01 | F90: Actual | H90: =SUMPRODUCT(('List Unsorted Data - Non Unique'!$A$2:$A$100000=$A90)*('List Unsorted Data - Non Unique'!$B$2:$B$100000=$B90)*('List Unsorted Data - Non Unique'!$C$2:$C$100000=$C90)*('List Unsorted Data - Non Unique'!$D$2:$D$100000=$D90)*('List Unsorted Data - Non Unique'!$E$2:$E$100000=$E90)*('List Unsorted Data - Non Unique'!$F$2:$F$100000=$F90)*('List Unsorted Data - Non Unique'!$H$2:$H$100000)) -> 172 | J90: =SUMPRODUCT(('[1]List Unsorted Data - Non Unique'!$A$2:$A$100000=$A90)*('[1]List Unsorted Data - Non Unique'!$B$2:$B$100000=$B90)*('[1]List Unsorted Data - Non Unique'!$C$2:$C$100000=$C90)*('[1]List Unsorted Data - Non Unique'!$D$2:$D$100000=$D90)*('[1]List Unsorted Data - Non Unique'!$E$2:$E$100000=$E90)*('[1]List Unsorted Data - Non Unique'!$F$2:$F$100000=$F90)*('[1]List Unsorted Data - Non Unique'!$H$2:$H$100000)) -> 172 | L90: 172 | N90: =SUMIF('List Unsorted Data - Non Unique'!$G$2:$G$100000,A90&"-"&B90&"-"&C90&"-"&D90&"-"&E90&"-"&F90,'List Unsorted Data - Non Unique'!$H$2:$H$100000) -> 172 | P90: =SUMIF('List Unsorted Data - Non Unique'!G:G,A90&"-"&B90&"-"&C90&"-"&D90&"-"&E90&"-"&F90,'List Unsorted Data - Non Unique'!H:H) -> 172 | R90: =SUMPRODUCT(('List Unsorted Data - Non Unique'!$A$2:$A$100000=$A90)*('List Unsorted Data - Non Unique'!$B$2:$B$100000=$B90)*('List Unsorted Data - Non Unique'!$C$2:$C$100000=$C90)*('List Unsorted Data - Non Unique'!$D$2:$D$100000=$D90)*('List Unsorted Data - Non Unique'!$E$2:$E$100000=$E90)*('List Unsorted Data - Non Unique'!$F$2:$F$100000=$F90)*('List Unsorted Data - Non Unique'!$H$2:$H$100000)) -> 172 | T90: =SUMPRODUCT(('List Unsorted Data - Non Unique'!$A$2:$A$100000=$A90)*('List Unsorted Data - Non Unique'!$B$2:$B$100000=$B90)*('List Unsorted Data - Non Unique'!$C$2:$C$100000=$C90)*('List Unsorted Data - Non Unique'!$D$2:$D$100000=$D90)*('List Unsorted Data - Non Unique'!$E$2:$E$100000=$E90)*('List Unsorted Data - Non Unique'!$F$2:$F$100000=$F90)*('List Unsorted Data - Non Unique'!$H$2:$H$100000)) -> 172
A91: 2015 | B91: 4 | C91: C. Underwood | D91: DFG001 | E91: MN01 | F91: Actual | H91: =SUMPRODUCT(('List Unsorted Data - Non Unique'!$A$2:$A$100000=$A91)*('List Unsorted Data - Non Unique'!$B$2:$B$100000=$B91)*('List Unsorted Data - Non Unique'!$C$2:$C$100000=$C91)*('List Unsorted Data - Non Unique'!$D$2:$D$100000=$D91)*('List Unsorted Data - Non Unique'!$E$2:$E$100000=$E91)*('List Unsorted Data - Non Unique'!$F$2:$F$100000=$F91)*('List Unsorted Data - Non Unique'!$H$2:$H$100000)) -> 117 | J91: =SUMPRODUCT(('[1]List Unsorted Data - Non Unique'!$A$2:$A$100000=$A91)*('[1]List Unsorted Data - Non Unique'!$B$2:$B$100000=$B91)*('[1]List Unsorted Data - Non Unique'!$C$2:$C$100000=$C91)*('[1]List Unsorted Data - Non Unique'!$D$2:$D$100000=$D91)*('[1]List Unsorted Data - Non Unique'!$E$2:$E$100000=$E91)*('[1]List Unsorted Data - Non Unique'!$F$2:$F$100000=$F91)*('[1]List Unsorted Data - Non Unique'!$H$2:$H$100000)) -> 117 | L91: 117 | N91: =SUMIF('List Unsorted Data - Non Unique'!$G$2:$G$100000,A91&"-"&B91&"-"&C91&"-"&D91&"-"&E91&"-"&F91,'List Unsorted Data - Non Unique'!$H$2:$H$100000) -> 117 | P91: =SUMIF('List Unsorted Data - Non Unique'!G:G,A91&"-"&B91&"-"&C91&"-"&D91&"-"&E91&"-"&F91,'List Unsorted Data - Non Unique'!H:H) -> 117 | R91: =SUMPRODUCT(('List Unsorted Data - Non Unique'!$A$2:$A$100000=$A91)*('List Unsorted Data - Non Unique'!$B$2:$B$100000=$B91)*('List Unsorted Data - Non Unique'!$C$2:$C$100000=$C91)*('List Unsorted Data - Non Unique'!$D$2:$D$100000=$D91)*('List Unsorted Data - Non Unique'!$E$2:$E$100000=$E91)*('List Unsorted Data - Non Unique'!$F$2:$F$100000=$F91)*('List Unsorted Data - Non Unique'!$H$2:$H$100000)) -> 117 | T91: =SUMPRODUCT(('List Unsorted Data - Non Unique'!$A$2:$A$100000=$A91)*('List Unsorted Data - Non Unique'!$B$2:$B$100000=$B91)*('List Unsorted Data - Non Unique'!$C$2:$C$100000=$C91)*('List Unsorted Data - Non Unique'!$D$2:$D$100000=$D91)*('List Unsorted Data - Non Unique'!$E$2:$E$100000=$E91)*('List Unsorted Data - Non Unique'!$F$2:$F$100000=$F91)*('List Unsorted Data - Non Unique'!$H$2:$H$100000)) -> 117
A92: 2015 | B92: 4 | C92: B. Paisley | D92: PRD002 | E92: LA01 | F92: Actual | H92: =SUMPRODUCT(('List Unsorted Data - Non Unique'!$A$2:$A$100000=$A92)*('List Unsorted Data - Non Unique'!$B$2:$B$100000=$B92)*('List Unsorted Data - Non Unique'!$C$2:$C$100000=$C92)*('List Unsorted Data - Non Unique'!$D$2:$D$100000=$D92)*('List Unsorted Data - Non Unique'!$E$2:$E$100000=$E92)*('List Unsorted Data - Non Unique'!$F$2:$F$100000=$F92)*('List Unsorted Data - Non Unique'!$H$2:$H$100000)) -> 74 | J92: =SUMPRODUCT(('[1]List Unsorted Data - Non Unique'!$A$2:$A$100000=$A92)*('[1]List Unsorted Data - Non Unique'!$B$2:$B$100000=$B92)*('[1]List Unsorted Data - Non Unique'!$C$2:$C$100000=$C92)*('[1]List Unsorted Data - Non Unique'!$D$2:$D$100000=$D92)*('[1]List Unsorted Data - Non Unique'!$E$2:$E$100000=$E92)*('[1]List Unsorted Data - Non Unique'!$F$2:$F$100000=$F92)*('[1]List Unsorted Data - Non Unique'!$H$2:$H$100000)) -> 74 | L92: 74 | N92: =SUMIF('List Unsorted Data - Non Unique'!$G$2:$G$100000,A92&"-"&B92&"-"&C92&"-"&D92&"-"&E92&"-"&F92,'List Unsorted Data - Non Unique'!$H$2:$H$100000) -> 74 | P92: =SUMIF('List Unsorted Data - Non Unique'!G:G,A92&"-"&B92&"-"&C92&"-"&D92&"-"&E92&"-"&F92,'List Unsorted Data - Non Unique'!H:H) -> 74 | R92: =SUMPRODUCT(('List Unsorted Data - Non Unique'!$A$2:$A$100000=$A92)*('List Unsorted Data - Non Unique'!$B$2:$B$100000=$B92)*('List Unsorted Data - Non Unique'!$C$2:$C$100000=$C92)*('List Unsorted Data - Non Unique'!$D$2:$D$100000=$D92)*('List Unsorted Data - Non Unique'!$E$2:$E$100000=$E92)*('List Unsorted Data - Non Unique'!$F$2:$F$100000=$F92)*('List Unsorted Data - Non Unique'!$H$2:$H$100000)) -> 74 | T92: =SUMPRODUCT(('List Unsorted Data - Non Unique'!$A$2:$A$100000=$A92)*('List Unsorted Data - Non Unique'!$B$2:$B$100000=$B92)*('List Unsorted Data - Non Unique'!$C$2:$C$100000=$C92)*('List Unsorted Data - Non Unique'!$D$2:$D$100000=$D92)*('List Unsorted Data - Non Unique'!$E$2:$E$100000=$E92)*('List Unsorted Data - Non Unique'!$F$2:$F$100000=$F92)*('List Unsorted Data - Non Unique'!$H$2:$H$100000)) -> 74
A93: 2015 | B93: 10 | C93: S. Crow | D93: DFG001 | E93: AL01 | F93: Actual | H93: =SUMPRODUCT(('List Unsorted Data - Non Unique'!$A$2:$A$100000=$A93)*('List Unsorted Data - Non Unique'!$B$2:$B$100000=$B93)*('List Unsorted Data - Non Unique'!$C$2:$C$100000=$C93)*('List Unsorted Data - Non Unique'!$D$2:$D$100000=$D93)*('List Unsorted Data - Non Unique'!$E$2:$E$100000=$E93)*('List Unsorted Data - Non Unique'!$F$2:$F$100000=$F93)*('List Unsorted Data - Non Unique'!$H$2:$H$100000)) -> 50 | J93: =SUMPRODUCT(('[1]List Unsorted Data - Non Unique'!$A$2:$A$100000=$A93)*('[1]List Unsorted Data - Non Unique'!$B$2:$B$100000=$B93)*('[1]List Unsorted Data - Non Unique'!$C$2:$C$100000=$C93)*('[1]List Unsorted Data - Non Unique'!$D$2:$D$100000=$D93)*('[1]List Unsorted Data - Non Unique'!$E$2:$E$100000=$E93)*('[1]List Unsorted Data - Non Unique'!$F$2:$F$100000=$F93)*('[1]List Unsorted Data - Non Unique'!$H$2:$H$100000)) -> 50 | L93: 50 | N93: =SUMIF('List Unsorted Data - Non Unique'!$G$2:$G$100000,A93&"-"&B93&"-"&C93&"-"&D93&"-"&E93&"-"&F93,'List Unsorted Data - Non Unique'!$H$2:$H$100000) -> 50 | P93: =SUMIF('List Unsorted Data - Non Unique'!G:G,A93&"-"&B93&"-"&C93&"-"&D93&"-"&E93&"-"&F93,'List Unsorted Data - Non Unique'!H:H) -> 50 | R93: =SUMPRODUCT(('List Unsorted Data - Non Unique'!$A$2:$A$100000=$A93)*('List Unsorted Data - Non Unique'!$B$2:$B$100000=$B93)*('List Unsorted Data - Non Unique'!$C$2:$C$100000=$C93)*('List Unsorted Data - Non Unique'!$D$2:$D$100000=$D93)*('List Unsorted Data - Non Unique'!$E$2:$E$100000=$E93)*('List Unsorted Data - Non Unique'!$F$2:$F$100000=$F93)*('List Unsorted Data - Non Unique'!$H$2:$H$100000)) -> 50 | T93: =SUMPRODUCT(('List Unsorted Data - Non Unique'!$A$2:$A$100000=$A93)*('List Unsorted Data - Non Unique'!$B$2:$B$100000=$B93)*('List Unsorted Data - Non Unique'!$C$2:$C$100000=$C93)*('List Unsorted Data - Non Unique'!$D$2:$D$100000=$D93)*('List Unsorted Data - Non Unique'!$E$2:$E$100000=$E93)*('List Unsorted Data - Non Unique'!$F$2:$F$100000=$F93)*('List Unsorted Data - Non Unique'!$H$2:$H$100000)) -> 50
A94: 2014 | B94: 7 | C94: M.Mills | D94: PRD002 | E94: AK01 | F94: Actual | H94: =SUMPRODUCT(('List Unsorted Data - Non Unique'!$A$2:$A$100000=$A94)*('List Unsorted Data - Non Unique'!$B$2:$B$100000=$B94)*('List Unsorted Data - Non Unique'!$C$2:$C$100000=$C94)*('List Unsorted Data - Non Unique'!$D$2:$D$100000=$D94)*('List Unsorted Data - Non Unique'!$E$2:$E$100000=$E94)*('List Unsorted Data - Non Unique'!$F$2:$F$100000=$F94)*('List Unsorted Data - Non Unique'!$H$2:$H$100000)) -> 89 | J94: =SUMPRODUCT(('[1]List Unsorted Data - Non Unique'!$A$2:$A$100000=$A94)*('[1]List Unsorted Data - Non Unique'!$B$2:$B$100000=$B94)*('[1]List Unsorted Data - Non Unique'!$C$2:$C$100000=$C94)*('[1]List Unsorted Data - Non Unique'!$D$2:$D$100000=$D94)*('[1]List Unsorted Data - Non Unique'!$E$2:$E$100000=$E94)*('[1]List Unsorted Data - Non Unique'!$F$2:$F$100000=$F94)*('[1]List Unsorted Data - Non Unique'!$H$2:$H$100000)) -> 89 | L94: 89 | N94: =SUMIF('List Unsorted Data - Non Unique'!$G$2:$G$100000,A94&"-"&B94&"-"&C94&"-"&D94&"-"&E94&"-"&F94,'List Unsorted Data - Non Unique'!$H$2:$H$100000) -> 89 | P94: =SUMIF('List Unsorted Data - Non Unique'!G:G,A94&"-"&B94&"-"&C94&"-"&D94&"-"&E94&"-"&F94,'List Unsorted Data - Non Unique'!H:H) -> 89 | R94: =SUMPRODUCT(('List Unsorted Data - Non Unique'!$A$2:$A$100000=$A94)*('List Unsorted Data - Non Unique'!$B$2:$B$100000=$B94)*('List Unsorted Data - Non Unique'!$C$2:$C$100000=$C94)*('List Unsorted Data - Non Unique'!$D$2:$D$100000=$D94)*('List Unsorted Data - Non Unique'!$E$2:$E$100000=$E94)*('List Unsorted Data - Non Unique'!$F$2:$F$100000=$F94)*('List Unsorted Data - Non Unique'!$H$2:$H$100000)) -> 89 | T94: =SUMPRODUCT(('List Unsorted Data - Non Unique'!$A$2:$A$100000=$A94)*('List Unsorted Data - Non Unique'!$B$2:$B$100000=$B94)*('List Unsorted Data - Non Unique'!$C$2:$C$100000=$C94)*('List Unsorted Data - Non Unique'!$D$2:$D$100000=$D94)*('List Unsorted Data - Non Unique'!$E$2:$E$100000=$E94)*('List Unsorted Data - Non Unique'!$F$2:$F$100000=$F94)*('List Unsorted Data - Non Unique'!$H$2:$H$100000)) -> 89
A95: 2015 | B95: 6 | C95: P. Buck | D95: ASL002 | E95: CA01 | F95: Forecast | H95: =SUMPRODUCT(('List Unsorted Data - Non Unique'!$A$2:$A$100000=$A95)*('List Unsorted Data - Non Unique'!$B$2:$B$100000=$B95)*('List Unsorted Data - Non Unique'!$C$2:$C$100000=$C95)*('List Unsorted Data - Non Unique'!$D$2:$D$100000=$D95)*('List Unsorted Data - Non Unique'!$E$2:$E$100000=$E95)*('List Unsorted Data - Non Unique'!$F$2:$F$100000=$F95)*('List Unsorted Data - Non Unique'!$H$2:$H$100000)) -> 97 | J95: =SUMPRODUCT(('[1]List Unsorted Data - Non Unique'!$A$2:$A$100000=$A95)*('[1]List Unsorted Data - Non Unique'!$B$2:$B$100000=$B95)*('[1]List Unsorted Data - Non Unique'!$C$2:$C$100000=$C95)*('[1]List Unsorted Data - Non Unique'!$D$2:$D$100000=$D95)*('[1]List Unsorted Data - Non Unique'!$E$2:$E$100000=$E95)*('[1]List Unsorted Data - Non Unique'!$F$2:$F$100000=$F95)*('[1]List Unsorted Data - Non Unique'!$H$2:$H$100000)) -> 97 | L95: 97 | N95: =SUMIF('List Unsorted Data - Non Unique'!$G$2:$G$100000,A95&"-"&B95&"-"&C95&"-"&D95&"-"&E95&"-"&F95,'List Unsorted Data - Non Unique'!$H$2:$H$100000) -> 97 | P95: =SUMIF('List Unsorted Data - Non Unique'!G:G,A95&"-"&B95&"-"&C95&"-"&D95&"-"&E95&"-"&F95,'List Unsorted Data - Non Unique'!H:H) -> 97 | R95: =SUMPRODUCT(('List Unsorted Data - Non Unique'!$A$2:$A$100000=$A95)*('List Unsorted Data - Non Unique'!$B$2:$B$100000=$B95)*('List Unsorted Data - Non Unique'!$C$2:$C$100000=$C95)*('List Unsorted Data - Non Unique'!$D$2:$D$100000=$D95)*('List Unsorted Data - Non Unique'!$E$2:$E$100000=$E95)*('List Unsorted Data - Non Unique'!$F$2:$F$100000=$F95)*('List Unsorted Data - Non Unique'!$H$2:$H$100000)) -> 97 | T95: =SUMPRODUCT(('List Unsorted Data - Non Unique'!$A$2:$A$100000=$A95)*('List Unsorted Data - Non Unique'!$B$2:$B$100000=$B95)*('List Unsorted Data - Non Unique'!$C$2:$C$100000=$C95)*('List Unsorted Data - Non Unique'!$D$2:$D$100000=$D95)*('List Unsorted Data - Non Unique'!$E$2:$E$100000=$E95)*('List Unsorted Data - Non Unique'!$F$2:$F$100000=$F95)*('List Unsorted Data - Non Unique'!$H$2:$H$100000)) -> 97
A96: 2015 | B96: 12 | C96: P. Buck | D96: ASL003 | E96: AL01 | F96: Forecast | H96: =SUMPRODUCT(('List Unsorted Data - Non Unique'!$A$2:$A$100000=$A96)*('List Unsorted Data - Non Unique'!$B$2:$B$100000=$B96)*('List Unsorted Data - Non Unique'!$C$2:$C$100000=$C96)*('List Unsorted Data - Non Unique'!$D$2:$D$100000=$D96)*('List Unsorted Data - Non Unique'!$E$2:$E$100000=$E96)*('List Unsorted Data - Non Unique'!$F$2:$F$100000=$F96)*('List Unsorted Data - Non Unique'!$H$2:$H$100000)) -> 184 | J96: =SUMPRODUCT(('[1]List Unsorted Data - Non Unique'!$A$2:$A$100000=$A96)*('[1]List Unsorted Data - Non Unique'!$B$2:$B$100000=$B96)*('[1]List Unsorted Data - Non Unique'!$C$2:$C$100000=$C96)*('[1]List Unsorted Data - Non Unique'!$D$2:$D$100000=$D96)*('[1]List Unsorted Data - Non Unique'!$E$2:$E$100000=$E96)*('[1]List Unsorted Data - Non Unique'!$F$2:$F$100000=$F96)*('[1]List Unsorted Data - Non Unique'!$H$2:$H$100000)) -> 184 | L96: 184 | N96: =SUMIF('List Unsorted Data - Non Unique'!$G$2:$G$100000,A96&"-"&B96&"-"&C96&"-"&D96&"-"&E96&"-"&F96,'List Unsorted Data - Non Unique'!$H$2:$H$100000) -> 184 | P96: =SUMIF('List Unsorted Data - Non Unique'!G:G,A96&"-"&B96&"-"&C96&"-"&D96&"-"&E96&"-"&F96,'List Unsorted Data - Non Unique'!H:H) -> 184 | R96: =SUMPRODUCT(('List Unsorted Data - Non Unique'!$A$2:$A$100000=$A96)*('List Unsorted Data - Non Unique'!$B$2:$B$100000=$B96)*('List Unsorted Data - Non Unique'!$C$2:$C$100000=$C96)*('List Unsorted Data - Non Unique'!$D$2:$D$100000=$D96)*('List Unsorted Data - Non Unique'!$E$2:$E$100000=$E96)*('List Unsorted Data - Non Unique'!$F$2:$F$100000=$F96)*('List Unsorted Data - Non Unique'!$H$2:$H$100000)) -> 184 | T96: =SUMPRODUCT(('List Unsorted Data - Non Unique'!$A$2:$A$100000=$A96)*('List Unsorted Data - Non Unique'!$B$2:$B$100000=$B96)*('List Unsorted Data - Non Unique'!$C$2:$C$100000=$C96)*('List Unsorted Data - Non Unique'!$D$2:$D$100000=$D96)*('List Unsorted Data - Non Unique'!$E$2:$E$100000=$E96)*('List Unsorted Data - Non Unique'!$F$2:$F$100000=$F96)*('List Unsorted Data - Non Unique'!$H$2:$H$100000)) -> 184
A97: 2016 | B97: 11 | C97: C. Underwood | D97: DFG001 | E97: PA01 | F97: Actual | H97: =SUMPRODUCT(('List Unsorted Data - Non Unique'!$A$2:$A$100000=$A97)*('List Unsorted Data - Non Unique'!$B$2:$B$100000=$B97)*('List Unsorted Data - Non Unique'!$C$2:$C$100000=$C97)*('List Unsorted Data - Non Unique'!$D$2:$D$100000=$D97)*('List Unsorted Data - Non Unique'!$E$2:$E$100000=$E97)*('List Unsorted Data - Non Unique'!$F$2:$F$100000=$F97)*('List Unsorted Data - Non Unique'!$H$2:$H$100000)) -> 433 | J97: =SUMPRODUCT(('[1]List Unsorted Data - Non Unique'!$A$2:$A$100000=$A97)*('[1]List Unsorted Data - Non Unique'!$B$2:$B$100000=$B97)*('[1]List Unsorted Data - Non Unique'!$C$2:$C$100000=$C97)*('[1]List Unsorted Data - Non Unique'!$D$2:$D$100000=$D97)*('[1]List Unsorted Data - Non Unique'!$E$2:$E$100000=$E97)*('[1]List Unsorted Data - Non Unique'!$F$2:$F$100000=$F97)*('[1]List Unsorted Data - Non Unique'!$H$2:$H$100000)) -> 433 | L97: 433 | N97: =SUMIF('List Unsorted Data - Non Unique'!$G$2:$G$100000,A97&"-"&B97&"-"&C97&"-"&D97&"-"&E97&"-"&F97,'List Unsorted Data - Non Unique'!$H$2:$H$100000) -> 433 | P97: =SUMIF('List Unsorted Data - Non Unique'!G:G,A97&"-"&B97&"-"&C97&"-"&D97&"-"&E97&"-"&F97,'List Unsorted Data - Non Unique'!H:H) -> 433 | R97: =SUMPRODUCT(('List Unsorted Data - Non Unique'!$A$2:$A$100000=$A97)*('List Unsorted Data - Non Unique'!$B$2:$B$100000=$B97)*('List Unsorted Data - Non Unique'!$C$2:$C$100000=$C97)*('List Unsorted Data - Non Unique'!$D$2:$D$100000=$D97)*('List Unsorted Data - Non Unique'!$E$2:$E$100000=$E97)*('List Unsorted Data - Non Unique'!$F$2:$F$100000=$F97)*('List Unsorted Data - Non Unique'!$H$2:$H$100000)) -> 433 | T97: =SUMPRODUCT(('List Unsorted Data - Non Unique'!$A$2:$A$100000=$A97)*('List Unsorted Data - Non Unique'!$B$2:$B$100000=$B97)*('List Unsorted Data - Non Unique'!$C$2:$C$100000=$C97)*('List Unsorted Data - Non Unique'!$D$2:$D$100000=$D97)*('List Unsorted Data - Non Unique'!$E$2:$E$100000=$E97)*('List Unsorted Data - Non Unique'!$F$2:$F$100000=$F97)*('List Unsorted Data - Non Unique'!$H$2:$H$100000)) -> 433
A98: 2016 | B98: 5 | C98: M.Mills | D98: POT002 | E98: AL01 | F98: Actual | H98: =SUMPRODUCT(('List Unsorted Data - Non Unique'!$A$2:$A$100000=$A98)*('List Unsorted Data - Non Unique'!$B$2:$B$100000=$B98)*('List Unsorted Data - Non Unique'!$C$2:$C$100000=$C98)*('List Unsorted Data - Non Unique'!$D$2:$D$100000=$D98)*('List Unsorted Data - Non Unique'!$E$2:$E$100000=$E98)*('List Unsorted Data - Non Unique'!$F$2:$F$100000=$F98)*('List Unsorted Data - Non Unique'!$H$2:$H$100000)) -> 218 | J98: =SUMPRODUCT(('[1]List Unsorted Data - Non Unique'!$A$2:$A$100000=$A98)*('[1]List Unsorted Data - Non Unique'!$B$2:$B$100000=$B98)*('[1]List Unsorted Data - Non Unique'!$C$2:$C$100000=$C98)*('[1]List Unsorted Data - Non Unique'!$D$2:$D$100000=$D98)*('[1]List Unsorted Data - Non Unique'!$E$2:$E$100000=$E98)*('[1]List Unsorted Data - Non Unique'!$F$2:$F$100000=$F98)*('[1]List Unsorted Data - Non Unique'!$H$2:$H$100000)) -> 218 | L98: 218 | N98: =SUMIF('List Unsorted Data - Non Unique'!$G$2:$G$100000,A98&"-"&B98&"-"&C98&"-"&D98&"-"&E98&"-"&F98,'List Unsorted Data - Non Unique'!$H$2:$H$100000) -> 218 | P98: =SUMIF('List Unsorted Data - Non Unique'!G:G,A98&"-"&B98&"-"&C98&"-"&D98&"-"&E98&"-"&F98,'List Unsorted Data - Non Unique'!H:H) -> 218 | R98: =SUMPRODUCT(('List Unsorted Data - Non Unique'!$A$2:$A$100000=$A98)*('List Unsorted Data - Non Unique'!$B$2:$B$100000=$B98)*('List Unsorted Data - Non Unique'!$C$2:$C$100000=$C98)*('List Unsorted Data - Non Unique'!$D$2:$D$100000=$D98)*('List Unsorted Data - Non Unique'!$E$2:$E$100000=$E98)*('List Unsorted Data - Non Unique'!$F$2:$F$100000=$F98)*('List Unsorted Data - Non Unique'!$H$2:$H$100000)) -> 218 | T98: =SUMPRODUCT(('List Unsorted Data - Non Unique'!$A$2:$A$100000=$A98)*('List Unsorted Data - Non Unique'!$B$2:$B$100000=$B98)*('List Unsorted Data - Non Unique'!$C$2:$C$100000=$C98)*('List Unsorted Data - Non Unique'!$D$2:$D$100000=$D98)*('List Unsorted Data - Non Unique'!$E$2:$E$100000=$E98)*('List Unsorted Data - Non Unique'!$F$2:$F$100000=$F98)*('List Unsorted Data - Non Unique'!$H$2:$H$100000)) -> 218
A99: 2015 | B99: 2 | C99: B. Paisley | D99: DFG001 | E99: LA01 | F99: Actual | H99: =SUMPRODUCT(('List Unsorted Data - Non Unique'!$A$2:$A$100000=$A99)*('List Unsorted Data - Non Unique'!$B$2:$B$100000=$B99)*('List Unsorted Data - Non Unique'!$C$2:$C$100000=$C99)*('List Unsorted Data - Non Unique'!$D$2:$D$100000=$D99)*('List Unsorted Data - Non Unique'!$E$2:$E$100000=$E99)*('List Unsorted Data - Non Unique'!$F$2:$F$100000=$F99)*('List Unsorted Data - Non Unique'!$H$2:$H$100000)) -> 236 | J99: =SUMPRODUCT(('[1]List Unsorted Data - Non Unique'!$A$2:$A$100000=$A99)*('[1]List Unsorted Data - Non Unique'!$B$2:$B$100000=$B99)*('[1]List Unsorted Data - Non Unique'!$C$2:$C$100000=$C99)*('[1]List Unsorted Data - Non Unique'!$D$2:$D$100000=$D99)*('[1]List Unsorted Data - Non Unique'!$E$2:$E$100000=$E99)*('[1]List Unsorted Data - Non Unique'!$F$2:$F$100000=$F99)*('[1]List Unsorted Data - Non Unique'!$H$2:$H$100000)) -> 236 | L99: 236 | N99: =SUMIF('List Unsorted Data - Non Unique'!$G$2:$G$100000,A99&"-"&B99&"-"&C99&"-"&D99&"-"&E99&"-"&F99,'List Unsorted Data - Non Unique'!$H$2:$H$100000) -> 236 | P99: =SUMIF('List Unsorted Data - Non Unique'!G:G,A99&"-"&B99&"-"&C99&"-"&D99&"-"&E99&"-"&F99,'List Unsorted Data - Non Unique'!H:H) -> 236 | R99: =SUMPRODUCT(('List Unsorted Data - Non Unique'!$A$2:$A$100000=$A99)*('List Unsorted Data - Non Unique'!$B$2:$B$100000=$B99)*('List Unsorted Data - Non Unique'!$C$2:$C$100000=$C99)*('List Unsorted Data - Non Unique'!$D$2:$D$100000=$D99)*('List Unsorted Data - Non Unique'!$E$2:$E$100000=$E99)*('List Unsorted Data - Non Unique'!$F$2:$F$100000=$F99)*('List Unsorted Data - Non Unique'!$H$2:$H$100000)) -> 236 | T99: =SUMPRODUCT(('List Unsorted Data - Non Unique'!$A$2:$A$100000=$A99)*('List Unsorted Data - Non Unique'!$B$2:$B$100000=$B99)*('List Unsorted Data - Non Unique'!$C$2:$C$100000=$C99)*('List Unsorted Data - Non Unique'!$D$2:$D$100000=$D99)*('List Unsorted Data - Non Unique'!$E$2:$E$100000=$E99)*('List Unsorted Data - Non Unique'!$F$2:$F$100000=$F99)*('List Unsorted Data - Non Unique'!$H$2:$H$100000)) -> 236
A100: 2015 | B100: 3 | C100: B. Paisley | D100: ASL001 | E100: PA01 | F100: Forecast | H100: =SUMPRODUCT(('List Unsorted Data - Non Unique'!$A$2:$A$100000=$A100)*('List Unsorted Data - Non Unique'!$B$2:$B$100000=$B100)*('List Unsorted Data - Non Unique'!$C$2:$C$100000=$C100)*('List Unsorted Data - Non Unique'!$D$2:$D$100000=$D100)*('List Unsorted Data - Non Unique'!$E$2:$E$100000=$E100)*('List Unsorted Data - Non Unique'!$F$2:$F$100000=$F100)*('List Unsorted Data - Non Unique'!$H$2:$H$100000)) -> 336 | J100: =SUMPRODUCT(('[1]List Unsorted Data - Non Unique'!$A$2:$A$100000=$A100)*('[1]List Unsorted Data - Non Unique'!$B$2:$B$100000=$B100)*('[1]List Unsorted Data - Non Unique'!$C$2:$C$100000=$C100)*('[1]List Unsorted Data - Non Unique'!$D$2:$D$100000=$D100)*('[1]List Unsorted Data - Non Unique'!$E$2:$E$100000=$E100)*('[1]List Unsorted Data - Non Unique'!$F$2:$F$100000=$F100)*('[1]List Unsorted Data - Non Unique'!$H$2:$H$100000)) -> 336 | L100: 336 | N100: =SUMIF('List Unsorted Data - Non Unique'!$G$2:$G$100000,A100&"-"&B100&"-"&C100&"-"&D100&"-"&E100&"-"&F100,'List Unsorted Data - Non Unique'!$H$2:$H$100000) -> 336 | P100: =SUMIF('List Unsorted Data - Non Unique'!G:G,A100&"-"&B100&"-"&C100&"-"&D100&"-"&E100&"-"&F100,'List Unsorted Data - Non Unique'!H:H) -> 336 | R100: =SUMPRODUCT(('List Unsorted Data - Non Unique'!$A$2:$A$100000=$A100)*('List Unsorted Data - Non Unique'!$B$2:$B$100000=$B100)*('List Unsorted Data - Non Unique'!$C$2:$C$100000=$C100)*('List Unsorted Data - Non Unique'!$D$2:$D$100000=$D100)*('List Unsorted Data - Non Unique'!$E$2:$E$100000=$E100)*('List Unsorted Data - Non Unique'!$F$2:$F$100000=$F100)*('List Unsorted Data - Non Unique'!$H$2:$H$100000)) -> 336 | T100: =SUMPRODUCT(('List Unsorted Data - Non Unique'!$A$2:$A$100000=$A100)*('List Unsorted Data - Non Unique'!$B$2:$B$100000=$B100)*('List Unsorted Data - Non Unique'!$C$2:$C$100000=$C100)*('List Unsorted Data - Non Unique'!$D$2:$D$100000=$D100)*('List Unsorted Data - Non Unique'!$E$2:$E$100000=$E100)*('List Unsorted Data - Non Unique'!$F$2:$F$100000=$F100)*('List Unsorted Data - Non Unique'!$H$2:$H$100000)) -> 336
A101: 2016 | B101: 6 | C101: M. Stipe | D101: JKL001 | E101: AL01 | F101: Actual | H101: =SUMPRODUCT(('List Unsorted Data - Non Unique'!$A$2:$A$100000=$A101)*('List Unsorted Data - Non Unique'!$B$2:$B$100000=$B101)*('List Unsorted Data - Non Unique'!$C$2:$C$100000=$C101)*('List Unsorted Data - Non Unique'!$D$2:$D$100000=$D101)*('List Unsorted Data - Non Unique'!$E$2:$E$100000=$E101)*('List Unsorted Data - Non Unique'!$F$2:$F$100000=$F101)*('List Unsorted Data - Non Unique'!$H$2:$H$100000)) -> 105 | J101: =SUMPRODUCT(('[1]List Unsorted Data - Non Unique'!$A$2:$A$100000=$A101)*('[1]List Unsorted Data - Non Unique'!$B$2:$B$100000=$B101)*('[1]List Unsorted Data - Non Unique'!$C$2:$C$100000=$C101)*('[1]List Unsorted Data - Non Unique'!$D$2:$D$100000=$D101)*('[1]List Unsorted Data - Non Unique'!$E$2:$E$100000=$E101)*('[1]List Unsorted Data - Non Unique'!$F$2:$F$100000=$F101)*('[1]List Unsorted Data - Non Unique'!$H$2:$H$100000)) -> 105 | L101: 105 | N101: =SUMIF('List Unsorted Data - Non Unique'!$G$2:$G$100000,A101&"-"&B101&"-"&C101&"-"&D101&"-"&E101&"-"&F101,'List Unsorted Data - Non Unique'!$H$2:$H$100000) -> 105 | P101: =SUMIF('List Unsorted Data - Non Unique'!G:G,A101&"-"&B101&"-"&C101&"-"&D101&"-"&E101&"-"&F101,'List Unsorted Data - Non Unique'!H:H) -> 105 | R101: =SUMPRODUCT(('List Unsorted Data - Non Unique'!$A$2:$A$100000=$A101)*('List Unsorted Data - Non Unique'!$B$2:$B$100000=$B101)*('List Unsorted Data - Non Unique'!$C$2:$C$100000=$C101)*('List Unsorted Data - Non Unique'!$D$2:$D$100000=$D101)*('List Unsorted Data - Non Unique'!$E$2:$E$100000=$E101)*('List Unsorted Data - Non Unique'!$F$2:$F$100000=$F101)*('List Unsorted Data - Non Unique'!$H$2:$H$100000)) -> 105 | T101: =SUMPRODUCT(('List Unsorted Data - Non Unique'!$A$2:$A$100000=$A101)*('List Unsorted Data - Non Unique'!$B$2:$B$100000=$B101)*('List Unsorted Data - Non Unique'!$C$2:$C$100000=$C101)*('List Unsorted Data - Non Unique'!$D$2:$D$100000=$D101)*('List Unsorted Data - Non Unique'!$E$2:$E$100000=$E101)*('List Unsorted Data - Non Unique'!$F$2:$F$100000=$F101)*('List Unsorted Data - Non Unique'!$H$2:$H$100000)) -> 105
A102: 2015 | B102: 9 | C102: C. Underwood | D102: PRD001 | E102: PA01 | F102: Forecast | H102: =SUMPRODUCT(('List Unsorted Data - Non Unique'!$A$2:$A$100000=$A102)*('List Unsorted Data - Non Unique'!$B$2:$B$100000=$B102)*('List Unsorted Data - Non Unique'!$C$2:$C$100000=$C102)*('List Unsorted Data - Non Unique'!$D$2:$D$100000=$D102)*('List Unsorted Data - Non Unique'!$E$2:$E$100000=$E102)*('List Unsorted Data - Non Unique'!$F$2:$F$100000=$F102)*('List Unsorted Data - Non Unique'!$H$2:$H$100000)) -> 82 | J102: =SUMPRODUCT(('[1]List Unsorted Data - Non Unique'!$A$2:$A$100000=$A102)*('[1]List Unsorted Data - Non Unique'!$B$2:$B$100000=$B102)*('[1]List Unsorted Data - Non Unique'!$C$2:$C$100000=$C102)*('[1]List Unsorted Data - Non Unique'!$D$2:$D$100000=$D102)*('[1]List Unsorted Data - Non Unique'!$E$2:$E$100000=$E102)*('[1]List Unsorted Data - Non Unique'!$F$2:$F$100000=$F102)*('[1]List Unsorted Data - Non Unique'!$H$2:$H$100000)) -> 82 | L102: 82 | N102: =SUMIF('List Unsorted Data - Non Unique'!$G$2:$G$100000,A102&"-"&B102&"-"&C102&"-"&D102&"-"&E102&"-"&F102,'List Unsorted Data - Non Unique'!$H$2:$H$100000) -> 82 | P102: =SUMIF('List Unsorted Data - Non Unique'!G:G,A102&"-"&B102&"-"&C102&"-"&D102&"-"&E102&"-"&F102,'List Unsorted Data - Non Unique'!H:H) -> 82 | R102: =SUMPRODUCT(('List Unsorted Data - Non Unique'!$A$2:$A$100000=$A102)*('List Unsorted Data - Non Unique'!$B$2:$B$100000=$B102)*('List Unsorted Data - Non Unique'!$C$2:$C$100000=$C102)*('List Unsorted Data - Non Unique'!$D$2:$D$100000=$D102)*('List Unsorted Data - Non Unique'!$E$2:$E$100000=$E102)*('List Unsorted Data - Non Unique'!$F$2:$F$100000=$F102)*('List Unsorted Data - Non Unique'!$H$2:$H$100000)) -> 82 | T102: =SUMPRODUCT(('List Unsorted Data - Non Unique'!$A$2:$A$100000=$A102)*('List Unsorted Data - Non Unique'!$B$2:$B$100000=$B102)*('List Unsorted Data - Non Unique'!$C$2:$C$100000=$C102)*('List Unsorted Data - Non Unique'!$D$2:$D$100000=$D102)*('List Unsorted Data - Non Unique'!$E$2:$E$100000=$E102)*('List Unsorted Data - Non Unique'!$F$2:$F$100000=$F102)*('List Unsorted Data - Non Unique'!$H$2:$H$100000)) -> 82
A103: 2016 | B103: 8 | C103: P. Buck | D103: ASL001 | E103: AL01 | F103: Forecast | H103: =SUMPRODUCT(('List Unsorted Data - Non Unique'!$A$2:$A$100000=$A103)*('List Unsorted Data - Non Unique'!$B$2:$B$100000=$B103)*('List Unsorted Data - Non Unique'!$C$2:$C$100000=$C103)*('List Unsorted Data - Non Unique'!$D$2:$D$100000=$D103)*('List Unsorted Data - Non Unique'!$E$2:$E$100000=$E103)*('List Unsorted Data - Non Unique'!$F$2:$F$100000=$F103)*('List Unsorted Data - Non Unique'!$H$2:$H$100000)) -> 279 | J103: =SUMPRODUCT(('[1]List Unsorted Data - Non Unique'!$A$2:$A$100000=$A103)*('[1]List Unsorted Data - Non Unique'!$B$2:$B$100000=$B103)*('[1]List Unsorted Data - Non Unique'!$C$2:$C$100000=$C103)*('[1]List Unsorted Data - Non Unique'!$D$2:$D$100000=$D103)*('[1]List Unsorted Data - Non Unique'!$E$2:$E$100000=$E103)*('[1]List Unsorted Data - Non Unique'!$F$2:$F$100000=$F103)*('[1]List Unsorted Data - Non Unique'!$H$2:$H$100000)) -> 279 | L103: 279 | N103: =SUMIF('List Unsorted Data - Non Unique'!$G$2:$G$100000,A103&"-"&B103&"-"&C103&"-"&D103&"-"&E103&"-"&F103,'List Unsorted Data - Non Unique'!$H$2:$H$100000) -> 279 | P103: =SUMIF('List Unsorted Data - Non Unique'!G:G,A103&"-"&B103&"-"&C103&"-"&D103&"-"&E103&"-"&F103,'List Unsorted Data - Non Unique'!H:H) -> 279 | R103: =SUMPRODUCT(('List Unsorted Data - Non Unique'!$A$2:$A$100000=$A103)*('List Unsorted Data - Non Unique'!$B$2:$B$100000=$B103)*('List Unsorted Data - Non Unique'!$C$2:$C$100000=$C103)*('List Unsorted Data - Non Unique'!$D$2:$D$100000=$D103)*('List Unsorted Data - Non Unique'!$E$2:$E$100000=$E103)*('List Unsorted Data - Non Unique'!$F$2:$F$100000=$F103)*('List Unsorted Data - Non Unique'!$H$2:$H$100000)) -> 279 | T103: =SUMPRODUCT(('List Unsorted Data - Non Unique'!$A$2:$A$100000=$A103)*('List Unsorted Data - Non Unique'!$B$2:$B$100000=$B103)*('List Unsorted Data - Non Unique'!$C$2:$C$100000=$C103)*('List Unsorted Data - Non Unique'!$D$2:$D$100000=$D103)*('List Unsorted Data - Non Unique'!$E$2:$E$100000=$E103)*('List Unsorted Data - Non Unique'!$F$2:$F$100000=$F103)*('List Unsorted Data - Non Unique'!$H$2:$H$100000)) -> 279
A104: 2016 | B104: 6 | C104: B. Paisley | D104: ASL003 | E104: LA01 | F104: Forecast | H104: =SUMPRODUCT(('List Unsorted Data - Non Unique'!$A$2:$A$100000=$A104)*('List Unsorted Data - Non Unique'!$B$2:$B$100000=$B104)*('List Unsorted Data - Non Unique'!$C$2:$C$100000=$C104)*('List Unsorted Data - Non Unique'!$D$2:$D$100000=$D104)*('List Unsorted Data - Non Unique'!$E$2:$E$100000=$E104)*('List Unsorted Data - Non Unique'!$F$2:$F$100000=$F104)*('List Unsorted Data - Non Unique'!$H$2:$H$100000)) -> 175 | J104: =SUMPRODUCT(('[1]List Unsorted Data - Non Unique'!$A$2:$A$100000=$A104)*('[1]List Unsorted Data - Non Unique'!$B$2:$B$100000=$B104)*('[1]List Unsorted Data - Non Unique'!$C$2:$C$100000=$C104)*('[1]List Unsorted Data - Non Unique'!$D$2:$D$100000=$D104)*('[1]List Unsorted Data - Non Unique'!$E$2:$E$100000=$E104)*('[1]List Unsorted Data - Non Unique'!$F$2:$F$100000=$F104)*('[1]List Unsorted Data - Non Unique'!$H$2:$H$100000)) -> 175 | L104: 175 | N104: =SUMIF('List Unsorted Data - Non Unique'!$G$2:$G$100000,A104&"-"&B104&"-"&C104&"-"&D104&"-"&E104&"-"&F104,'List Unsorted Data - Non Unique'!$H$2:$H$100000) -> 175 | P104: =SUMIF('List Unsorted Data - Non Unique'!G:G,A104&"-"&B104&"-"&C104&"-"&D104&"-"&E104&"-"&F104,'List Unsorted Data - Non Unique'!H:H) -> 175 | R104: =SUMPRODUCT(('List Unsorted Data - Non Unique'!$A$2:$A$100000=$A104)*('List Unsorted Data - Non Unique'!$B$2:$B$100000=$B104)*('List Unsorted Data - Non Unique'!$C$2:$C$100000=$C104)*('List Unsorted Data - Non Unique'!$D$2:$D$100000=$D104)*('List Unsorted Data - Non Unique'!$E$2:$E$100000=$E104)*('List Unsorted Data - Non Unique'!$F$2:$F$100000=$F104)*('List Unsorted Data - Non Unique'!$H$2:$H$100000)) -> 175 | T104: =SUMPRODUCT(('List Unsorted Data - Non Unique'!$A$2:$A$100000=$A104)*('List Unsorted Data - Non Unique'!$B$2:$B$100000=$B104)*('List Unsorted Data - Non Unique'!$C$2:$C$100000=$C104)*('List Unsorted Data - Non Unique'!$D$2:$D$100000=$D104)*('List Unsorted Data - Non Unique'!$E$2:$E$100000=$E104)*('List Unsorted Data - Non Unique'!$F$2:$F$100000=$F104)*('List Unsorted Data - Non Unique'!$H$2:$H$100000)) -> 175
A105: 2015 | B105: 8 | C105: B. Paisley | D105: POT001 | E105: PA01 | F105: Forecast | H105: =SUMPRODUCT(('List Unsorted Data - Non Unique'!$A$2:$A$100000=$A105)*('List Unsorted Data - Non Unique'!$B$2:$B$100000=$B105)*('List Unsorted Data - Non Unique'!$C$2:$C$100000=$C105)*('List Unsorted Data - Non Unique'!$D$2:$D$100000=$D105)*('List Unsorted Data - Non Unique'!$E$2:$E$100000=$E105)*('List Unsorted Data - Non Unique'!$F$2:$F$100000=$F105)*('List Unsorted Data - Non Unique'!$H$2:$H$100000)) -> 335 | J105: =SUMPRODUCT(('[1]List Unsorted Data - Non Unique'!$A$2:$A$100000=$A105)*('[1]List Unsorted Data - Non Unique'!$B$2:$B$100000=$B105)*('[1]List Unsorted Data - Non Unique'!$C$2:$C$100000=$C105)*('[1]List Unsorted Data - Non Unique'!$D$2:$D$100000=$D105)*('[1]List Unsorted Data - Non Unique'!$E$2:$E$100000=$E105)*('[1]List Unsorted Data - Non Unique'!$F$2:$F$100000=$F105)*('[1]List Unsorted Data - Non Unique'!$H$2:$H$100000)) -> 335 | L105: 335 | N105: =SUMIF('List Unsorted Data - Non Unique'!$G$2:$G$100000,A105&"-"&B105&"-"&C105&"-"&D105&"-"&E105&"-"&F105,'List Unsorted Data - Non Unique'!$H$2:$H$100000) -> 335 | P105: =SUMIF('List Unsorted Data - Non Unique'!G:G,A105&"-"&B105&"-"&C105&"-"&D105&"-"&E105&"-"&F105,'List Unsorted Data - Non Unique'!H:H) -> 335 | R105: =SUMPRODUCT(('List Unsorted Data - Non Unique'!$A$2:$A$100000=$A105)*('List Unsorted Data - Non Unique'!$B$2:$B$100000=$B105)*('List Unsorted Data - Non Unique'!$C$2:$C$100000=$C105)*('List Unsorted Data - Non Unique'!$D$2:$D$100000=$D105)*('List Unsorted Data - Non Unique'!$E$2:$E$100000=$E105)*('List Unsorted Data - Non Unique'!$F$2:$F$100000=$F105)*('List Unsorted Data - Non Unique'!$H$2:$H$100000)) -> 335 | T105: =SUMPRODUCT(('List Unsorted Data - Non Unique'!$A$2:$A$100000=$A105)*('List Unsorted Data - Non Unique'!$B$2:$B$100000=$B105)*('List Unsorted Data - Non Unique'!$C$2:$C$100000=$C105)*('List Unsorted Data - Non Unique'!$D$2:$D$100000=$D105)*('List Unsorted Data - Non Unique'!$E$2:$E$100000=$E105)*('List Unsorted Data - Non Unique'!$F$2:$F$100000=$F105)*('List Unsorted Data - Non Unique'!$H$2:$H$100000)) -> 335
H107: SUMPRODUCT | J107: SUMPRODUCT | L107: SUMPRODUCT | N107: SUMIF | P107: SUMIF | R107: SUMPRODUCT | T107: SUMPRODUCT
H108: Within Workbook | J108: Across Workbook | L108: Within Worksheet | N108: Select Cells | P108: All Cells | R108: Laptop Battery | T108: Mains Powered
F110: Time #1 | H110: 7.32723 | J110: 7.53929 | L110: 7.35761 | N110: 0.75672 | P110: 0.73044 | R110: 7.32723 | T110: 6.18972
F111: Time #2 | H111: 7.38123 | J111: 7.39657 | L111: 7.63867 | N111: 0.72773 | P111: 0.72831 | R111: 7.38123 | T111: 6.14774
F112: Time #3 | H112: 7.36168 | J112: 7.55475 | L112: 7.24843 | N112: 0.77365 | P112: 0.87936 | R112: 7.36168 | T112: 6.16172
F113: Time #4 | H113: 7.3545 | J113: 7.47936 | L113: 7.30821 | N113: 0.78305 | P113: 0.75194 | R113: 7.3545 | T113: 6.13854
F114: Time #5 | H114: 7.34682 | J114: 7.4571 | L114: 7.31799 | N114: 0.73258 | P114: 0.83706 | R114: 7.34682 | T114: 6.13488
F116: Average: | H116: =AVERAGE(H110:H114) -> 7.354292 | J116: =AVERAGE(J110:J114) -> 7.485414 | L116: =AVERAGE(L110:L114) -> 7.374182 | N116: =AVERAGE(N110:N114) -> 0.754746 | P116: =AVERAGE(P110:P114) -> 0.785422 | R116: =AVERAGE(R110:R114) -> 7.354292 | T116: =AVERAGE(T110:T114) -> 6.15452
F118: % of slowest | H118: =H116/MAX($H$116:$L$116) -> 0.9824829996 | J118: =J116/MAX($H$116:$L$116) -> 1 | L118: =L116/MAX($H$116:$L$116) -> 0.9851401673 | N118: =N116/MAX($N$116:$P$116) -> 0.9609432891 | P118: =P116/MAX($N$116:$P$116) -> 1 | R118: =R116/MAX($R$116:$T$116) -> 1 | T118: =T116/MAX($R$116:$T$116) -> 0.8368609786
A150: Year | B150: Period | C150: Sales Person | D150: Product | E150: Customer | F150: Forecast/Actual | H150: Value
A151: 2015 | B151: 1 | C151: B. Shelton | D151: ASL001 | E151: CA01 | F151: Actual | H151: 76
A152: 2015 | B152: 5 | C152: M. Stipe | D152: POT002 | E152: SD01 | F152: Actual | H152: 64
A153: 2016 | B153: 3 | C153: P. Buck | D153: POT002 | E153: AK01 | F153: Actual | H153: 61
A154: 2015 | B154: 9 | C154: M. Stipe | D154: ASL003 | E154: CA01 | F154: Forecast | H154: 51
A155: 2016 | B155: 11 | C155: R. Star | D155: PRD002 | E155: AL01 | F155: Forecast | H155: 79
A156: 2016 | B156: 11 | C156: R. Star | D156: POT002 | E156: NC01 | F156: Actual | H156: 64
A157: 2015 | B157: 6 | C157: P. Buck | D157: PRD002 | E157: SD01 | F157: Actual | H157: 77
A158: 2015 | B158: 7 | C158: J. Lennon | D158: JKL001 | E158: PA01 | F158: Forecast | H158: 42
A159: 2016 | B159: 4 | C159: C. Underwood | D159: POT001 | E159: AL01 | F159: Actual | H159: 79
A160: 2016 | B160: 2 | C160: J. Lennon | D160: ASL002 | E160: MN01 | F160: Forecast | H160: 57
A161: 2016 | B161: 10 | C161: P. Buck | D161: JKL001 | E161: PA01 | F161: Actual | H161: 35
A162: 2015 | B162: 2 | C162: R. Star | D162: DFG001 | E162: SD01 | F162: Forecast | H162: 53
A163: 2016 | B163: 10 | C163: B. Paisley | D163: POT001 | E163: AL01 | F163: Actual | H163: 76
A164: 2015 | B164: 9 | C164: M. Stipe | D164: POT002 | E164: AK01 | F164: Forecast | H164: 60
A165: 2015 | B165: 5 | C165: B. Paisley | D165: JKL001 | E165: CA01 | F165: Actual | H165: 50
A166: 2015 | B166: 5 | C166: S. Crow | D166: POT001 | E166: CA01 | F166: Actual | H166: 82
A167: 2014 | B167: 2 | C167: B. Paisley | D167: ASL001 | E167: LA01 | F167: Forecast | H167: 67
A168: 2015 | B168: 4 | C168: B. Paisley | D168: JKL001 | E168: PA01 | F168: Forecast | H168: 43
A169: 2015 | B169: 12 | C169: R. Star | D169: POT001 | E169: PA01 | F169: Actual | H169: 83
A170: 2014 | B170: 8 | C170: B. Paisley | D170: PRD002 | E170: AK01 | F170: Forecast | H170: 76
A171: 2015 | B171: 2 | C171: P. Buck | D171: ASL001 | E171: AL01 | F171: Actual | H171: 71
A172: 2015 | B172: 8 | C172: M. Stipe | D172: POT001 | E172: CA01 | F172: Actual | H172: 77
A173: 2015 | B173: 11 | C173: P. Buck | D173: JKL001 | E173: CA01 | F173: Actual | H173: 37
A174: 2014 | B174: 9 | C174: B. Paisley | D174: ASL001 | E174: AK01 | F174: Actual | H174: 70
A175: 2015 | B175: 6 | C175: M. Stipe | D175: ASL001 | E175: LA01 | F175: Actual | H175: 76
A176: 2014 | B176: 12 | C176: J. Lennon | D176: JKL001 | E176: SD01 | F176: Actual | H176: 50
A177: 2015 | B177: 4 | C177: B. Shelton | D177: POT002 | E177: CA01 | F177: Forecast | H177: 73
A178: 2015 | B178: 2 | C178: R. Star | D178: ASL001 | E178: MN01 | F178: Actual | H178: 70
A179: 2016 | B179: 5 | C179: J. McVie | D179: PRD001 | E179: VA01 | F179: Forecast | H179: 86
A180: 2015 | B180: 5 | C180: M. Stipe | D180: POT001 | E180: SD01 | F180: Forecast | H180: 80
A181: 2016 | B181: 3 | C181: M.Mills | D181: PRD002 | E181: AL01 | F181: Forecast | H181: 90
A182: 2015 | B182: 4 | C182: S. Crow | D182: POT001 | E182: CA01 | F182: Forecast | H182: 82
A183: 2015 | B183: 5 | C183: M.Mills | D183: ASL001 | E183: VA01 | F183: Forecast | H183: 77
A184: 2014 | B184: 2 | C184: C. Underwood | D184: POT001 | E184: MN01 | F184: Actual | H184: 85
A185: 2015 | B185: 11 | C185: R. Star | D185: JKL001 | E185: NC01 | F185: Actual | H185: 41
A186: 2015 | B186: 3 | C186: R. Star | D186: ASL003 | E186: AL01 | F186: Actual | H186: 62
A187: 2015 | B187: 5 | C187: P. Buck | D187: DFG001 | E187: PA01 | F187: Forecast | H187: 52
A188: 2015 | B188: 10 | C188: M.Mills | D188: ASL002 | E188: LA01 | F188: Actual | H188: 43
A189: 2016 | B189: 11 | C189: J. McVie | D189: PRD001 | E189: AL01 | F189: Forecast | H189: 85
A190: 2015 | B190: 1 | C190: M.Mills | D190: JKL001 | E190: LA01 | F190: Actual | H190: 39
A191: 2015 | B191: 9 | C191: J. McVie | D191: POT002 | E191: SD01 | F191: Actual | H191: 77
A192: 2014 | B192: 12 | C192: B. Shelton | D192: ASL001 | E192: NC01 | F192: Forecast | H192: 74
A193: 2016 | B193: 7 | C193: C. Underwood | D193: PRD002 | E193: MN01 | F193: Forecast | H193: 87
A194: 2015 | B194: 12 | C194: B. Shelton | D194: ASL001 | E194: MN01 | F194: Actual | H194: 71
A195: 2014 | B195: 4 | C195: P. Buck | D195: PRD002 | E195: LA01 | F195: Actual | H195: 82
A196: 2016 | B196: 8 | C196: B. Shelton | D196: POT002 | E196: CA01 | F196: Actual | H196: 74
A197: 2015 | B197: 10 | C197: C. Underwood | D197: PRD001 | E197: AK01 | F197: Forecast | H197: 88
A198: 2015 | B198: 7 | C198: J. McVie | D198: POT002 | E198: NC01 | F198: Forecast | H198: 62
A199: 2015 | B199: 9 | C199: M.Mills | D199: POT001 | E199: NC01 | F199: Actual | H199: 86
A200: 2014 | B200: 6 | C200: J. Lennon | D200: JKL001 | E200: CA01 | F200: Actual | H200: 30
A201: 2014 | B201: 5 | C201: B. Paisley | D201: ASL002 | E201: SD01 | F201: Forecast | H201: 43
A202: 2015 | B202: 11 | C202: B. Shelton | D202: ASL003 | E202: MN01 | F202: Forecast | H202: 57
A203: 2015 | B203: 11 | C203: C. Underwood | D203: JKL001 | E203: MN01 | F203: Forecast | H203: 38
A204: 2014 | B204: 11 | C204: P. Buck | D204: DFG001 | E204: PA01 | F204: Actual | H204: 62
A205: 2015 | B205: 9 | C205: R. Star | D205: DFG001 | E205: SD01 | F205: Actual | H205: 61
A206: 2015 | B206: 7 | C206: P. Buck | D206: ASL003 | E206: SD01 | F206: Actual | H206: 67
A207: 2015 | B207: 7 | C207: M.Mills | D207: PRD001 | E207: SD01 | F207: Actual | H207: 81
A208: 2015 | B208: 5 | C208: C. Underwood | D208: PRD002 | E208: AL01 | F208: Actual | H208: 85
A209: 2015 | B209: 11 | C209: R. Star | D209: ASL001 | E209: LA01 | F209: Actual | H209: 75
A210: 2015 | B210: 12 | C210: J. Lennon | D210: POT001 | E210: MN01 | F210: Actual | H210: 80
A211: 2016 | B211: 4 | C211: C. Underwood | D211: ASL002 | E211: LA01 | F211: Forecast | H211: 56
A212: 2014 | B212: 10 | C212: M.Mills | D212: JKL001 | E212: LA01 | F212: Forecast | H212: 45
A213: 2015 | B213: 5 | C213: M. Stipe | D213: ASL003 | E213: CA01 | F213: Actual | H213: 57
A214: 2014 | B214: 7 | C214: B. Paisley | D214: ASL002 | E214: LA01 | F214: Actual | H214: 54
A215: 2014 | B215: 10 | C215: P. Buck | D215: ASL001 | E215: AL01 | F215: Forecast | H215: 72
A216: 2015 | B216: 5 | C216: P. Buck | D216: ASL001 | E216: MN01 | F216: Actual | H216: 75
A217: 2015 | B217: 4 | C217: M. Stipe | D217: POT002 | E217: VA01 | F217: Actual | H217: 65
A218: 2014 | B218: 9 | C218: M. Stipe | D218: POT001 | E218: AL01 | F218: Forecast | H218: 80
A219: 2014 | B219: 10 | C219: J. Lennon | D219: ASL003 | E219: PA01 | F219: Forecast | H219: 59
A220: 2015 | B220: 11 | C220: J. McVie | D220: DFG001 | E220: SD01 | F220: Actual | H220: 58
A221: 2015 | B221: 9 | C221: C. Underwood | D221: POT002 | E221: AK01 | F221: Forecast | H221: 72
A222: 2015 | B222: 12 | C222: J. Lennon | D222: JKL001 | E222: LA01 | F222: Actual | H222: 48
A223: 2015 | B223: 8 | C223: M.Mills | D223: POT002 | E223: MN01 | F223: Actual | H223: 61
A224: 2015 | B224: 11 | C224: J. Lennon | D224: PRD002 | E224: MN01 | F224: Forecast | H224: 84
A225: 2016 | B225: 5 | C225: R. Star | D225: ASL003 | E225: AK01 | F225: Forecast | H225: 56
A226: 2015 | B226: 3 | C226: P. Buck | D226: JKL001 | E226: SD01 | F226: Actual | H226: 33
A227: 2014 | B227: 9 | C227: B. Shelton | D227: POT002 | E227: SD01 | F227: Actual | H227: 63
A228: 2015 | B228: 2 | C228: C. Underwood | D228: PRD002 | E228: PA01 | F228: Actual | H228: 78
A229: 2015 | B229: 3 | C229: R. Star | D229: JKL001 | E229: NC01 | F229: Forecast | H229: 40
A230: 2016 | B230: 5 | C230: M.Mills | D230: ASL001 | E230: CA01 | F230: Actual | H230: 64
A231: 2015 | B231: 2 | C231: M.Mills | D231: POT002 | E231: VA01 | F231: Actual | H231: 73
A232: 2016 | B232: 11 | C232: R. Star | D232: POT001 | E232: AK01 | F232: Actual | H232: 74
A233: 2015 | B233: 2 | C233: M. Stipe | D233: ASL001 | E233: SD01 | F233: Forecast | H233: 70
A234: 2015 | B234: 2 | C234: S. Crow | D234: POT001 | E234: SD01 | F234: Forecast | H234: 72
A235: 2015 | B235: 5 | C235: J. Lennon | D235: ASL002 | E235: CA01 | F235: Forecast | H235: 58
A236: 2016 | B236: 6 | C236: P. Buck | D236: PRD002 | E236: AK01 | F236: Forecast | H236: 78
A237: 2016 | B237: 11 | C237: J. Lennon | D237: JKL001 | E237: MN01 | F237: Forecast | H237: 32
A238: 2015 | B238: 10 | C238: B. Shelton | D238: JKL001 | E238: AL01 | F238: Forecast | H238: 49
... 4262 more rows

Sheet List Unsorted Data - Non Unique
A1: Year | B1: Period | C1: Sales Person | D1: Product | E1: Customer | F1: Forecast/Actual | G1: Helper | H1: Value
A2: 2015 | B2: 1 | C2: B. Shelton | D2: ASL001 | E2: CA01 | F2: Actual | G2: 2015-1-B. Shelton-ASL001-CA01-Actual | H2: 76
A3: 2015 | B3: 5 | C3: M. Stipe | D3: POT002 | E3: SD01 | F3: Actual | G3: 2015-5-M. Stipe-POT002-SD01-Actual | H3: 64
A4: 2016 | B4: 3 | C4: P. Buck | D4: POT002 | E4: AK01 | F4: Actual | G4: 2016-3-P. Buck-POT002-AK01-Actual | H4: 61
A5: 2015 | B5: 9 | C5: M. Stipe | D5: ASL003 | E5: CA01 | F5: Forecast | G5: 2015-9-M. Stipe-ASL003-CA01-Forecast | H5: 51
A6: 2016 | B6: 11 | C6: R. Star | D6: PRD002 | E6: AL01 | F6: Forecast | G6: 2016-11-R. Star-PRD002-AL01-Forecast | H6: 79
A7: 2016 | B7: 11 | C7: R. Star | D7: POT002 | E7: NC01 | F7: Actual | G7: 2016-11-R. Star-POT002-NC01-Actual | H7: 64
A8: 2015 | B8: 6 | C8: P. Buck | D8: PRD002 | E8: SD01 | F8: Actual | G8: 2015-6-P. Buck-PRD002-SD01-Actual | H8: 77
A9: 2015 | B9: 7 | C9: J. Lennon | D9: JKL001 | E9: PA01 | F9: Forecast | G9: 2015-7-J. Lennon-JKL001-PA01-Forecast | H9: 42
A10: 2016 | B10: 4 | C10: C. Underwood | D10: POT001 | E10: AL01 | F10: Actual | G10: 2016-4-C. Underwood-POT001-AL01-Actual | H10: 79
A11: 2016 | B11: 2 | C11: J. Lennon | D11: ASL002 | E11: MN01 | F11: Forecast | G11: 2016-2-J. Lennon-ASL002-MN01-Forecast | H11: 57
A12: 2016 | B12: 10 | C12: P. Buck | D12: JKL001 | E12: PA01 | F12: Actual | G12: 2016-10-P. Buck-JKL001-PA01-Actual | H12: 35
A13: 2015 | B13: 2 | C13: R. Star | D13: DFG001 | E13: SD01 | F13: Forecast | G13: 2015-2-R. Star-DFG001-SD01-Forecast | H13: 53
A14: 2016 | B14: 10 | C14: B. Paisley | D14: POT001 | E14: AL01 | F14: Actual | G14: 2016-10-B. Paisley-POT001-AL01-Actual | H14: 76
A15: 2015 | B15: 9 | C15: M. Stipe | D15: POT002 | E15: AK01 | F15: Forecast | G15: 2015-9-M. Stipe-POT002-AK01-Forecast | H15: 60
A16: 2015 | B16: 5 | C16: B. Paisley | D16: JKL001 | E16: CA01 | F16: Actual | G16: 2015-5-B. Paisley-JKL001-CA01-Actual | H16: 50
A17: 2015 | B17: 5 | C17: S. Crow | D17: POT001 | E17: CA01 | F17: Actual | G17: 2015-5-S. Crow-POT001-CA01-Actual | H17: 82
A18: 2014 | B18: 2 | C18: B. Paisley | D18: ASL001 | E18: LA01 | F18: Forecast | G18: 2014-2-B. Paisley-ASL001-LA01-Forecast | H18: 67
A19: 2015 | B19: 4 | C19: B. Paisley | D19: JKL001 | E19: PA01 | F19: Forecast | G19: 2015-4-B. Paisley-JKL001-PA01-Forecast | H19: 43
A20: 2015 | B20: 12 | C20: R. Star | D20: POT001 | E20: PA01 | F20: Actual | G20: 2015-12-R. Star-POT001-PA01-Actual | H20: 83
A21: 2014 | B21: 8 | C21: B. Paisley | D21: PRD002 | E21: AK01 | F21: Forecast | G21: 2014-8-B. Paisley-PRD002-AK01-Forecast | H21: 76
A22: 2015 | B22: 2 | C22: P. Buck | D22: ASL001 | E22: AL01 | F22: Actual | G22: 2015-2-P. Buck-ASL001-AL01-Actual | H22: 71
A23: 2015 | B23: 8 | C23: M. Stipe | D23: POT001 | E23: CA01 | F23: Actual | G23: 2015-8-M. Stipe-POT001-CA01-Actual | H23: 77
A24: 2015 | B24: 11 | C24: P. Buck | D24: JKL001 | E24: CA01 | F24: Actual | G24: 2015-11-P. Buck-JKL001-CA01-Actual | H24: 37
A25: 2014 | B25: 9 | C25: B. Paisley | D25: ASL001 | E25: AK01 | F25: Actual | G25: 2014-9-B. Paisley-ASL001-AK01-Actual | H25: 70
A26: 2015 | B26: 6 | C26: M. Stipe | D26: ASL001 | E26: LA01 | F26: Actual | G26: 2015-6-M. Stipe-ASL001-LA01-Actual | H26: 76
A27: 2014 | B27: 12 | C27: J. Lennon | D27: JKL001 | E27: SD01 | F27: Actual | G27: 2014-12-J. Lennon-JKL001-SD01-Actual | H27: 50
A28: 2015 | B28: 4 | C28: B. Shelton | D28: POT002 | E28: CA01 | F28: Forecast | G28: 2015-4-B. Shelton-POT002-CA01-Forecast | H28: 73
A29: 2015 | B29: 2 | C29: R. Star | D29: ASL001 | E29: MN01 | F29: Actual | G29: 2015-2-R. Star-ASL001-MN01-Actual | H29: 70
A30: 2016 | B30: 5 | C30: J. McVie | D30: PRD001 | E30: VA01 | F30: Forecast | G30: 2016-5-J. McVie-PRD001-VA01-Forecast | H30: 86
A31: 2015 | B31: 5 | C31: M. Stipe | D31: POT001 | E31: SD01 | F31: Forecast | G31: 2015-5-M. Stipe-POT001-SD01-Forecast | H31: 80
A32: 2016 | B32: 3 | C32: M.Mills | D32: PRD002 | E32: AL01 | F32: Forecast | G32: 2016-3-M.Mills-PRD002-AL01-Forecast | H32: 90
A33: 2015 | B33: 4 | C33: S. Crow | D33: POT001 | E33: CA01 | F33: Forecast | G33: 2015-4-S. Crow-POT001-CA01-Forecast | H33: 82
A34: 2015 | B34: 5 | C34: M.Mills | D34: ASL001 | E34: VA01 | F34: Forecast | G34: 2015-5-M.Mills-ASL001-VA01-Forecast | H34: 77
A35: 2014 | B35: 2 | C35: C. Underwood | D35: POT001 | E35: MN01 | F35: Actual | G35: 2014-2-C. Underwood-POT001-MN01-Actual | H35: 85
A36: 2015 | B36: 11 | C36: R. Star | D36: JKL001 | E36: NC01 | F36: Actual | G36: 2015-11-R. Star-JKL001-NC01-Actual | H36: 41
A37: 2015 | B37: 3 | C37: R. Star | D37: ASL003 | E37: AL01 | F37: Actual | G37: 2015-3-R. Star-ASL003-AL01-Actual | H37: 62
A38: 2015 | B38: 5 | C38: P. Buck | D38: DFG001 | E38: PA01 | F38: Forecast | G38: 2015-5-P. Buck-DFG001-PA01-Forecast | H38: 52
A39: 2015 | B39: 10 | C39: M.Mills | D39: ASL002 | E39: LA01 | F39: Actual | G39: 2015-10-M.Mills-ASL002-LA01-Actual | H39: 43
A40: 2016 | B40: 11 | C40: J. McVie | D40: PRD001 | E40: AL01 | F40: Forecast | G40: 2016-11-J. McVie-PRD001-AL01-Forecast | H40: 85
A41: 2015 | B41: 1 | C41: M.Mills | D41: JKL001 | E41: LA01 | F41: Actual | G41: 2015-1-M.Mills-JKL001-LA01-Actual | H41: 39
A42: 2015 | B42: 9 | C42: J. McVie | D42: POT002 | E42: SD01 | F42: Actual | G42: 2015-9-J. McVie-POT002-SD01-Actual | H42: 77
A43: 2014 | B43: 12 | C43: B. Shelton | D43: ASL001 | E43: NC01 | F43: Forecast | G43: 2014-12-B. Shelton-ASL001-NC01-Forecast | H43: 74
A44: 2016 | B44: 7 | C44: C. Underwood | D44: PRD002 | E44: MN01 | F44: Forecast | G44: 2016-7-C. Underwood-PRD002-MN01-Forecast | H44: 87
A45: 2015 | B45: 12 | C45: B. Shelton | D45: ASL001 | E45: MN01 | F45: Actual | G45: 2015-12-B. Shelton-ASL001-MN01-Actual | H45: 71
A46: 2014 | B46: 4 | C46: P. Buck | D46: PRD002 | E46: LA01 | F46: Actual | G46: 2014-4-P. Buck-PRD002-LA01-Actual | H46: 82
A47: 2016 | B47: 8 | C47: B. Shelton | D47: POT002 | E47: CA01 | F47: Actual | G47: 2016-8-B. Shelton-POT002-CA01-Actual | H47: 74
A48: 2015 | B48: 10 | C48: C. Underwood | D48: PRD001 | E48: AK01 | F48: Forecast | G48: 2015-10-C. Underwood-PRD001-AK01-Forecast | H48: 88
A49: 2015 | B49: 7 | C49: J. McVie | D49: POT002 | E49: NC01 | F49: Forecast | G49: 2015-7-J. McVie-POT002-NC01-Forecast | H49: 62
A50: 2015 | B50: 9 | C50: M.Mills | D50: POT001 | E50: NC01 | F50: Actual | G50: 2015-9-M.Mills-POT001-NC01-Actual | H50: 86
A51: 2014 | B51: 6 | C51: J. Lennon | D51: JKL001 | E51: CA01 | F51: Actual | G51: 2014-6-J. Lennon-JKL001-CA01-Actual | H51: 30
A52: 2014 | B52: 5 | C52: B. Paisley | D52: ASL002 | E52: SD01 | F52: Forecast | G52: 2014-5-B. Paisley-ASL002-SD01-Forecast | H52: 43
A53: 2015 | B53: 11 | C53: B. Shelton | D53: ASL003 | E53: MN01 | F53: Forecast | G53: 2015-11-B. Shelton-ASL003-MN01-Forecast | H53: 57
A54: 2015 | B54: 11 | C54: C. Underwood | D54: JKL001 | E54: MN01 | F54: Forecast | G54: 2015-11-C. Underwood-JKL001-MN01-Forecast | H54: 38
A55: 2014 | B55: 11 | C55: P. Buck | D55: DFG001 | E55: PA01 | F55: Actual | G55: 2014-11-P. Buck-DFG001-PA01-Actual | H55: 62
A56: 2015 | B56: 9 | C56: R. Star | D56: DFG001 | E56: SD01 | F56: Actual | G56: 2015-9-R. Star-DFG001-SD01-Actual | H56: 61
A57: 2015 | B57: 7 | C57: P. Buck | D57: ASL003 | E57: SD01 | F57: Actual | G57: 2015-7-P. Buck-ASL003-SD01-Actual | H57: 67
A58: 2015 | B58: 7 | C58: M.Mills | D58: PRD001 | E58: SD01 | F58: Actual | G58: 2015-7-M.Mills-PRD001-SD01-Actual | H58: 81
A59: 2015 | B59: 5 | C59: C. Underwood | D59: PRD002 | E59: AL01 | F59: Actual | G59: 2015-5-C. Underwood-PRD002-AL01-Actual | H59: 85
A60: 2015 | B60: 11 | C60: R. Star | D60: ASL001 | E60: LA01 | F60: Actual | G60: 2015-11-R. Star-ASL001-LA01-Actual | H60: 75
A61: 2015 | B61: 12 | C61: J. Lennon | D61: POT001 | E61: MN01 | F61: Actual | G61: 2015-12-J. Lennon-POT001-MN01-Actual | H61: 80
A62: 2016 | B62: 4 | C62: C. Underwood | D62: ASL002 | E62: LA01 | F62: Forecast | G62: 2016-4-C. Underwood-ASL002-LA01-Forecast | H62: 56
A63: 2014 | B63: 10 | C63: M.Mills | D63: JKL001 | E63: LA01 | F63: Forecast | G63: 2014-10-M.Mills-JKL001-LA01-Forecast | H63: 45
A64: 2015 | B64: 5 | C64: M. Stipe | D64: ASL003 | E64: CA01 | F64: Actual | G64: 2015-5-M. Stipe-ASL003-CA01-Actual | H64: 57
A65: 2014 | B65: 7 | C65: B. Paisley | D65: ASL002 | E65: LA01 | F65: Actual | G65: 2014-7-B. Paisley-ASL002-LA01-Actual | H65: 54
A66: 2014 | B66: 10 | C66: P. Buck | D66: ASL001 | E66: AL01 | F66: Forecast | G66: 2014-10-P. Buck-ASL001-AL01-Forecast | H66: 72
A67: 2015 | B67: 5 | C67: P. Buck | D67: ASL001 | E67: MN01 | F67: Actual | G67: 2015-5-P. Buck-ASL001-MN01-Actual | H67: 75
A68: 2015 | B68: 4 | C68: M. Stipe | D68: POT002 | E68: VA01 | F68: Actual | G68: 2015-4-M. Stipe-POT002-VA01-Actual | H68: 65
A69: 2014 | B69: 9 | C69: M. Stipe | D69: POT001 | E69: AL01 | F69: Forecast | G69: 2014-9-M. Stipe-POT001-AL01-Forecast | H69: 80
A70: 2014 | B70: 10 | C70: J. Lennon | D70: ASL003 | E70: PA01 | F70: Forecast | G70: 2014-10-J. Lennon-ASL003-PA01-Forecast | H70: 59
A71: 2015 | B71: 11 | C71: J. McVie | D71: DFG001 | E71: SD01 | F71: Actual | G71: 2015-11-J. McVie-DFG001-SD01-Actual | H71: 58
A72: 2015 | B72: 9 | C72: C. Underwood | D72: POT002 | E72: AK01 | F72: Forecast | G72: 2015-9-C. Underwood-POT002-AK01-Forecast | H72: 72
A73: 2015 | B73: 12 | C73: J. Lennon | D73: JKL001 | E73: LA01 | F73: Actual | G73: 2015-12-J. Lennon-JKL001-LA01-Actual | H73: 48
A74: 2015 | B74: 8 | C74: M.Mills | D74: POT002 | E74: MN01 | F74: Actual | G74: 2015-8-M.Mills-POT002-MN01-Actual | H74: 61
A75: 2015 | B75: 11 | C75: J. Lennon | D75: PRD002 | E75: MN01 | F75: Forecast | G75: 2015-11-J. Lennon-PRD002-MN01-Forecast | H75: 84
A76: 2016 | B76: 5 | C76: R. Star | D76: ASL003 | E76: AK01 | F76: Forecast | G76: 2016-5-R. Star-ASL003-AK01-Forecast | H76: 56
A77: 2015 | B77: 3 | C77: P. Buck | D77: JKL001 | E77: SD01 | F77: Actual | G77: 2015-3-P. Buck-JKL001-SD01-Actual | H77: 33
A78: 2014 | B78: 9 | C78: B. Shelton | D78: POT002 | E78: SD01 | F78: Actual | G78: 2014-9-B. Shelton-POT002-SD01-Actual | H78: 63
A79: 2015 | B79: 2 | C79: C. Underwood | D79: PRD002 | E79: PA01 | F79: Actual | G79: 2015-2-C. Underwood-PRD002-PA01-Actual | H79: 78
A80: 2015 | B80: 3 | C80: R. Star | D80: JKL001 | E80: NC01 | F80: Forecast | G80: 2015-3-R. Star-JKL001-NC01-Forecast | H80: 40
A81: 2016 | B81: 5 | C81: M.Mills | D81: ASL001 | E81: CA01 | F81: Actual | G81: 2016-5-M.Mills-ASL001-CA01-Actual | H81: 64
A82: 2015 | B82: 2 | C82: M.Mills | D82: POT002 | E82: VA01 | F82: Actual | G82: 2015-2-M.Mills-POT002-VA01-Actual | H82: 73
A83: 2016 | B83: 11 | C83: R. Star | D83: POT001 | E83: AK01 | F83: Actual | G83: 2016-11-R. Star-POT001-AK01-Actual | H83: 74
A84: 2015 | B84: 2 | C84: M. Stipe | D84: ASL001 | E84: SD01 | F84: Forecast | G84: 2015-2-M. Stipe-ASL001-SD01-Forecast | H84: 70
A85: 2015 | B85: 2 | C85: S. Crow | D85: POT001 | E85: SD01 | F85: Forecast | G85: 2015-2-S. Crow-POT001-SD01-Forecast | H85: 72
A86: 2015 | B86: 5 | C86: J. Lennon | D86: ASL002 | E86: CA01 | F86: Forecast | G86: 2015-5-J. Lennon-ASL002-CA01-Forecast | H86: 58
A87: 2016 | B87: 6 | C87: P. Buck | D87: PRD002 | E87: AK01 | F87: Forecast | G87: 2016-6-P. Buck-PRD002-AK01-Forecast | H87: 78
A88: 2016 | B88: 11 | C88: J. Lennon | D88: JKL001 | E88: MN01 | F88: Forecast | G88: 2016-11-J. Lennon-JKL001-MN01-Forecast | H88: 32
A89: 2015 | B89: 10 | C89: B. Shelton | D89: JKL001 | E89: AL01 | F89: Forecast | G89: 2015-10-B. Shelton-JKL001-AL01-Forecast | H89: 49
A90: 2016 | B90: 11 | C90: C. Underwood | D90: POT002 | E90: AL01 | F90: Actual | G90: 2016-11-C. Underwood-POT002-AL01-Actual | H90: 80
A91: 2014 | B91: 6 | C91: S. Crow | D91: DFG001 | E91: AL01 | F91: Forecast | G91: 2014-6-S. Crow-DFG001-AL01-Forecast | H91: 59
A92: 2015 | B92: 9 | C92: M. Stipe | D92: ASL002 | E92: VA01 | F92: Actual | G92: 2015-9-M. Stipe-ASL002-VA01-Actual | H92: 48
A93: 2014 | B93: 9 | C93: B. Paisley | D93: POT002 | E93: MN01 | F93: Actual | G93: 2014-9-B. Paisley-POT002-MN01-Actual | H93: 60
A94: 2015 | B94: 10 | C94: J. McVie | D94: ASL003 | E94: PA01 | F94: Forecast | G94: 2015-10-J. McVie-ASL003-PA01-Forecast | H94: 59
A95: 2015 | B95: 11 | C95: R. Star | D95: ASL001 | E95: LA01 | F95: Forecast | G95: 2015-11-R. Star-ASL001-LA01-Forecast | H95: 79
A96: 2015 | B96: 9 | C96: C. Underwood | D96: ASL003 | E96: MN01 | F96: Actual | G96: 2015-9-C. Underwood-ASL003-MN01-Actual | H96: 66
A97: 2016 | B97: 1 | C97: J. McVie | D97: PRD002 | E97: AK01 | F97: Forecast | G97: 2016-1-J. McVie-PRD002-AK01-Forecast | H97: 71
A98: 2016 | B98: 3 | C98: S. Crow | D98: PRD001 | E98: AK01 | F98: Actual | G98: 2016-3-S. Crow-PRD001-AK01-Actual | H98: 91
A99: 2014 | B99: 7 | C99: M. Stipe | D99: ASL001 | E99: CA01 | F99: Actual | G99: 2014-7-M. Stipe-ASL001-CA01-Actual | H99: 74
A100: 2015 | B100: 10 | C100: B. Shelton | D100: ASL002 | E100: NC01 | F100: Forecast | G100: 2015-10-B. Shelton-ASL002-NC01-Forecast | H100: 49
A101: 2015 | B101: 9 | C101: R. Star | D101: ASL001 | E101: AL01 | F101: Actual | G101: 2015-9-R. Star-ASL001-AL01-Actual | H101: 73
A102: 2014 | B102: 12 | C102: M. Stipe | D102: PRD001 | E102: AK01 | F102: Forecast | G102: 2014-12-M. Stipe-PRD001-AK01-Forecast | H102: 91
A103: 2014 | B103: 8 | C103: C. Underwood | D103: ASL002 | E103: PA01 | F103: Forecast | G103: 2014-8-C. Underwood-ASL002-PA01-Forecast | H103: 41
A104: 2015 | B104: 1 | C104: C. Underwood | D104: POT002 | E104: CA01 | F104: Actual | G104: 2015-1-C. Underwood-POT002-CA01-Actual | H104: 76
A105: 2014 | B105: 8 | C105: S. Crow | D105: ASL002 | E105: CA01 | F105: Forecast | G105: 2014-8-S. Crow-ASL002-CA01-Forecast | H105: 58
A106: 2015 | B106: 3 | C106: M.Mills | D106: JKL001 | E106: PA01 | F106: Actual | G106: 2015-3-M.Mills-JKL001-PA01-Actual | H106: 39
A107: 2014 | B107: 5 | C107: M. Stipe | D107: POT001 | E107: PA01 | F107: Forecast | G107: 2014-5-M. Stipe-POT001-PA01-Forecast | H107: 81
A108: 2015 | B108: 8 | C108: M. Stipe | D108: ASL002 | E108: CA01 | F108: Actual | G108: 2015-8-M. Stipe-ASL002-CA01-Actual | H108: 50
A109: 2014 | B109: 3 | C109: J. Lennon | D109: ASL003 | E109: AL01 | F109: Forecast | G109: 2014-3-J. Lennon-ASL003-AL01-Forecast | H109: 59
A110: 2016 | B110: 8 | C110: S. Crow | D110: JKL001 | E110: LA01 | F110: Actual | G110: 2016-8-S. Crow-JKL001-LA01-Actual | H110: 48
A111: 2016 | B111: 12 | C111: B. Paisley | D111: ASL003 | E111: CA01 | F111: Actual | G111: 2016-12-B. Paisley-ASL003-CA01-Actual | H111: 53
A112: 2015 | B112: 1 | C112: B. Shelton | D112: JKL001 | E112: NC01 | F112: Forecast | G112: 2015-1-B. Shelton-JKL001-NC01-Forecast | H112: 50
A113: 2016 | B113: 4 | C113: B. Paisley | D113: ASL002 | E113: PA01 | F113: Actual | G113: 2016-4-B. Paisley-ASL002-PA01-Actual | H113: 59
A114: 2016 | B114: 11 | C114: P. Buck | D114: PRD002 | E114: NC01 | F114: Forecast | G114: 2016-11-P. Buck-PRD002-NC01-Forecast | H114: 82
A115: 2015 | B115: 4 | C115: P. Buck | D115: ASL002 | E115: MN01 | F115: Actual | G115: 2015-4-P. Buck-ASL002-MN01-Actual | H115: 50
A116: 2015 | B116: 10 | C116: B. Paisley | D116: PRD002 | E116: MN01 | F116: Actual | G116: 2015-10-B. Paisley-PRD002-MN01-Actual | H116: 86
A117: 2014 | B117: 2 | C117: M. Stipe | D117: POT002 | E117: SD01 | F117: Actual | G117: 2014-2-M. Stipe-POT002-SD01-Actual | H117: 67
A118: 2014 | B118: 1 | C118: S. Crow | D118: ASL001 | E118: AK01 | F118: Forecast | G118: 2014-1-S. Crow-ASL001-AK01-Forecast | H118: 66
A119: 2015 | B119: 11 | C119: P. Buck | D119: PRD002 | E119: PA01 | F119: Actual | G119: 2015-11-P. Buck-PRD002-PA01-Actual | H119: 88
A120: 2015 | B120: 3 | C120: P. Buck | D120: POT002 | E120: AL01 | F120: Actual | G120: 2015-3-P. Buck-POT002-AL01-Actual | H120: 67
A121: 2015 | B121: 12 | C121: R. Star | D121: ASL001 | E121: MN01 | F121: Forecast | G121: 2015-12-R. Star-ASL001-MN01-Forecast | H121: 75
A122: 2014 | B122: 9 | C122: P. Buck | D122: PRD002 | E122: NC01 | F122: Actual | G122: 2014-9-P. Buck-PRD002-NC01-Actual | H122: 80
A123: 2015 | B123: 4 | C123: P. Buck | D123: PRD002 | E123: SD01 | F123: Actual | G123: 2015-4-P. Buck-PRD002-SD01-Actual | H123: 83
A124: 2016 | B124: 1 | C124: R. Star | D124: POT002 | E124: AL01 | F124: Actual | G124: 2016-1-R. Star-POT002-AL01-Actual | H124: 70
A125: 2014 | B125: 2 | C125: C. Underwood | D125: ASL003 | E125: AL01 | F125: Forecast | G125: 2014-2-C. Underwood-ASL003-AL01-Forecast | H125: 57
A126: 2014 | B126: 6 | C126: J. Lennon | D126: POT001 | E126: PA01 | F126: Actual | G126: 2014-6-J. Lennon-POT001-PA01-Actual | H126: 80
A127: 2014 | B127: 10 | C127: M.Mills | D127: PRD002 | E127: CA01 | F127: Actual | G127: 2014-10-M.Mills-PRD002-CA01-Actual | H127: 87
A128: 2015 | B128: 8 | C128: J. Lennon | D128: DFG001 | E128: CA01 | F128: Forecast | G128: 2015-8-J. Lennon-DFG001-CA01-Forecast | H128: 52
A129: 2014 | B129: 6 | C129: J. Lennon | D129: ASL003 | E129: LA01 | F129: Forecast | G129: 2014-6-J. Lennon-ASL003-LA01-Forecast | H129: 64
A130: 2014 | B130: 3 | C130: M.Mills | D130: ASL001 | E130: LA01 | F130: Actual | G130: 2014-3-M.Mills-ASL001-LA01-Actual | H130: 60
A131: 2016 | B131: 2 | C131: R. Star | D131: ASL001 | E131: NC01 | F131: Forecast | G131: 2016-2-R. Star-ASL001-NC01-Forecast | H131: 68
A132: 2015 | B132: 2 | C132: S. Crow | D132: ASL001 | E132: AL01 | F132: Actual | G132: 2015-2-S. Crow-ASL001-AL01-Actual | H132: 77
A133: 2014 | B133: 9 | C133: J. Lennon | D133: PRD002 | E133: NC01 | F133: Forecast | G133: 2014-9-J. Lennon-PRD002-NC01-Forecast | H133: 90
A134: 2016 | B134: 9 | C134: J. McVie | D134: POT001 | E134: SD01 | F134: Actual | G134: 2016-9-J. McVie-POT001-SD01-Actual | H134: 80
A135: 2015 | B135: 8 | C135: M.Mills | D135: ASL002 | E135: MN01 | F135: Forecast | G135: 2015-8-M.Mills-ASL002-MN01-Forecast | H135: 53
A136: 2015 | B136: 3 | C136: C. Underwood | D136: POT002 | E136: AL01 | F136: Forecast | G136: 2015-3-C. Underwood-POT002-AL01-Forecast | H136: 65
A137: 2014 | B137: 4 | C137: P. Buck | D137: ASL001 | E137: CA01 | F137: Forecast | G137: 2014-4-P. Buck-ASL001-CA01-Forecast | H137: 68
A138: 2016 | B138: 7 | C138: R. Star | D138: ASL003 | E138: MN01 | F138: Forecast | G138: 2016-7-R. Star-ASL003-MN01-Forecast | H138: 53
A139: 2016 | B139: 9 | C139: R. Star | D139: ASL002 | E139: LA01 | F139: Actual | G139: 2016-9-R. Star-ASL002-LA01-Actual | H139: 56
A140: 2015 | B140: 9 | C140: M.Mills | D140: PRD002 | E140: VA01 | F140: Actual | G140: 2015-9-M.Mills-PRD002-VA01-Actual | H140: 81
A141: 2014 | B141: 5 | C141: M. Stipe | D141: DFG001 | E141: LA01 | F141: Actual | G141: 2014-5-M. Stipe-DFG001-LA01-Actual | H141: 51
A142: 2015 | B142: 8 | C142: J. Lennon | D142: PRD002 | E142: MN01 | F142: Actual | G142: 2015-8-J. Lennon-PRD002-MN01-Actual | H142: 75
A143: 2015 | B143: 2 | C143: B. Shelton | D143: ASL003 | E143: CA01 | F143: Actual | G143: 2015-2-B. Shelton-ASL003-CA01-Actual | H143: 59
A144: 2015 | B144: 5 | C144: R. Star | D144: ASL002 | E144: PA01 | F144: Actual | G144: 2015-5-R. Star-ASL002-PA01-Actual | H144: 56
A145: 2015 | B145: 10 | C145: B. Paisley | D145: POT002 | E145: AK01 | F145: Forecast | G145: 2015-10-B. Paisley-POT002-AK01-Forecast | H145: 77
A146: 2014 | B146: 11 | C146: B. Shelton | D146: PRD001 | E146: MN01 | F146: Forecast | G146: 2014-11-B. Shelton-PRD001-MN01-Forecast | H146: 96
A147: 2015 | B147: 4 | C147: M.Mills | D147: PRD002 | E147: SD01 | F147: Actual | G147: 2015-4-M.Mills-PRD002-SD01-Actual | H147: 87
A148: 2015 | B148: 6 | C148: J. McVie | D148: JKL001 | E148: SD01 | F148: Actual | G148: 2015-6-J. McVie-JKL001-SD01-Actual | H148: 48
A149: 2016 | B149: 3 | C149: R. Star | D149: ASL003 | E149: MN01 | F149: Actual | G149: 2016-3-R. Star-ASL003-MN01-Actual | H149: 67
A150: 2015 | B150: 10 | C150: C. Underwood | D150: JKL001 | E150: CA01 | F150: Actual | G150: 2015-10-C. Underwood-JKL001-CA01-Actual | H150: 41
A151: 2015 | B151: 8 | C151: J. Lennon | D151: POT001 | E151: AL01 | F151: Actual | G151: 2015-8-J. Lennon-POT001-AL01-Actual | H151: 78
A152: 2016 | B152: 11 | C152: R. Star | D152: POT001 | E152: LA01 | F152: Actual | G152: 2016-11-R. Star-POT001-LA01-Actual | H152: 83
A153: 2014 | B153: 3 | C153: P. Buck | D153: POT002 | E153: PA01 | F153: Actual | G153: 2014-3-P. Buck-POT002-PA01-Actual | H153: 63
A154: 2015 | B154: 6 | C154: P. Buck | D154: PRD001 | E154: MN01 | F154: Actual | G154: 2015-6-P. Buck-PRD001-MN01-Actual | H154: 98
A155: 2016 | B155: 8 | C155: M.Mills | D155: ASL001 | E155: LA01 | F155: Actual | G155: 2016-8-M.Mills-ASL001-LA01-Actual | H155: 69
A156: 2014 | B156: 6 | C156: J. Lennon | D156: PRD002 | E156: PA01 | F156: Actual | G156: 2014-6-J. Lennon-PRD002-PA01-Actual | H156: 71
A157: 2014 | B157: 4 | C157: C. Underwood | D157: ASL001 | E157: SD01 | F157: Forecast | G157: 2014-4-C. Underwood-ASL001-SD01-Forecast | H157: 77
A158: 2016 | B158: 5 | C158: S. Crow | D158: POT002 | E158: AL01 | F158: Forecast | G158: 2016-5-S. Crow-POT002-AL01-Forecast | H158: 78
A159: 2015 | B159: 8 | C159: M.Mills | D159: ASL002 | E159: SD01 | F159: Forecast | G159: 2015-8-M.Mills-ASL002-SD01-Forecast | H159: 59
A160: 2016 | B160: 7 | C160: C. Underwood | D160: ASL003 | E160: NC01 | F160: Forecast | G160: 2016-7-C. Underwood-ASL003-NC01-Forecast | H160: 55
A161: 2016 | B161: 5 | C161: B. Shelton | D161: DFG001 | E161: SD01 | F161: Actual | G161: 2016-5-B. Shelton-DFG001-SD01-Actual | H161: 64
A162: 2016 | B162: 1 | C162: M. Stipe | D162: POT001 | E162: AL01 | F162: Forecast | G162: 2016-1-M. Stipe-POT001-AL01-Forecast | H162: 71
A163: 2015 | B163: 4 | C163: B. Paisley | D163: ASL003 | E163: PA01 | F163: Forecast | G163: 2015-4-B. Paisley-ASL003-PA01-Forecast | H163: 54
A164: 2014 | B164: 7 | C164: B. Paisley | D164: ASL002 | E164: MN01 | F164: Forecast | G164: 2014-7-B. Paisley-ASL002-MN01-Forecast | H164: 47
A165: 2014 | B165: 5 | C165: C. Underwood | D165: POT001 | E165: SD01 | F165: Actual | G165: 2014-5-C. Underwood-POT001-SD01-Actual | H165: 74
A166: 2016 | B166: 8 | C166: P. Buck | D166: POT001 | E166: SD01 | F166: Forecast | G166: 2016-8-P. Buck-POT001-SD01-Forecast | H166: 82
A167: 2015 | B167: 3 | C167: P. Buck | D167: POT002 | E167: AK01 | F167: Forecast | G167: 2015-3-P. Buck-POT002-AK01-Forecast | H167: 61
A168: 2014 | B168: 1 | C168: C. Underwood | D168: JKL001 | E168: LA01 | F168: Actual | G168: 2014-1-C. Underwood-JKL001-LA01-Actual | H168: 39
A169: 2015 | B169: 8 | C169: J. Lennon | D169: ASL003 | E169: PA01 | F169: Actual | G169: 2015-8-J. Lennon-ASL003-PA01-Actual | H169: 67
A170: 2015 | B170: 8 | C170: P. Buck | D170: ASL003 | E170: AK01 | F170: Actual | G170: 2015-8-P. Buck-ASL003-AK01-Actual | H170: 64
A171: 2015 | B171: 2 | C171: R. Star | D171: ASL003 | E171: AL01 | F171: Actual | G171: 2015-2-R. Star-ASL003-AL01-Actual | H171: 67
A172: 2015 | B172: 8 | C172: M.Mills | D172: ASL003 | E172: MN01 | F172: Actual | G172: 2015-8-M.Mills-ASL003-MN01-Actual | H172: 66
A173: 2014 | B173: 4 | C173: B. Shelton | D173: PRD002 | E173: PA01 | F173: Actual | G173: 2014-4-B. Shelton-PRD002-PA01-Actual | H173: 72
A174: 2014 | B174: 7 | C174: S. Crow | D174: JKL001 | E174: SD01 | F174: Actual | G174: 2014-7-S. Crow-JKL001-SD01-Actual | H174: 49
A175: 2015 | B175: 5 | C175: R. Star | D175: ASL002 | E175: AL01 | F175: Actual | G175: 2015-5-R. Star-ASL002-AL01-Actual | H175: 47
A176: 2015 | B176: 2 | C176: J. Lennon | D176: DFG001 | E176: PA01 | F176: Actual | G176: 2015-2-J. Lennon-DFG001-PA01-Actual | H176: 63
A177: 2015 | B177: 4 | C177: S. Crow | D177: DFG001 | E177: AL01 | F177: Forecast | G177: 2015-4-S. Crow-DFG001-AL01-Forecast | H177: 61
A178: 2015 | B178: 7 | C178: M.Mills | D178: ASL003 | E178: MN01 | F178: Actual | G178: 2015-7-M.Mills-ASL003-MN01-Actual | H178: 55
A179: 2014 | B179: 3 | C179: C. Underwood | D179: PRD001 | E179: AK01 | F179: Forecast | G179: 2014-3-C. Underwood-PRD001-AK01-Forecast | H179: 99
A180: 2015 | B180: 11 | C180: S. Crow | D180: POT001 | E180: LA01 | F180: Forecast | G180: 2015-11-S. Crow-POT001-LA01-Forecast | H180: 87
A181: 2016 | B181: 10 | C181: M. Stipe | D181: ASL002 | E181: SD01 | F181: Actual | G181: 2016-10-M. Stipe-ASL002-SD01-Actual | H181: 54
A182: 2014 | B182: 4 | C182: B. Shelton | D182: POT001 | E182: AK01 | F182: Actual | G182: 2014-4-B. Shelton-POT001-AK01-Actual | H182: 73
A183: 2014 | B183: 5 | C183: P. Buck | D183: POT001 | E183: SD01 | F183: Actual | G183: 2014-5-P. Buck-POT001-SD01-Actual | H183: 75
A184: 2015 | B184: 8 | C184: B. Paisley | D184: PRD002 | E184: AL01 | F184: Forecast | G184: 2015-8-B. Paisley-PRD002-AL01-Forecast | H184: 88
A185: 2014 | B185: 2 | C185: B. Paisley | D185: ASL002 | E185: VA01 | F185: Forecast | G185: 2014-2-B. Paisley-ASL002-VA01-Forecast | H185: 57
A186: 2014 | B186: 3 | C186: M.Mills | D186: POT001 | E186: LA01 | F186: Actual | G186: 2014-3-M.Mills-POT001-LA01-Actual | H186: 81
A187: 2014 | B187: 10 | C187: M. Stipe | D187: ASL002 | E187: AL01 | F187: Actual | G187: 2014-10-M. Stipe-ASL002-AL01-Actual | H187: 47
A188: 2014 | B188: 7 | C188: J. Lennon | D188: JKL001 | E188: AL01 | F188: Forecast | G188: 2014-7-J. Lennon-JKL001-AL01-Forecast | H188: 43
A189: 2015 | B189: 8 | C189: P. Buck | D189: ASL003 | E189: PA01 | F189: Forecast | G189: 2015-8-P. Buck-ASL003-PA01-Forecast | H189: 64
A190: 2015 | B190: 8 | C190: P. Buck | D190: POT002 | E190: LA01 | F190: Forecast | G190: 2015-8-P. Buck-POT002-LA01-Forecast | H190: 63
A191: 2015 | B191: 8 | C191: R. Star | D191: ASL002 | E191: AK01 | F191: Forecast | G191: 2015-8-R. Star-ASL002-AK01-Forecast | H191: 47
A192: 2015 | B192: 4 | C192: P. Buck | D192: POT001 | E192: CA01 | F192: Actual | G192: 2015-4-P. Buck-POT001-CA01-Actual | H192: 84
A193: 2016 | B193: 3 | C193: J. Lennon | D193: PRD001 | E193: SD01 | F193: Forecast | G193: 2016-3-J. Lennon-PRD001-SD01-Forecast | H193: 90
A194: 2016 | B194: 10 | C194: R. Star | D194: PRD002 | E194: AL01 | F194: Actual | G194: 2016-10-R. Star-PRD002-AL01-Actual | H194: 72
A195: 2016 | B195: 8 | C195: M.Mills | D195: ASL003 | E195: AL01 | F195: Actual | G195: 2016-8-M.Mills-ASL003-AL01-Actual | H195: 56
A196: 2015 | B196: 2 | C196: J. McVie | D196: PRD001 | E196: CA01 | F196: Actual | G196: 2015-2-J. McVie-PRD001-CA01-Actual | H196: 82
A197: 2016 | B197: 2 | C197: M.Mills | D197: ASL003 | E197: AK01 | F197: Actual | G197: 2016-2-M.Mills-ASL003-AK01-Actual | H197: 53
A198: 2015 | B198: 3 | C198: M.Mills | D198: DFG001 | E198: LA01 | F198: Forecast | G198: 2015-3-M.Mills-DFG001-LA01-Forecast | H198: 66
A199: 2016 | B199: 5 | C199: M.Mills | D199: PRD001 | E199: VA01 | F199: Forecast | G199: 2016-5-M.Mills-PRD001-VA01-Forecast | H199: 96
A200: 2016 | B200: 5 | C200: R. Star | D200: POT001 | E200: LA01 | F200: Forecast | G200: 2016-5-R. Star-POT001-LA01-Forecast | H200: 86
... 4300 more rows
